Service Area,Service Division,Expense Type,Expense Code,Detailed Expense Type,Payment Date,Transaction Number,Amount Exc Vat,Supplier Name
Adults Wellbeing and Health,Commissioning inc Supporting People,Supplies and Services,384199,Miscellaneous Expenses,02-Jul-2012,2464943-832,"5,000.00",ROBIN RIMBAUD T/A SCANNERDOT LTD.
Adults Wellbeing and Health,Commissioning inc Supporting People,Supplies and Services,384199,Miscellaneous Expenses,02-Jul-2012,2464943-837,"2,586.50",ROBIN RIMBAUD T/A SCANNERDOT LTD.
Adults Wellbeing and Health,Commissioning inc Supporting People,Supplies and Services,324001,Provisions,02-Jul-2012,2464678-9100326827,500.76,COCA COLA ENTERPRISES LTD.
Adults Wellbeing and Health,Commissioning inc Supporting People,Third Party Payments,479111,Purchase of Care,02-Jul-2012,2464815-,"4,729.00",LEARNING LIBRARY.
Adults Wellbeing and Health,Head of Adults,Third Party Payments,479102,Purchase of Care,02-Jul-2012,2464677-3135743,"14,048.50",CO DURHAM & DARLINGTON NHS FOUNDATION TRUST.
Adults Wellbeing and Health,Head of Adults,Supplies and Services,384619,Miscellaneous Expenses,02-Jul-2012,2464677-3136979,"49,027.20",CO DURHAM & DARLINGTON NHS FOUNDATION TRUST.
Adults Wellbeing and Health,Head of Adults,Supplies and Services,324117,Provisions,02-Jul-2012,2464800-L21579,897.23,JR HOLLAND FOOD SERVICES LTD.
Adults Wellbeing and Health,Social Inclusion,Supplies and Services,338078,Services,02-Jul-2012,2464925-53605,746.10,PROTECTOR SECURITY GROUP LTD.
Assistant Chief Executive,Partnerships & Community Engagement Div.,Supplies and Services,384085,Miscellaneous Expenses,02-Jul-2012,2464641-,500.00,BISHOP MIDDLEHAM FILM & DRAMA CLUB.
Assistant Chief Executive,Partnerships & Community Engagement Div.,Transfer Payments,525030,Other,02-Jul-2012,2464643-,"3,500.00",BLACKHALL COMMUNITY ASSOCIATION.
Assistant Chief Executive,Partnerships & Community Engagement Div.,Supplies and Services,384085,Miscellaneous Expenses,02-Jul-2012,2464891-,500.00,PARKSIDE & DISTRICT COMMUNITY ASSOCIATION.
Assistant Chief Executive,Partnerships & Community Engagement Div.,Transfer Payments,525030,Other,02-Jul-2012,2464892-,536.75,PASSFIELD & DISTRICT COMMUNITY ASSOCIATION.
Children and Young Peoples Services,CYPS - Local Authority,Transport,230005,Contract Hire,02-Jul-2012,2464657-05/06/2012,675.00,CAROLINE C SYKES.
Children and Young Peoples Services,CYPS - Local Authority,Third Party Payments,479101,Purchase of Care,02-Jul-2012,2464677-3136966,"5,494.93",CO DURHAM & DARLINGTON NHS FOUNDATION TRUST.
Children and Young Peoples Services,CYPS - Local Authority,Supplies and Services,384199,Miscellaneous Expenses,02-Jul-2012,2464721-0000026537,"1,000.00",EAST DURHAM COLLEGE.
Children and Young Peoples Services,CYPS - Local Authority,Supplies and Services,308011,Furniture,02-Jul-2012,2464785-4710,732.78,INGRAMS REMOVERS & STORERS.
Children and Young Peoples Services,Dedicated Schools Grant,Employees,080025,Agency Staff,02-Jul-2012,2464656-03505222,995.00,CAPITA EDUCATION RESOURCING.
Children and Young Peoples Services,Dedicated Schools Grant,Employees,080025,Agency Staff,02-Jul-2012,2464656-03507698,995.00,CAPITA EDUCATION RESOURCING.
Children and Young Peoples Services,Dedicated Schools Grant,Third Party Payments,425005,Rendered by Voluntary Organisations,02-Jul-2012,2464872-0000010035,"11,539.66",NORTH EAST AUTISM SOCIETY.
Children and Young Peoples Services,Dedicated Schools Grant,Employees,080025,Agency Staff,02-Jul-2012,2465008-745040,960.00,TEACHING PERSONNEL LTD.
Children and Young Peoples Services,Dedicated Schools Grant,Employees,080025,Agency Staff,02-Jul-2012,2465008-745042,"1,025.00",TEACHING PERSONNEL LTD.
Corporate Resources,Asset Management,Premises,150005,Apportioned Exps of Operational Blds,02-Jul-2012,2464984-13231,623.00,SOLUTIONS ESTATE MANAGEMENT LTD.
Corporate Resources,Asset Management,Premises,150005,Apportioned Exps of Operational Blds,02-Jul-2012,2464984-13634,623.00,SOLUTIONS ESTATE MANAGEMENT LTD.
Corporate Resources,ICT Services incl. Design and Print,Supplies and Services,332029,"Printing, Stationery and Gen Off Exps",02-Jul-2012,2464986-24387,569.00,SPD 2000 LTD.
Neighbourhood Services,Direct Services,Stock,926900,Stock in hand-Inventory system,02-Jul-2012,2464623-916870899,592.18,ARCO LTD.
Neighbourhood Services,Direct Services,Supplies and Services,304221,Equipment and Materials,02-Jul-2012,2464631-6233056,"1,987.50",AYRESOME INDUSTRIES.
Neighbourhood Services,Direct Services,Supplies and Services,324117,Provisions,02-Jul-2012,2464648-22577120,727.61,BRAKE BROS FOODSERVICE LTD.
Neighbourhood Services,Direct Services,Supplies and Services,324117,Provisions,02-Jul-2012,2464648-22588381,519.39,BRAKE BROS FOODSERVICE LTD.
Neighbourhood Services,Direct Services,Supplies and Services,324117,Provisions,02-Jul-2012,2464648-22603302,567.10,BRAKE BROS FOODSERVICE LTD.
Neighbourhood Services,Direct Services,Supplies and Services,304221,Equipment and Materials,02-Jul-2012,2464749-238760,"1,236.30",G O`BRIEN & SONS LTD.
Neighbourhood Services,Direct Services,Stock,926900,Stock in hand-Inventory system,02-Jul-2012,2464796-NI019708,"4,260.00",JOHN MACLEAN & SONS ELECTRICAL (DINGWALL) LTD.
Neighbourhood Services,Direct Services,Supplies and Services,324117,Provisions,02-Jul-2012,2464800-K02919,524.74,JR HOLLAND FOOD SERVICES LTD.
Neighbourhood Services,Direct Services,Supplies and Services,324117,Provisions,02-Jul-2012,2464800-L21572,"1,878.83",JR HOLLAND FOOD SERVICES LTD.
Neighbourhood Services,Direct Services,Supplies and Services,324117,Provisions,02-Jul-2012,2464800-L21592,854.71,JR HOLLAND FOOD SERVICES LTD.
Neighbourhood Services,Direct Services,Supplies and Services,324117,Provisions,02-Jul-2012,2464829-208185,"1,706.50",MALTON FOODS LTD.
Neighbourhood Services,Direct Services,Transport,230005,Contract Hire,02-Jul-2012,2464870-61438,"3,550.00",NOBLET MUNICIPAL SERVICES LTD.
Neighbourhood Services,Direct Services,Transport,230005,Contract Hire,02-Jul-2012,2464870-61661,"3,740.00",NOBLET MUNICIPAL SERVICES LTD.
Neighbourhood Services,Direct Services,Third Party Payments,430100,Rendered by Private Contractors,02-Jul-2012,2464925-5924,"2,625.00",PROTECTOR SECURITY GROUP LTD.
Neighbourhood Services,Direct Services,Third Party Payments,430100,Rendered by Private Contractors,02-Jul-2012,2464925-5962,"2,750.00",PROTECTOR SECURITY GROUP LTD.
Neighbourhood Services,Direct Services,Stock,926900,Stock in hand-Inventory system,02-Jul-2012,2464936-RSIN0002209,733.59,RIGBY TAYLOR LTD.
Neighbourhood Services,Direct Services,Transport,230005,Contract Hire,02-Jul-2012,2464993-47762,851.00,STENNETTS LTD.
Neighbourhood Services,Sport & Leisure,Premises,145023,Cleaning and Domestic Supplies,02-Jul-2012,2464979-256705,"1,025.30",SIS CHEMICALS.
Neighbourhood Services,Technical Services,Supplies and Services,304221,Equipment and Materials,02-Jul-2012,2464602-LLI252271,"1,034.85",A THOMPSON & SONS LTD.
Neighbourhood Services,Technical Services,Third Party Payments,460350,Contract Payments,02-Jul-2012,2464676-1,685.50,CN WHITAKER.
Neighbourhood Services,Technical Services,Supplies and Services,304221,Equipment and Materials,02-Jul-2012,2464914-046918,"1,145.11",PREMIER WASTE MANAGEMENT LTD.
Neighbourhood Services,Technical Services,Supplies and Services,388001,Contributions to Funds,02-Jul-2012,2465061-544,"3,000.00",XPI SIMULATION LTD.
RED HRA,Housing Revenue Account,Debtors,930106,Debtor-furnished tenancy scheme,02-Jul-2012,2464861-1800005999575,"55,114.69",NEWCASTLE UPON TYNE CITY COUNCIL.
RED HRA,Housing Revenue Account,Debtors,930106,Debtor-furnished tenancy scheme,02-Jul-2012,2464862-1800005985230,"2,463.12",NEWCASTLE UPON TYNE CITY COUNCIL.
Regeneration & Economic Development,Economic Development and Housing,Supplies and Services,384999,Miscellaneous Expenses,02-Jul-2012,2464659-,550.00,CASTLEDENE PROPERTY MANAGEMENT LTD.
Regeneration & Economic Development,Economic Development and Housing,Supplies and Services,384999,Miscellaneous Expenses,02-Jul-2012,2464701-101-101435,525.00,DAVID JOSEPH ESTATES.
Regeneration & Economic Development,Economic Development and Housing,Construction Work,908105,Construction work,02-Jul-2012,2464837-20748,"37,469.25",MGM LTD.
Regeneration & Economic Development,Economic Development and Housing,Other Expenses,914001,Other capital expenses,02-Jul-2012,2464925-5925,"3,000.00",PROTECTOR SECURITY GROUP LTD.
Regeneration & Economic Development,Economic Development and Housing,Cap Exp on Grants & Other Financial Assistance (REFCUS),918401,Capital grants,02-Jul-2012,2464989-,"22,700.00",SPENNYMOOR TOWN COUNCIL.
Regeneration & Economic Development,Economic Development and Housing,Cap Exp on Grants & Other Financial Assistance (REFCUS),918401,Capital grants,02-Jul-2012,2465019-,"4,925.00",THE HOUSE.
Regeneration & Economic Development,Housing General Fund,Cap Exp on Grants & Other Financial Assistance (REFCUS),918401,Capital grants,02-Jul-2012,2464896-,"4,330.00",PETER JORDAN.
Regeneration & Economic Development,"Spatial Policy, Planning, Assets & Environment",Supplies and Services,336005,Advertising,02-Jul-2012,2465026-100000892958,509.55,TMP (UK) LTD (RECRUITMENT).
Regeneration & Economic Development,Strategy Programmes and Performance,Supplies and Services,372009,Subscriptions,02-Jul-2012,2465014-600163,"16,000.00",THE ALLIANCE.
Regeneration & Economic Development,Transport,Other Expenses,914001,Other capital expenses,02-Jul-2012,2464695-1246,"5,400.00",CYCLECITY GUIDES.
Regeneration & Economic Development,Transport,Construction Work,908105,Construction work,02-Jul-2012,2464875-DI20140876,"1,179.42",NORTHERN POWERGRID (NORTHEAST) LTD..
Regeneration & Economic Development,Transport,Fees,901002,Professional fees,02-Jul-2012,2465038-9100047658,"5,000.00",UNIVERSITY OF NEWCASTLE UPON TYNE.
Adults Wellbeing and Health,Commissioning inc Supporting People,Supplies and Services,384302,Miscellaneous Expenses,03-Jul-2012,2465819-28/06/2012,"2,000.00",JR MILGATE ORCHESTRA PROMOTIONS.
Adults Wellbeing and Health,Commissioning inc Supporting People,Supplies and Services,338047,Services,03-Jul-2012,2465686-126,669.62,BLAIRHILL MEDIA LTD.
Adults Wellbeing and Health,Commissioning inc Supporting People,Supplies and Services,338047,Services,03-Jul-2012,2465850-60154467,"3,641.25",MOMENTUM PICTURES.
Adults Wellbeing and Health,Commissioning inc Supporting People,Supplies and Services,338047,Services,03-Jul-2012,2465850-60154468,"1,423.75",MOMENTUM PICTURES.
Adults Wellbeing and Health,Commissioning inc Supporting People,Supplies and Services,338047,Services,03-Jul-2012,2465912-00000706,"1,707.91",SEABRIGHT PRODUCTIONS LTD.
Adults Wellbeing and Health,Commissioning inc Supporting People,Third Party Payments,479101,Purchase of Care,03-Jul-2012,2465737-645,"3,164.22",DURHAM & CHESTER LE STREET CARERS SUPPORT (USE 160303).
Adults Wellbeing and Health,Commissioning inc Supporting People,Third Party Payments,479101,Purchase of Care,03-Jul-2012,2465740-292,"7,730.93",DURHAM DALES ACTION FOR CARERS (USE 160303).
Adults Wellbeing and Health,Commissioning inc Supporting People,Supplies and Services,384199,Miscellaneous Expenses,03-Jul-2012,2465666-100143,"15,000.00",ARTICHOKE TRUST.
Adults Wellbeing and Health,Commissioning inc Supporting People,Supplies and Services,324001,Provisions,03-Jul-2012,2465703-EW52992606,"1,626.92",CARLSBERG UK LTD.
Adults Wellbeing and Health,Head of Adults,Summary reporting level,720045,Fees and Charges,03-Jul-2012,2465749-,"1,181.56",REDACTED - PAYMENT TO INDIVIDUAL
Adults Wellbeing and Health,Head of Adults,Supplies and Services,338366,Services,03-Jul-2012,2465702-111882,"2,722.60",CARE ABILITY.
Adults Wellbeing and Health,Head of Adults,Supplies and Services,338366,Services,03-Jul-2012,2465702-52335,"2,870.28",CARE ABILITY.
Adults Wellbeing and Health,Head of Adults,Supplies and Services,338366,Services,03-Jul-2012,2465702-52379,817.66,CARE ABILITY.
Adults Wellbeing and Health,Social Inclusion,Supplies and Services,384199,Miscellaneous Expenses,03-Jul-2012,2465865-17/56625,"1,375.00",REDACTED - PAYMENT TO INDIVIDUAL
Adults Wellbeing and Health,Social Inclusion,Supplies and Services,384199,Miscellaneous Expenses,03-Jul-2012,2465828-55/56623,"1,428.66",REDACTED - PAYMENT TO INDIVIDUAL
Adults Wellbeing and Health,Social Inclusion,Supplies and Services,384199,Miscellaneous Expenses,03-Jul-2012,2465855-40/56624,"1,016.75",REDACTED - PAYMENT TO INDIVIDUAL
Adults Wellbeing and Health,Social Inclusion,Supplies and Services,332047,"Printing, Stationery and Gen Off Exps",03-Jul-2012,2465738-INV518560,844.50,DURHAM BOX CO LTD.
Adults Wellbeing and Health,Social Inclusion,Supplies and Services,324117,Provisions,03-Jul-2012,2465703-EW52986870,817.02,CARLSBERG UK LTD.
Assistant Chief Executive,Partnerships & Community Engagement Div.,Transfer Payments,525030,Other,03-Jul-2012,2465652-,"3,500.00",ALINGTON HOUSE COMMUNITY ASSOCIATION.
Assistant Chief Executive,Partnerships & Community Engagement Div.,Transfer Payments,525030,Other,03-Jul-2012,2465790-,"1,000.00",HORDEN PARISH COUNCIL.
Children and Young Peoples Services,CYPS - Local Authority,Third Party Payments,440027,Other Third Party Payments,03-Jul-2012,2465174-813552,642.88,REDACTED - PAYMENT TO INDIVIDUAL
Children and Young Peoples Services,CYPS - Local Authority,Third Party Payments,425040,Rendered by Voluntary Organisations,03-Jul-2012,2465647-12/768,"2,919.84",ACORN HOUSE (FOSTERING SERVICES) LTD.
Children and Young Peoples Services,CYPS - Local Authority,Transport,235073,Public Transport,03-Jul-2012,2465656-,631.68,REDACTED - PAYMENT TO INDIVIDUAL
Children and Young Peoples Services,CYPS - Local Authority,Supplies and Services,364999,Grants to Voluntary Organisations,03-Jul-2012,2465668,"5,590.00",AUCKLAND YOUTH & COMMUNITY ASSOCIATION.
Children and Young Peoples Services,CYPS - Local Authority,Supplies and Services,384491,Miscellaneous Expenses,03-Jul-2012,2465669-196,590.00,AUCKLAND YOUTH & COMMUNITY CENTRE.
Children and Young Peoples Services,CYPS - Local Authority,Transport,230005,Contract Hire,03-Jul-2012,2465713-12-017,593.00,CLUBMAN CABS.
Children and Young Peoples Services,CYPS - Local Authority,Transport,230005,Contract Hire,03-Jul-2012,2465713-12/015,695.00,CLUBMAN CABS.
Children and Young Peoples Services,CYPS - Local Authority,Third Party Payments,440001,Other Third Party Payments,03-Jul-2012,2465728-,597.47,REDACTED - PAYMENT TO INDIVIDUAL
Children and Young Peoples Services,CYPS - Local Authority,Supplies and Services,364999,Grants to Voluntary Organisations,03-Jul-2012,2465736-,"3,385.00",DUKE OF EDINBURGHS AWARD.
Children and Young Peoples Services,CYPS - Local Authority,Supplies and Services,364999,Grants to Voluntary Organisations,03-Jul-2012,2465739-,"4,300.00",DURHAM CITY CENTRE YOUTH PROJECT.
Children and Young Peoples Services,CYPS - Local Authority,Supplies and Services,352001,Conference Expenses,03-Jul-2012,2465741-1378,"1,199.58",DURHAM SCOUT COUNTY.
Children and Young Peoples Services,CYPS - Local Authority,Supplies and Services,364352,Grants to Voluntary Organisations,03-Jul-2012,2465760-3647,"1,193.67",FOUNDATION.
Children and Young Peoples Services,CYPS - Local Authority,Supplies and Services,364352,Grants to Voluntary Organisations,03-Jul-2012,2465760-3654,"1,759.71",FOUNDATION.
Children and Young Peoples Services,CYPS - Local Authority,Supplies and Services,312009,"Newspapers, Books and Periodicals",03-Jul-2012,2465769-883657,"1,255.20",GL ASSESSMENT LTD.
Children and Young Peoples Services,CYPS - Local Authority,Supplies and Services,338045,Services,03-Jul-2012,2465788-Y460/84,"2,225.00",HMCTS.
Children and Young Peoples Services,CYPS - Local Authority,Construction Work,908105,Construction work,03-Jul-2012,2465803-12-06-002,"1,435.00",INGREEN ARCHITECTURAL SOLUTIONS LTD.
Children and Young Peoples Services,CYPS - Local Authority,Construction Work,908105,Construction work,03-Jul-2012,2465807-,"57,300.00",INSPIREDSPACES DURHAM LTD.
Children and Young Peoples Services,CYPS - Local Authority,Transport,230007,Contract Hire,03-Jul-2012,2465825-065,"1,320.00",LD TAXIS.
Children and Young Peoples Services,CYPS - Local Authority,Transport,230007,Contract Hire,03-Jul-2012,2465826-024,659.00,LEE`S TAXIS.
Children and Young Peoples Services,CYPS - Local Authority,Transport,230005,Contract Hire,03-Jul-2012,2465832-1039,"1,092.00",LOCAL TRANSPORT LTD.
Children and Young Peoples Services,CYPS - Local Authority,Transport,230007,Contract Hire,03-Jul-2012,2465835-10,960.00,M BUTCHER.
Children and Young Peoples Services,CYPS - Local Authority,Supplies and Services,338099,Services,03-Jul-2012,2465838-005,750.00,MAURICE WALSH.
Children and Young Peoples Services,CYPS - Local Authority,Supplies and Services,338099,Services,03-Jul-2012,2465838-006,750.00,MAURICE WALSH.
Children and Young Peoples Services,CYPS - Local Authority,Supplies and Services,338099,Services,03-Jul-2012,2465838-007,750.00,MAURICE WALSH.
Children and Young Peoples Services,CYPS - Local Authority,Supplies and Services,364999,Grants to Voluntary Organisations,03-Jul-2012,2465844-,"2,226.00",MILLBANK YOUTH CLUB.
Children and Young Peoples Services,CYPS - Local Authority,Supplies and Services,336005,Advertising,03-Jul-2012,2465852-1269,700.00,MOVING MEMORIES LTD.
Children and Young Peoples Services,CYPS - Local Authority,Supplies and Services,336005,Advertising,03-Jul-2012,2465852-1270,700.00,MOVING MEMORIES LTD.
Children and Young Peoples Services,CYPS - Local Authority,Supplies and Services,336005,Advertising,03-Jul-2012,2465852-1271,700.00,MOVING MEMORIES LTD.
Children and Young Peoples Services,CYPS - Local Authority,Supplies and Services,336005,Advertising,03-Jul-2012,2465852-1276,700.00,MOVING MEMORIES LTD.
Children and Young Peoples Services,CYPS - Local Authority,Transport,230007,Contract Hire,03-Jul-2012,2465887-015,805.35,PAUL SAVAGE.
Children and Young Peoples Services,CYPS - Local Authority,Transport,230007,Contract Hire,03-Jul-2012,2465888-ST20/12,"1,236.60",PB PRIVATE HIRE.
Children and Young Peoples Services,CYPS - Local Authority,Premises,125009,Rents,03-Jul-2012,2465890-12053,"14,468.75",PETHERICKS LTD.
Children and Young Peoples Services,CYPS - Local Authority,Supplies and Services,364999,Grants to Voluntary Organisations,03-Jul-2012,2465909-,"1,720.00",SACRISTON COMMUNITY ASSOCIATION.
Children and Young Peoples Services,CYPS - Local Authority,Transport,230007,Contract Hire,03-Jul-2012,2465910-4230,"2,248.26",SAFARI TRAVEL.
Children and Young Peoples Services,CYPS - Local Authority,Third Party Payments,440999,Other Third Party Payments,03-Jul-2012,2465913-0014,"2,405.00",SEDGEFIELD & DISTRICT CITIZENS ADVICE BUREAU.
Children and Young Peoples Services,CYPS - Local Authority,Transport,230005,Contract Hire,03-Jul-2012,2465915-51038,838.50,SHOTTON PRIVATE HIRE.
Children and Young Peoples Services,CYPS - Local Authority,Third Party Payments,425040,Rendered by Voluntary Organisations,03-Jul-2012,2465929-114365,901.00,SWIIS FOSTER CARE LTD.
Children and Young Peoples Services,CYPS - Local Authority,Third Party Payments,425040,Rendered by Voluntary Organisations,03-Jul-2012,2465929-114366,"1,069.00",SWIIS FOSTER CARE LTD.
Children and Young Peoples Services,CYPS - Local Authority,Third Party Payments,425040,Rendered by Voluntary Organisations,03-Jul-2012,2465929-114367,"1,075.00",SWIIS FOSTER CARE LTD.
Children and Young Peoples Services,CYPS - Local Authority,Third Party Payments,425040,Rendered by Voluntary Organisations,03-Jul-2012,2465929-114368,774.00,SWIIS FOSTER CARE LTD.
Children and Young Peoples Services,CYPS - Local Authority,Third Party Payments,425040,Rendered by Voluntary Organisations,03-Jul-2012,2465929-114369,795.00,SWIIS FOSTER CARE LTD.
Children and Young Peoples Services,CYPS - Local Authority,Third Party Payments,425040,Rendered by Voluntary Organisations,03-Jul-2012,2465929-114370,"1,058.00",SWIIS FOSTER CARE LTD.
Children and Young Peoples Services,CYPS - Local Authority,Third Party Payments,425040,Rendered by Voluntary Organisations,03-Jul-2012,2465929-114371,910.00,SWIIS FOSTER CARE LTD.
Children and Young Peoples Services,CYPS - Local Authority,Third Party Payments,425040,Rendered by Voluntary Organisations,03-Jul-2012,2465929-114372,"1,212.00",SWIIS FOSTER CARE LTD.
Children and Young Peoples Services,CYPS - Local Authority,Transport,230005,Contract Hire,03-Jul-2012,2465947-INV487,780.00,TONYS TAXIS (A BIRCH).
Children and Young Peoples Services,Dedicated Schools Grant,Employees,080025,Agency Staff,03-Jul-2012,2465701-03505223,995.00,CAPITA EDUCATION RESOURCING.
Children and Young Peoples Services,Dedicated Schools Grant,Employees,080025,Agency Staff,03-Jul-2012,2465701-03507699,995.00,CAPITA EDUCATION RESOURCING.
Children and Young Peoples Services,Dedicated Schools Grant,Employees,080025,Agency Staff,03-Jul-2012,2465701-03510374,995.00,CAPITA EDUCATION RESOURCING.
Children and Young Peoples Services,Dedicated Schools Grant,Employees,080025,Agency Staff,03-Jul-2012,2465701-03510375,995.00,CAPITA EDUCATION RESOURCING.
Children and Young Peoples Services,Dedicated Schools Grant,Employees,080025,Agency Staff,03-Jul-2012,2465820-16378,"1,850.00",KEYSTAGE RECRUITMENT LTD.
Children and Young Peoples Services,Dedicated Schools Grant,Employees,080025,Agency Staff,03-Jul-2012,2465820-16419,"1,850.00",KEYSTAGE RECRUITMENT LTD.
Children and Young Peoples Services,Dedicated Schools Grant,Employees,080025,Agency Staff,03-Jul-2012,2465820-16456,"1,665.00",KEYSTAGE RECRUITMENT LTD.
Children and Young Peoples Services,Dedicated Schools Grant,Transport,230007,Contract Hire,03-Jul-2012,2465878-0004,"1,295.00",NORTHVIEW PRIVATE HIRE.
Children and Young Peoples Services,Dedicated Schools Grant,Employees,080025,Agency Staff,03-Jul-2012,2465936-745037,575.00,TEACHING PERSONNEL LTD.
Children and Young Peoples Services,Dedicated Schools Grant,Employees,080025,Agency Staff,03-Jul-2012,2465936-745038,750.00,TEACHING PERSONNEL LTD.
Children and Young Peoples Services,Dedicated Schools Grant,Employees,080025,Agency Staff,03-Jul-2012,2465936-745039,925.00,TEACHING PERSONNEL LTD.
Children and Young Peoples Services,Dedicated Schools Grant,Employees,080025,Agency Staff,03-Jul-2012,2465936-745041,600.00,TEACHING PERSONNEL LTD.
Children and Young Peoples Services,Dedicated Schools Grant,Employees,080025,Agency Staff,03-Jul-2012,2465936-746784,575.00,TEACHING PERSONNEL LTD.
Children and Young Peoples Services,Dedicated Schools Grant,Employees,080025,Agency Staff,03-Jul-2012,2465936-746785,750.00,TEACHING PERSONNEL LTD.
Children and Young Peoples Services,Dedicated Schools Grant,Employees,080025,Agency Staff,03-Jul-2012,2465936-746786,925.00,TEACHING PERSONNEL LTD.
Children and Young Peoples Services,Dedicated Schools Grant,Employees,080025,Agency Staff,03-Jul-2012,2465936-746787,960.00,TEACHING PERSONNEL LTD.
Children and Young Peoples Services,Dedicated Schools Grant,Employees,080025,Agency Staff,03-Jul-2012,2465936-746788,600.00,TEACHING PERSONNEL LTD.
Children and Young Peoples Services,Dedicated Schools Grant,Employees,080025,Agency Staff,03-Jul-2012,2465936-746789,"1,025.00",TEACHING PERSONNEL LTD.
Corporate Resources,Asset Management,Construction Work,908105,Construction work,03-Jul-2012,2465767-,"94,348.00",GENTOO CONSTRUCTION LTD.
Corporate Resources,Asset Management,Creditors,952022,Creditor-ind est rent-rdc,03-Jul-2012,2465789-S0009339,"20,364.79",HOMES & COMMUNITIES AGENCY.
Corporate Resources,Corporate Services Financing,Debtors,930031,Debtor-outstand insur claims,03-Jul-2012,2465712-98920,"5,610.56",CLANCY CONSULTING LTD.
Corporate Resources,Corporate Services Financing,Debtors,930031,Debtor-outstand insur claims,03-Jul-2012,2465712-99070,"4,547.80",CLANCY CONSULTING LTD.
Corporate Resources,Corporate Services Financing,Payments In Advance,932005,Court costs,03-Jul-2012,2465787-TOP-UP,"5,000.00",HMCTS.
Corporate Resources,Financing- Resources,Supplies and Services,372009,Subscriptions,03-Jul-2012,2465710-3065013,"3,465.00",CIPFA BUSINESS LTD.
Corporate Resources,ICT Services incl. Design and Print,Supplies and Services,344033,Telephones,03-Jul-2012,2465699-11144503,"1,883.21",CABLE & WIRELESS UK.
Corporate Resources,ICT Services incl. Design and Print,Stock,926900,Stock in hand-Inventory system,03-Jul-2012,2465707-106869M,"43,300.00",CENTERPRISE INTERNATIONAL LTD.
Corporate Resources,ICT Services incl. Design and Print,Supplies and Services,332029,"Printing, Stationery and Gen Off Exps",03-Jul-2012,2465896-583019,"9,554.00",POTTS PRINTERS LTD.
Corporate Resources,Legal & Democratic Services,Supplies and Services,338017,Services,03-Jul-2012,2465718-2179,"4,772.00",COOPERATIVE BANK PLC.
Neighbourhood Services,Direct Services,Stock,926900,Stock in hand-Inventory system,03-Jul-2012,2465643-LLI252383,782.30,A THOMPSON & SONS LTD.
Neighbourhood Services,Direct Services,Supplies and Services,304999,Equipment and Materials,03-Jul-2012,2465644-28584,792.30,AA FLAGS LTD.
Neighbourhood Services,Direct Services,Supplies and Services,384199,Miscellaneous Expenses,03-Jul-2012,2465660-884,"1,280.00",ARBTECH MACHINERY LTD.
Neighbourhood Services,Direct Services,Transport,230005,Contract Hire,03-Jul-2012,2465683-279215,"1,170.00",BICKFORD TRUCK HIRE LTD.
Neighbourhood Services,Direct Services,Transport,210057,Repair and Maintenance of Vehicles,03-Jul-2012,2465705-266507,902.15,CARRS BILLINGTON AGRICULTURE.
Neighbourhood Services,Direct Services,Transport,230005,Contract Hire,03-Jul-2012,2465716-24292,600.00,COLLETT TRANSPORT SERVICES LTD.
Neighbourhood Services,Direct Services,Transport,230005,Contract Hire,03-Jul-2012,2465716-24294,600.00,COLLETT TRANSPORT SERVICES LTD.
Neighbourhood Services,Direct Services,Transport,230005,Contract Hire,03-Jul-2012,2465716-24517,600.00,COLLETT TRANSPORT SERVICES LTD.
Neighbourhood Services,Direct Services,Transport,230005,Contract Hire,03-Jul-2012,2465716-24518,550.00,COLLETT TRANSPORT SERVICES LTD.
Neighbourhood Services,Direct Services,Transport,230005,Contract Hire,03-Jul-2012,2465729-060137,"1,998.81",DAWSONRENTALS/SWEEPERS.
Neighbourhood Services,Direct Services,Transport,210057,Repair and Maintenance of Vehicles,03-Jul-2012,2465732-DE10636767,713.55,DENNIS EAGLE LTD.
Neighbourhood Services,Direct Services,Summary reporting level,720299,Fees and Charges,03-Jul-2012,2465735-,"1,798.50","DR BRIAN LAMBERT, DR IAN BRUNT, & DR RACHEL NG."
Neighbourhood Services,Direct Services,Stock,926900,Stock in hand-Inventory system,03-Jul-2012,2465748-18SI/155123,534.00,ENCON INSULATION LTD.
Neighbourhood Services,Direct Services,Third Party Payments,430100,Rendered by Private Contractors,03-Jul-2012,2465750-17418,581.49,ENTERPRISE ACCIDENT REPAIR CENTRE LTD.
Neighbourhood Services,Direct Services,Supplies and Services,304221,Equipment and Materials,03-Jul-2012,2465755-29162,"1,540.00",EVEREDGE.
Neighbourhood Services,Direct Services,Supplies and Services,304221,Equipment and Materials,03-Jul-2012,2465759-OP/I259645,"2,119.68",FLEMING & CO (MACHINERY) LTD.
Neighbourhood Services,Direct Services,Stock,926004,Stock,03-Jul-2012,2465764-7963520,"1,844.41",GB OILS T/A BRETT FUELS.
Neighbourhood Services,Direct Services,Stock,926004,Stock,03-Jul-2012,2465764-7979911,"21,749.65",GB OILS T/A BRETT FUELS.
Neighbourhood Services,Direct Services,Stock,926004,Stock,03-Jul-2012,2465764-7979918,"2,139.60",GB OILS T/A BRETT FUELS.
Neighbourhood Services,Direct Services,Stock,926004,Stock,03-Jul-2012,2465764-7994003,"24,338.06",GB OILS T/A BRETT FUELS.
Neighbourhood Services,Direct Services,Transport,210057,Repair and Maintenance of Vehicles,03-Jul-2012,2465766-B74852,762.92,GEESINK NORBA LTD.
Neighbourhood Services,Direct Services,Third Party Payments,430100,Rendered by Private Contractors,03-Jul-2012,2465772-026084,"9,134.68",GODFREY SYRETT LTD.
Neighbourhood Services,Direct Services,Third Party Payments,430100,Rendered by Private Contractors,03-Jul-2012,2465772-028305,"10,875.00",GODFREY SYRETT LTD.
Neighbourhood Services,Direct Services,Stock,926900,Stock in hand-Inventory system,03-Jul-2012,2465776-06/415359,"1,527.70",GREENHAM TRADING LTD.
Neighbourhood Services,Direct Services,Third Party Payments,430100,Rendered by Private Contractors,03-Jul-2012,2465778-020/97996,671.40,GROENEVELD UK LTD.
Neighbourhood Services,Direct Services,Third Party Payments,430100,Rendered by Private Contractors,03-Jul-2012,2465778-020/97997,671.40,GROENEVELD UK LTD.
Neighbourhood Services,Direct Services,"Vehicles, Equipment, Furniture and Fittings",912529,Purchase-equipment,03-Jul-2012,2465801-196/12,"71,601.20",IFZW MAINTENANCE LTD.
Neighbourhood Services,Direct Services,Stock,926900,Stock in hand-Inventory system,03-Jul-2012,2465811-3307/0305497,695.00,JEWSON LTD.
Neighbourhood Services,Direct Services,Supplies and Services,324117,Provisions,03-Jul-2012,2465818-L21574,579.24,JR HOLLAND FOOD SERVICES LTD.
Neighbourhood Services,Direct Services,Supplies and Services,304421,Equipment and Materials,03-Jul-2012,2465821-1103313602,865.45,KONICA MINOLTA BUSINESS SOLUTIONS (UK) LTD.
Neighbourhood Services,Direct Services,Third Party Payments,430100,Rendered by Private Contractors,03-Jul-2012,2465824-12179,"5,150.00",LANGUARD LTD.
Neighbourhood Services,Direct Services,Transport,210057,Repair and Maintenance of Vehicles,03-Jul-2012,2465867-HI052926,730.00,NE TRUCK SPARES LTD.
Neighbourhood Services,Direct Services,Premises,135005,Water Services,03-Jul-2012,2465877-210364310102038,"1,449.62",NORTHUMBRIAN WATER LTD.
Neighbourhood Services,Direct Services,Supplies and Services,304259,Equipment and Materials,03-Jul-2012,2465893-58648657,"1,238.04",PHS GROUP PLC.
Neighbourhood Services,Direct Services,Stock,926900,Stock in hand-Inventory system,03-Jul-2012,2465894-43537,"1,205.35",PLASREC LTD.
Neighbourhood Services,Direct Services,Third Party Payments,430100,Rendered by Private Contractors,03-Jul-2012,2465902-,610.60,RIVERSIDE TRUCK RENTAL LTD.
Neighbourhood Services,Direct Services,Third Party Payments,430100,Rendered by Private Contractors,03-Jul-2012,2465907-,600.00,RW CHICKEN (SCAFFOLDING) LTD.
Neighbourhood Services,Direct Services,Third Party Payments,430100,Rendered by Private Contractors,03-Jul-2012,2465907-,"1,200.00",RW CHICKEN (SCAFFOLDING) LTD.
Neighbourhood Services,Direct Services,Stock,926900,Stock in hand-Inventory system,03-Jul-2012,2465921-0001/10104754,877.50,SMH PRODUCTS LTD.
Neighbourhood Services,Direct Services,Stock,926900,Stock in hand-Inventory system,03-Jul-2012,2465925-7006399914,"1,160.00",SPEEDY ASSET SERVICES LTD.
Neighbourhood Services,Direct Services,Transport,210057,Repair and Maintenance of Vehicles,03-Jul-2012,2465931-0323022,569.86,T CROSSLING & CO LTD.
Neighbourhood Services,Direct Services,Stock,926900,Stock in hand-Inventory system,03-Jul-2012,2465950-D2004,"2,015.00",ULTIMATE COMMUNICATIONS SYSTEMS LTD.
Neighbourhood Services,"Environment,Health & Consumer Protection",Supplies and Services,304040,Equipment and Materials,03-Jul-2012,2465671-14856,"1,130.00",AXLE WEIGHT TECHNOLOGY LTD.
Neighbourhood Services,Sport & Leisure,Summary reporting level,720810,Fees and Charges,03-Jul-2012,2465717-PS22161,"4,425.07",COMPETITION LINE UK LTD.
Neighbourhood Services,Sport & Leisure,Summary reporting level,720810,Fees and Charges,03-Jul-2012,2465717-PS22162,"24,160.87",COMPETITION LINE UK LTD.
Neighbourhood Services,Sport & Leisure,Summary reporting level,720810,Fees and Charges,03-Jul-2012,2465717-PS22163,"18,512.33",COMPETITION LINE UK LTD.
Neighbourhood Services,Sport & Leisure,Third Party Payments,460305,Contract Payments,03-Jul-2012,2465842-1125,"16,560.00",MEND CENTRAL LTD.
Neighbourhood Services,Technical Services,Supplies and Services,304221,Equipment and Materials,03-Jul-2012,2465650-16355619,525.99,AGGREGATE INDUSTRIES UK LTD.
Neighbourhood Services,Technical Services,Supplies and Services,304221,Equipment and Materials,03-Jul-2012,2465650-16361774,"1,471.63",AGGREGATE INDUSTRIES UK LTD.
Neighbourhood Services,Technical Services,Supplies and Services,304221,Equipment and Materials,03-Jul-2012,2465650-16361775,538.57,AGGREGATE INDUSTRIES UK LTD.
Neighbourhood Services,Technical Services,Supplies and Services,304221,Equipment and Materials,03-Jul-2012,2465650-16473525,"1,364.46",AGGREGATE INDUSTRIES UK LTD.
Neighbourhood Services,Technical Services,Supplies and Services,304221,Equipment and Materials,03-Jul-2012,2465650-16495390,"2,187.61",AGGREGATE INDUSTRIES UK LTD.
Neighbourhood Services,Technical Services,Supplies and Services,304221,Equipment and Materials,03-Jul-2012,2465650-16502315,520.19,AGGREGATE INDUSTRIES UK LTD.
Neighbourhood Services,Technical Services,Supplies and Services,304221,Equipment and Materials,03-Jul-2012,2465650-16502317,"1,092.70",AGGREGATE INDUSTRIES UK LTD.
Neighbourhood Services,Technical Services,Supplies and Services,304221,Equipment and Materials,03-Jul-2012,2465650-16508255,"1,080.68",AGGREGATE INDUSTRIES UK LTD.
Neighbourhood Services,Technical Services,Supplies and Services,304221,Equipment and Materials,03-Jul-2012,2465650-16508257,516.76,AGGREGATE INDUSTRIES UK LTD.
Neighbourhood Services,Technical Services,Supplies and Services,304221,Equipment and Materials,03-Jul-2012,2465650-16514471,"1,088.33",AGGREGATE INDUSTRIES UK LTD.
Neighbourhood Services,Technical Services,Supplies and Services,304221,Equipment and Materials,03-Jul-2012,2465650-16530623,590.59,AGGREGATE INDUSTRIES UK LTD.
Neighbourhood Services,Technical Services,Supplies and Services,304221,Equipment and Materials,03-Jul-2012,2465650-16583966,610.99,AGGREGATE INDUSTRIES UK LTD.
Neighbourhood Services,Technical Services,Supplies and Services,304221,Equipment and Materials,03-Jul-2012,2465650-16583967,930.63,AGGREGATE INDUSTRIES UK LTD.
Neighbourhood Services,Technical Services,Supplies and Services,304221,Equipment and Materials,03-Jul-2012,2465650-16587100,"1,988.38",AGGREGATE INDUSTRIES UK LTD.
Neighbourhood Services,Technical Services,Supplies and Services,304221,Equipment and Materials,03-Jul-2012,2465650-16587101,652.79,AGGREGATE INDUSTRIES UK LTD.
Neighbourhood Services,Technical Services,Supplies and Services,304221,Equipment and Materials,03-Jul-2012,2465650-16587102,"1,751.68",AGGREGATE INDUSTRIES UK LTD.
Neighbourhood Services,Technical Services,Supplies and Services,304221,Equipment and Materials,03-Jul-2012,2465650-16587104,"1,799.02",AGGREGATE INDUSTRIES UK LTD.
Neighbourhood Services,Technical Services,Construction Work,908108,Capital - Surface Dressing,03-Jul-2012,2465719-14684,"8,564.00",COUPE LINE LTD.
Neighbourhood Services,Technical Services,Construction Work,908105,Construction work,03-Jul-2012,2465719-14687,794.54,COUPE LINE LTD.
Neighbourhood Services,Technical Services,Third Party Payments,460053,Contract Payments,03-Jul-2012,2465719-14688,811.35,COUPE LINE LTD.
Neighbourhood Services,Technical Services,Third Party Payments,460053,Contract Payments,03-Jul-2012,2465719-14689,600.73,COUPE LINE LTD.
Neighbourhood Services,Technical Services,Third Party Payments,460053,Contract Payments,03-Jul-2012,2465719-14691,506.81,COUPE LINE LTD.
Neighbourhood Services,Technical Services,Construction Work,908105,Construction work,03-Jul-2012,2465719-14702,"1,873.56",COUPE LINE LTD.
Neighbourhood Services,Technical Services,Third Party Payments,430100,Rendered by Private Contractors,03-Jul-2012,2465719-14704,723.06,COUPE LINE LTD.
Neighbourhood Services,Technical Services,Third Party Payments,430100,Rendered by Private Contractors,03-Jul-2012,2465719-14705,"1,805.62",COUPE LINE LTD.
Neighbourhood Services,Technical Services,Construction Work,908108,Capital - Surface Dressing,03-Jul-2012,2465719-14706,"5,297.49",COUPE LINE LTD.
Neighbourhood Services,Technical Services,Third Party Payments,460053,Contract Payments,03-Jul-2012,2465719-14712,"2,001.43",COUPE LINE LTD.
Neighbourhood Services,Technical Services,Third Party Payments,430100,Rendered by Private Contractors,03-Jul-2012,2465719-14719,"1,607.98",COUPE LINE LTD.
Neighbourhood Services,Technical Services,Supplies and Services,304221,Equipment and Materials,03-Jul-2012,2465756-16507546,649.96,EXPRESS ASPHALT.
Neighbourhood Services,Technical Services,Supplies and Services,304357,Equipment and Materials,03-Jul-2012,2465763-,"8,834.11",GAP GROUP LTD.
Neighbourhood Services,Technical Services,Supplies and Services,304358,Equipment and Materials,03-Jul-2012,2465813-12000,888.03,JOHN R BUTTERFIELD LTD.
Neighbourhood Services,Technical Services,Supplies and Services,304358,Equipment and Materials,03-Jul-2012,2465813-12029,888.03,JOHN R BUTTERFIELD LTD.
Neighbourhood Services,Technical Services,Supplies and Services,304358,Equipment and Materials,03-Jul-2012,2465813-12035,777.38,JOHN R BUTTERFIELD LTD.
Neighbourhood Services,Technical Services,Supplies and Services,304358,Equipment and Materials,03-Jul-2012,2465813-12058,960.80,JOHN R BUTTERFIELD LTD.
Neighbourhood Services,Technical Services,Supplies and Services,304358,Equipment and Materials,03-Jul-2012,2465813-12059,596.97,JOHN R BUTTERFIELD LTD.
Neighbourhood Services,Technical Services,Supplies and Services,304358,Equipment and Materials,03-Jul-2012,2465813-12063,"1,014.26",JOHN R BUTTERFIELD LTD.
Neighbourhood Services,Technical Services,Supplies and Services,304358,Equipment and Materials,03-Jul-2012,2465813-12067,873.18,JOHN R BUTTERFIELD LTD.
Neighbourhood Services,Technical Services,Third Party Payments,460350,Contract Payments,03-Jul-2012,2465843-184,"4,454.50",MERVYN S THOMPSON.
Neighbourhood Services,Technical Services,Third Party Payments,430100,Rendered by Private Contractors,03-Jul-2012,2465897-,595.10,PREMIER TRAFFIC MANAGEMENT LTD.
Neighbourhood Services,Technical Services,Supplies and Services,304358,Equipment and Materials,03-Jul-2012,2465914-2012065,"1,464.00",SHIREHAVEN LTD.
RED HRA,Housing Revenue Account,Premises,105013,HRA Repair & Maintenance,03-Jul-2012,2465731-143414,"1,113.97",DELTA ELECTRICAL & MECHANICAL SERVICES.
RED HRA,Housing Revenue Account,Supplies and Services,384170,Miscellaneous Expenses,03-Jul-2012,2465956-6/250563,"3,661.12",WILLIAMSONS PAINT & WALL COVERINGS.
RED HRA,HRA Capital,Construction Work,908105,Construction work,03-Jul-2012,2465711-CC81916,575.00,CITY CLEAN.
RED HRA,HRA Capital,Other Expenses,914001,Other capital expenses,03-Jul-2012,2465954-375,"1,141.65",WEAR VALLEY DECORATING CENTRE LTD.
Regeneration & Economic Development,Economic Development and Housing,Supplies and Services,338002,Services,03-Jul-2012,2465646-0494,"9,900.00",ACK TOURISM LTD.
Regeneration & Economic Development,Economic Development and Housing,Fees,901002,Professional fees,03-Jul-2012,2465661-AE06(I)12,"2,607.75",ARCHAEO ENVIRONMENT LTD.
Regeneration & Economic Development,Economic Development and Housing,Construction Work,908105,Construction work,03-Jul-2012,2465673-5090394/16,"491,866.90",BALFOUR BEATTY CIVIL ENGINEERING LTD.
Regeneration & Economic Development,Economic Development and Housing,Fees,901002,Professional fees,03-Jul-2012,2465687-1112-MG-03,"3,750.00",BLUE SAILING CONSULTING LTD.
Regeneration & Economic Development,Economic Development and Housing,Cap Exp on Grants & Other Financial Assistance (REFCUS),918401,Capital grants,03-Jul-2012,2465689,"40,571.21",BOWBURN COMMUNITY ASSOCIATION.
Regeneration & Economic Development,Economic Development and Housing,Supplies and Services,352001,Conference Expenses,03-Jul-2012,2465793-,"7,020.60",HQN LTD.
Regeneration & Economic Development,Economic Development and Housing,Supplies and Services,344033,Telephones,03-Jul-2012,2465892-002510547,"1,293.95",PHONE CO-OP.
Regeneration & Economic Development,Housing General Fund,Cap Exp on Grants & Other Financial Assistance (REFCUS),918401,Capital grants,03-Jul-2012,2465722-088,"3,290.00",CRAIG PATTERSON T/A LET ME GET YOU WET.
Regeneration & Economic Development,Housing General Fund,Cap Exp on Grants & Other Financial Assistance (REFCUS),918401,Capital grants,03-Jul-2012,2465722-089,"3,215.00",CRAIG PATTERSON T/A LET ME GET YOU WET.
Regeneration & Economic Development,Housing General Fund,Cap Exp on Grants & Other Financial Assistance (REFCUS),918401,Capital grants,03-Jul-2012,2465757-,"3,895.00",F TIFFEN BUILDING SERVICES.
Regeneration & Economic Development,Housing General Fund,Cap Exp on Grants & Other Financial Assistance (REFCUS),918401,Capital grants,03-Jul-2012,2465903-,"4,140.00",RONDEN BUILDERS LTD.
Regeneration & Economic Development,Housing General Fund,Cap Exp on Grants & Other Financial Assistance (REFCUS),918401,Capital grants,03-Jul-2012,2465944-SIP-118890,"4,376.00",THYSSENKRUPP ENCASA LTD.
Regeneration & Economic Development,Housing General Fund,Cap Exp on Grants & Other Financial Assistance (REFCUS),918401,Capital grants,03-Jul-2012,2465944-SIP-118955,"1,325.00",THYSSENKRUPP ENCASA LTD.
Regeneration & Economic Development,Housing General Fund,Cap Exp on Grants & Other Financial Assistance (REFCUS),918401,Capital grants,03-Jul-2012,2465944-SIP-118997,"1,390.00",THYSSENKRUPP ENCASA LTD.
Regeneration & Economic Development,"Spatial Policy, Planning, Assets & Environment",Supplies and Services,384199,Miscellaneous Expenses,03-Jul-2012,2465775-,"2,000.00",GREEN TRAVELLER LTD.
Regeneration & Economic Development,"Spatial Policy, Planning, Assets & Environment",Supplies and Services,384199,Miscellaneous Expenses,03-Jul-2012,2465784-202,540.00,HERITAGE CONSOLIDATION LTD.
Regeneration & Economic Development,"Spatial Policy, Planning, Assets & Environment",Supplies and Services,384700,Miscellaneous Expenses,03-Jul-2012,2465873-,"5,210.33",NORTH OF ENGLAND CIVIC TRUST.
Regeneration & Economic Development,"Spatial Policy, Planning, Assets & Environment",Supplies and Services,342051,Computers and Communications,03-Jul-2012,2465875-91212710,597.38,NORTHGATE INFORMATION SOLUTIONS UK LTD.
Regeneration & Economic Development,"Spatial Policy, Planning, Assets & Environment",Supplies and Services,384199,Miscellaneous Expenses,03-Jul-2012,2465920-201205026,"1,606.00",SIMPSON & BROWN.
Regeneration & Economic Development,Transport,Other Expenses,914001,Other capital expenses,03-Jul-2012,2465648-60216682-57,990.00,AECOM LTD.
Regeneration & Economic Development,Transport,Employees,040149,"Recruitment, Instruction and Training",03-Jul-2012,2465794-60,"1,155.00",HSF TRAINING LTD.
Regeneration & Economic Development,Transport,Premises,145009,Cleaning and Domestic Supplies,03-Jul-2012,2465804-12856927,961.39,INITIAL WASHROOM SOLUTIONS.
Regeneration & Economic Development,Transport,Premises,135005,Water Services,03-Jul-2012,2465876-31083195001X005,738.80,NORTHUMBRIAN WATER LTD.
Regeneration & Economic Development,Transport,Premises,135005,Water Services,03-Jul-2012,2465877-210340120093005,738.80,NORTHUMBRIAN WATER LTD.
Adults Wellbeing and Health,Commissioning inc Supporting People,Supplies and Services,338047,Services,04-Jul-2012,208901-,535.00,REDACTED - PAYMENT TO INDIVIDUAL
Adults Wellbeing and Health,Commissioning inc Supporting People,Supplies and Services,384302,Miscellaneous Expenses,04-Jul-2012,2466231-13256,"7,000.00",SCENIC PROJECTS LTD.
Adults Wellbeing and Health,Commissioning inc Supporting People,Supplies and Services,324001,Provisions,04-Jul-2012,2466017-EW53000043,"1,415.75",CARLSBERG UK LTD.
Adults Wellbeing and Health,Head of Adults,Third Party Payments,472101,Purchase of Care,04-Jul-2012,208933-835/16685,814.98,MEARS CARE LTD.
Adults Wellbeing and Health,Head of Adults,Third Party Payments,472101,Purchase of Care,04-Jul-2012,2466214-,791.99,PRESTIGE CARE TEAM.
Adults Wellbeing and Health,Head of Adults,Summary reporting level,720044,Fees and Charges,04-Jul-2012,2466070-,"1,757.76",REDACTED - PAYMENT TO INDIVIDUAL
Adults Wellbeing and Health,Head of Adults,Summary reporting level,720044,Fees and Charges,04-Jul-2012,2465969-,593.66,REDACTED - PAYMENT TO INDIVIDUAL
Adults Wellbeing and Health,Head of Adults,Third Party Payments,470101,Purchase of Care,04-Jul-2012,2466030-511136,"3,546.18",CO DURHAM PCT .
Adults Wellbeing and Health,Planning and Performance,Supplies and Services,342013,Computers and Communications,04-Jul-2012,2466254-5064708,774.53,SUPPLIES TEAM LTD.
Adults Wellbeing and Health,Social Inclusion,Supplies and Services,312013,"Newspapers, Books and Periodicals",04-Jul-2012,2466049-160512/99,552.00,DISABILITY RIGHTS UK.
Adults Wellbeing and Health,Social Inclusion,Supplies and Services,312009,"Newspapers, Books and Periodicals",04-Jul-2012,2465968-1007615,604.45,ACTIVE LEARNING.
Adults Wellbeing and Health,Social Inclusion,Supplies and Services,312011,"Newspapers, Books and Periodicals",04-Jul-2012,2466080-11229144,677.21,GARDNERS BOOKS LTD.
Adults Wellbeing and Health,Social Inclusion,Supplies and Services,312011,"Newspapers, Books and Periodicals",04-Jul-2012,2466080-11229389,676.11,GARDNERS BOOKS LTD.
Adults Wellbeing and Health,Social Inclusion,Supplies and Services,312011,"Newspapers, Books and Periodicals",04-Jul-2012,2466080-11231221,597.91,GARDNERS BOOKS LTD.
Adults Wellbeing and Health,Social Inclusion,Premises,120021,Energy Costs,04-Jul-2012,2466102-5424,"3,464.51",IMPALA ESTATES LTD.
Adults Wellbeing and Health,Social Inclusion,Supplies and Services,340001,Postages,04-Jul-2012,2466171-252511-,"1,000.00",NEOPOST LTD CREDIFON RCB ACCOUNT.
Adults Wellbeing and Health,Social Inclusion,Supplies and Services,304259,Equipment and Materials,04-Jul-2012,2466200-11378402,"3,179.99",PC WORLD BUSINESS.
Adults Wellbeing and Health,Social Inclusion,Supplies and Services,312009,"Newspapers, Books and Periodicals",04-Jul-2012,2466205-1448707,570.00,PETERS LTD.
Adults Wellbeing and Health,Social Inclusion,Supplies and Services,312009,"Newspapers, Books and Periodicals",04-Jul-2012,2466205-1448708,823.41,PETERS LTD.
Adults Wellbeing and Health,Social Inclusion,Supplies and Services,312009,"Newspapers, Books and Periodicals",04-Jul-2012,2466205-1449540,751.08,PETERS LTD.
Adults Wellbeing and Health,Social Inclusion,Supplies and Services,312009,"Newspapers, Books and Periodicals",04-Jul-2012,2466205-1450165,865.38,PETERS LTD.
Adults Wellbeing and Health,Social Inclusion,Supplies and Services,312009,"Newspapers, Books and Periodicals",04-Jul-2012,2466205-1450437,"1,007.38",PETERS LTD.
Adults Wellbeing and Health,Social Inclusion,Supplies and Services,312009,"Newspapers, Books and Periodicals",04-Jul-2012,2466205-1451165,"1,011.47",PETERS LTD.
Adults Wellbeing and Health,Social Inclusion,Supplies and Services,312013,"Newspapers, Books and Periodicals",04-Jul-2012,2466278-1543875,877.34,ULVERSCROFT LARGE PRINT BOOKS LTD.
Adults Wellbeing and Health,Social Inclusion,Supplies and Services,312013,"Newspapers, Books and Periodicals",04-Jul-2012,2466278-I543874,"1,709.64",ULVERSCROFT LARGE PRINT BOOKS LTD.
Adults Wellbeing and Health,Social Inclusion,Supplies and Services,384540,Miscellaneous Expenses,04-Jul-2012,2466027-0101780348,"3,046.00",CLEAR CHANNEL UK LTD.
Assistant Chief Executive,Partnerships & Community Engagement Div.,Transfer Payments,525030,Other,04-Jul-2012,208796-08/06/2012,"3,183.00",ANNFIELD PLAIN AFC JUNIORS.
Assistant Chief Executive,Partnerships & Community Engagement Div.,Supplies and Services,384700,Miscellaneous Expenses,04-Jul-2012,208814-,"3,493.00",CATCHGATE COMMUNITY FOOTBALL CLUB.
Assistant Chief Executive,Partnerships & Community Engagement Div.,Supplies and Services,384085,Miscellaneous Expenses,04-Jul-2012,208830,500.00,DIPTON WORKINGMENS CLUB.
Assistant Chief Executive,Partnerships & Community Engagement Div.,Transfer Payments,525030,Other,04-Jul-2012,209011-,"3,597.00",OXHILL YOUTH CLUB.
Assistant Chief Executive,Partnerships & Community Engagement Div.,Supplies and Services,384085,Miscellaneous Expenses,04-Jul-2012,209033-,500.00,SEAHAM RUGBY FOOTBALL CLUB.
Assistant Chief Executive,Partnerships & Community Engagement Div.,Cap Exp on Grants & Other Financial Assistance (REFCUS),918004,Contributions to other bodies,04-Jul-2012,209044-,"2,000.00",ST CUTHBERTS CENTRE.
Assistant Chief Executive,Partnerships & Community Engagement Div.,Supplies and Services,332001,"Printing, Stationery and Gen Off Exps",04-Jul-2012,2465962-28637,"1,400.00",AA FLAGS LTD.
Assistant Chief Executive,Partnerships & Community Engagement Div.,Transfer Payments,525030,Other,04-Jul-2012,2466103-,"2,000.00",INGLETON & DISTRICT COMMUNITY ASSOCIATION.
Assistant Chief Executive,Partnerships & Community Engagement Div.,Supplies and Services,384086,Miscellaneous Expenses,04-Jul-2012,2466131-,"4,000.00",LEISUREWORKS.
Assistant Chief Executive,Partnerships & Community Engagement Div.,Transfer Payments,525030,Other,04-Jul-2012,2466152-,559.00,MORDON & BRADBURY VILLAGE HALL ASSOCIATION.
Children and Young Peoples Services,CYPS - Local Authority,Third Party Payments,440062,Other Third Party Payments,04-Jul-2012,208819-1-16/4/12,780.00,COGNITIVE THERAPY NORTH EAST.
Children and Young Peoples Services,CYPS - Local Authority,Supplies and Services,338045,Services,04-Jul-2012,208880-UA12C00032,"2,600.00",HMCTS.
Children and Young Peoples Services,CYPS - Local Authority,Supplies and Services,338045,Services,04-Jul-2012,208881-ND11C00061,"2,600.00",HMCTS.
Children and Young Peoples Services,CYPS - Local Authority,Supplies and Services,338045,Services,04-Jul-2012,208881-ND11C00088,"2,600.00",HMCTS.
Children and Young Peoples Services,CYPS - Local Authority,Supplies and Services,338045,Services,04-Jul-2012,208881-ND11C00098,"2,600.00",HMCTS.
Children and Young Peoples Services,CYPS - Local Authority,Supplies and Services,384507,Miscellaneous Expenses,04-Jul-2012,208947-,500.00,REDACTED - PAYMENT TO INDIVIDUAL
Children and Young Peoples Services,CYPS - Local Authority,Supplies and Services,364999,Grants to Voluntary Organisations,04-Jul-2012,209006-,"1,171.00",NEWTON AYCLIFFE METHODIST CHURCH.
Children and Young Peoples Services,CYPS - Local Authority,Construction Work,908105,Construction work,04-Jul-2012,209008-1488,"2,472.00",NORTHERN ENERGY CONNECTIONS LTD.
Children and Young Peoples Services,CYPS - Local Authority,Supplies and Services,384199,Miscellaneous Expenses,04-Jul-2012,209012-01/05-30/05/2012,"2,071.86",PAM BULMAN.
Children and Young Peoples Services,CYPS - Local Authority,Supplies and Services,360099,Insurances,04-Jul-2012,209047-,"12,342.38",STANDARD SECURITIES.
Children and Young Peoples Services,CYPS - Local Authority,Supplies and Services,360099,Insurances,04-Jul-2012,209047-,"1,609.88",STANDARD SECURITIES.
Children and Young Peoples Services,CYPS - Local Authority,Transport,230007,Contract Hire,04-Jul-2012,2465961-432,"1,200.00",A BARKER.
Children and Young Peoples Services,CYPS - Local Authority,Transport,230007,Contract Hire,04-Jul-2012,2465961-433,800.00,A BARKER.
Children and Young Peoples Services,CYPS - Local Authority,Transport,230007,Contract Hire,04-Jul-2012,2465961-434,825.00,A BARKER.
Children and Young Peoples Services,CYPS - Local Authority,Supplies and Services,344033,Telephones,04-Jul-2012,2466010-NE19493805Q035BF,"1,028.54",BRITISH TELECOMMUNICATIONS PLC.
Children and Young Peoples Services,CYPS - Local Authority,Transport,230007,Contract Hire,04-Jul-2012,2466073-0205,"1,097.25",FMR SILVA PITA.
Children and Young Peoples Services,CYPS - Local Authority,Transport,230007,Contract Hire,04-Jul-2012,2466073-0206,622.95,FMR SILVA PITA.
Children and Young Peoples Services,CYPS - Local Authority,Transport,230007,Contract Hire,04-Jul-2012,2466073-0207,510.00,FMR SILVA PITA.
Children and Young Peoples Services,CYPS - Local Authority,Transport,230007,Contract Hire,04-Jul-2012,2466073-0208,513.90,FMR SILVA PITA.
Children and Young Peoples Services,CYPS - Local Authority,Supplies and Services,338045,Services,04-Jul-2012,2466074-,783.30,FORENSIC PSYCHOLOGICAL SERVICES LTD.
Children and Young Peoples Services,CYPS - Local Authority,Transport,230007,Contract Hire,04-Jul-2012,2466092-07/2012,"1,288.20",HARRY DICKSON.
Children and Young Peoples Services,CYPS - Local Authority,Transport,230007,Contract Hire,04-Jul-2012,2466109-201212,"1,489.12",J & D KELLY.
Children and Young Peoples Services,CYPS - Local Authority,Transport,230007,Contract Hire,04-Jul-2012,2466120-6,880.00,K @ B TAXIS.
Children and Young Peoples Services,CYPS - Local Authority,Transport,230007,Contract Hire,04-Jul-2012,2466123-5,"1,200.00",KD TAXIS.
Children and Young Peoples Services,CYPS - Local Authority,Transport,230007,Contract Hire,04-Jul-2012,2466124-911,"1,305.00",KEN CHAMBERS.
Children and Young Peoples Services,CYPS - Local Authority,Transport,230007,Contract Hire,04-Jul-2012,2466124-913,720.00,KEN CHAMBERS.
Children and Young Peoples Services,CYPS - Local Authority,Transport,230007,Contract Hire,04-Jul-2012,2466124-,"1,200.00",KEN CHAMBERS.
Children and Young Peoples Services,CYPS - Local Authority,Transport,230007,Contract Hire,04-Jul-2012,2466125-00202,805.00,KENNAS KABS.
Children and Young Peoples Services,CYPS - Local Authority,Transport,230007,Contract Hire,04-Jul-2012,2466125-00203,"1,600.00",KENNAS KABS.
Children and Young Peoples Services,CYPS - Local Authority,Transport,230007,Contract Hire,04-Jul-2012,2466126-9,570.00,KEVIN PARKIN.
Children and Young Peoples Services,CYPS - Local Authority,Transport,230007,Contract Hire,04-Jul-2012,2466129-066,"1,280.00",LD TAXIS.
Children and Young Peoples Services,CYPS - Local Authority,Transport,230007,Contract Hire,04-Jul-2012,2466129-067,"1,690.00",LD TAXIS.
Children and Young Peoples Services,CYPS - Local Authority,Transport,230007,Contract Hire,04-Jul-2012,2466129-068,864.00,LD TAXIS.
Children and Young Peoples Services,CYPS - Local Authority,Transport,230007,Contract Hire,04-Jul-2012,2466129-069,640.00,LD TAXIS.
Children and Young Peoples Services,CYPS - Local Authority,Construction Work,908105,Construction work,04-Jul-2012,2466136-12245,"4,240.00",LUCION ENVIRONMENTAL LLP LTD.
Children and Young Peoples Services,CYPS - Local Authority,Premises,125009,Rents,04-Jul-2012,2466138-1206025,"2,028.00",MANDALE INVESTMENTS LTD.
Children and Young Peoples Services,CYPS - Local Authority,Supplies and Services,338099,Services,04-Jul-2012,2466142-,638.70,REDACTED - PAYMENT TO INDIVIDUAL
Children and Young Peoples Services,CYPS - Local Authority,Transport,230007,Contract Hire,04-Jul-2012,2466147-00475,"1,280.00",MICHAELS TRAVEL.
Children and Young Peoples Services,CYPS - Local Authority,Transport,230007,Contract Hire,04-Jul-2012,2466147-00476,"1,440.00",MICHAELS TRAVEL.
Children and Young Peoples Services,CYPS - Local Authority,Transport,230007,Contract Hire,04-Jul-2012,2466147-00477,"1,824.00",MICHAELS TRAVEL.
Children and Young Peoples Services,CYPS - Local Authority,Transport,230007,Contract Hire,04-Jul-2012,2466150-,"1,861.05",MJ TIMNEY.
Children and Young Peoples Services,CYPS - Local Authority,Transport,230007,Contract Hire,04-Jul-2012,2466150-,"1,995.00",MJ TIMNEY.
Children and Young Peoples Services,CYPS - Local Authority,Transport,230007,Contract Hire,04-Jul-2012,2466153-,"1,728.00",MR BW YOUNG.
Children and Young Peoples Services,CYPS - Local Authority,Transport,230007,Contract Hire,04-Jul-2012,2466157-,"1,152.00",MR J AGAR T/A PARK TAXIS.
Children and Young Peoples Services,CYPS - Local Authority,Transport,230007,Contract Hire,04-Jul-2012,2466161-,"1,687.20",MR T GUNN.
Children and Young Peoples Services,CYPS - Local Authority,Transport,230007,Contract Hire,04-Jul-2012,2466161-,"2,255.00",MR T GUNN.
Children and Young Peoples Services,CYPS - Local Authority,Transport,230007,Contract Hire,04-Jul-2012,2466161-,"2,057.79",MR T GUNN.
Children and Young Peoples Services,CYPS - Local Authority,Third Party Payments,440013,Other Third Party Payments,04-Jul-2012,2466165-,664.00,REDACTED - PAYMENT TO INDIVIDUAL
Children and Young Peoples Services,CYPS - Local Authority,Transport,230007,Contract Hire,04-Jul-2012,2466202-7,660.00,PETER HOLMES.
Children and Young Peoples Services,CYPS - Local Authority,Transport,230007,Contract Hire,04-Jul-2012,2466204-217,"1,200.00",PETERLEE EXECUTIVE CARS.
Children and Young Peoples Services,CYPS - Local Authority,Transport,230007,Contract Hire,04-Jul-2012,2466204-221,"1,080.00",PETERLEE EXECUTIVE CARS.
Children and Young Peoples Services,CYPS - Local Authority,Transport,230007,Contract Hire,04-Jul-2012,2466206-0190,690.00,PETER`S PRIVATE HIRE/PETER BEST.
Children and Young Peoples Services,CYPS - Local Authority,Transport,230007,Contract Hire,04-Jul-2012,2466206-0191,"1,650.00",PETER`S PRIVATE HIRE/PETER BEST.
Children and Young Peoples Services,CYPS - Local Authority,Transport,230007,Contract Hire,04-Jul-2012,2466206-0193,600.00,PETER`S PRIVATE HIRE/PETER BEST.
Children and Young Peoples Services,CYPS - Local Authority,Transport,230007,Contract Hire,04-Jul-2012,2466209-734,630.00,PODA LTD.
Children and Young Peoples Services,CYPS - Local Authority,Transport,230007,Contract Hire,04-Jul-2012,2466218-2068,713.10,RICHIES TAXIS.
Children and Young Peoples Services,CYPS - Local Authority,Transport,230007,Contract Hire,04-Jul-2012,2466218-2069,"2,007.25",RICHIES TAXIS.
Children and Young Peoples Services,CYPS - Local Authority,Transport,230007,Contract Hire,04-Jul-2012,2466222-32,570.00,ROAD RUNNERS (N.E) LTD.
Children and Young Peoples Services,CYPS - Local Authority,Transport,230007,Contract Hire,04-Jul-2012,2466222-33,"1,248.00",ROAD RUNNERS (N.E) LTD.
Children and Young Peoples Services,CYPS - Local Authority,Transport,230007,Contract Hire,04-Jul-2012,2466223-041,"1,120.00",ROBBIE`S PRIVATE HIRE.
Children and Young Peoples Services,CYPS - Local Authority,Transport,230007,Contract Hire,04-Jul-2012,2466225-1522,"1,129.76",RONS TAXIS.
Children and Young Peoples Services,CYPS - Local Authority,Transport,230007,Contract Hire,04-Jul-2012,2466225-1523,"1,489.12",RONS TAXIS.
Children and Young Peoples Services,CYPS - Local Authority,Transport,230007,Contract Hire,04-Jul-2012,2466225-1524,640.00,RONS TAXIS.
Children and Young Peoples Services,CYPS - Local Authority,Transport,230007,Contract Hire,04-Jul-2012,2466225-1525,"1,600.00",RONS TAXIS.
Children and Young Peoples Services,CYPS - Local Authority,Transport,230007,Contract Hire,04-Jul-2012,2466235-8,704.00,SHARON`S TAXI.
Children and Young Peoples Services,CYPS - Local Authority,Transport,230007,Contract Hire,04-Jul-2012,2466237-51033,"1,242.88",SHOTTON PRIVATE HIRE.
Children and Young Peoples Services,CYPS - Local Authority,Transport,230007,Contract Hire,04-Jul-2012,2466241-NO44,"2,090.00",SJ MACKENZIE T/A SCOTTS TAXIS.
Children and Young Peoples Services,CYPS - Local Authority,Transport,230007,Contract Hire,04-Jul-2012,2466241-NO45,"2,400.20",SJ MACKENZIE T/A SCOTTS TAXIS.
Children and Young Peoples Services,CYPS - Local Authority,Transport,230007,Contract Hire,04-Jul-2012,2466244-22,"1,318.20",SOUTH HETTON PRIVATE HIRE.
Children and Young Peoples Services,CYPS - Local Authority,Transport,230007,Contract Hire,04-Jul-2012,2466252-119,"3,488.80",STEPHEN MAUDE LTD T/A MAUDES COACHES.
Children and Young Peoples Services,CYPS - Local Authority,Transport,230007,Contract Hire,04-Jul-2012,2466252-120,"1,546.40",STEPHEN MAUDE LTD T/A MAUDES COACHES.
Children and Young Peoples Services,CYPS - Local Authority,Transport,230007,Contract Hire,04-Jul-2012,2466252-121,"3,083.85",STEPHEN MAUDE LTD T/A MAUDES COACHES.
Children and Young Peoples Services,CYPS - Local Authority,Transport,230007,Contract Hire,04-Jul-2012,2466252-122,"2,399.84",STEPHEN MAUDE LTD T/A MAUDES COACHES.
Children and Young Peoples Services,CYPS - Local Authority,Transport,230007,Contract Hire,04-Jul-2012,2466256-038/W012,"1,344.00",TA TRAVEL.
Children and Young Peoples Services,CYPS - Local Authority,Transport,230007,Contract Hire,04-Jul-2012,2466256-038/W023,"1,104.00",TA TRAVEL.
Children and Young Peoples Services,CYPS - Local Authority,Transport,230007,Contract Hire,04-Jul-2012,2466256-038/W062,"2,720.00",TA TRAVEL.
Children and Young Peoples Services,CYPS - Local Authority,Transport,230007,Contract Hire,04-Jul-2012,2466256-038/W084,"2,333.00",TA TRAVEL.
Children and Young Peoples Services,CYPS - Local Authority,Transport,230007,Contract Hire,04-Jul-2012,2466256-038/W3188,"1,501.60",TA TRAVEL.
Children and Young Peoples Services,CYPS - Local Authority,Transport,230007,Contract Hire,04-Jul-2012,2466257-1155,"1,150.00",TAILORMADE TRAVEL.
Children and Young Peoples Services,CYPS - Local Authority,Transport,230007,Contract Hire,04-Jul-2012,2466257-1156,"1,090.20",TAILORMADE TRAVEL.
Children and Young Peoples Services,CYPS - Local Authority,Transport,230007,Contract Hire,04-Jul-2012,2466260-,512.00,TARN`S TAXIS.
Children and Young Peoples Services,CYPS - Local Authority,Transport,230007,Contract Hire,04-Jul-2012,2466265-006/12,"1,040.00",TL TAXIS.
Children and Young Peoples Services,CYPS - Local Authority,Transport,230007,Contract Hire,04-Jul-2012,2466273-A030D,"2,160.00",TRIDENT TAXIS.
Children and Young Peoples Services,CYPS - Local Authority,Transport,230007,Contract Hire,04-Jul-2012,2466275-4,"1,050.00",TT TAXIS.
Children and Young Peoples Services,CYPS - Local Authority,Transport,230007,Contract Hire,04-Jul-2012,2466282-90B,"1,494.62",WE CONNOR.
Children and Young Peoples Services,CYPS - Local Authority,Construction Work,908105,Construction work,04-Jul-2012,2466284-270954,"1,000.00",WYG ENVIRONMENT PLANNING TRANSPORT LTD.
Children and Young Peoples Services,CYPS - Local Authority,Construction Work,908105,Construction work,04-Jul-2012,2466284-270955,890.00,WYG ENVIRONMENT PLANNING TRANSPORT LTD.
Children and Young Peoples Services,CYPS - Local Authority,Construction Work,908105,Construction work,04-Jul-2012,2466284-271013,"1,000.00",WYG ENVIRONMENT PLANNING TRANSPORT LTD.
Children and Young Peoples Services,Dedicated Schools Grant,Transport,230007,Contract Hire,04-Jul-2012,2466101-004,"1,088.00",IAN SOULSBY.
Children and Young Peoples Services,Dedicated Schools Grant,Third Party Payments,425005,Rendered by Voluntary Organisations,04-Jul-2012,2466201-9954,"88,408.00",PERCY HEDLEY FOUNDATION.
Children and Young Peoples Services,Dedicated Schools Grant,Third Party Payments,425005,Rendered by Voluntary Organisations,04-Jul-2012,2466201-9983,"271,947.90",PERCY HEDLEY FOUNDATION.
Children and Young Peoples Services,Dedicated Schools Grant,Employees,080025,Agency Staff,04-Jul-2012,2466261-735779,750.00,TEACHING PERSONNEL LTD.
Children and Young Peoples Services,Dedicated Schools Grant,Employees,080025,Agency Staff,04-Jul-2012,2466261-735780,740.00,TEACHING PERSONNEL LTD.
Children and Young Peoples Services,Dedicated Schools Grant,Employees,080025,Agency Staff,04-Jul-2012,2466261-735781,960.00,TEACHING PERSONNEL LTD.
Children and Young Peoples Services,Dedicated Schools Grant,Employees,080025,Agency Staff,04-Jul-2012,2466261-735782,600.00,TEACHING PERSONNEL LTD.
Children and Young Peoples Services,Dedicated Schools Grant,Employees,080025,Agency Staff,04-Jul-2012,2466261-735783,"1,025.00",TEACHING PERSONNEL LTD.
Corporate Resources,Corporate Services Financing,Debtors,930031,Debtor-outstand insur claims,04-Jul-2012,2466051-188663,"2,000.00",DTZ.
Corporate Resources,Corporate Services Financing,Debtors,930031,Debtor-outstand insur claims,04-Jul-2012,2466145-,"57,000.00",MGL DEMOLITION LTD.
Corporate Resources,Financing- Resources,Supplies and Services,338019,Services,04-Jul-2012,2465978-199783,"1,706.71",ALLPAY.NET LTD.
Corporate Resources,Financing- Resources,Employees,040149,"Recruitment, Instruction and Training",04-Jul-2012,2466121-SINV12019780,700.00,KAPLAN FINANCIAL LTD.
Corporate Resources,ICT Services incl. Design and Print,Supplies and Services,342223,Computers and Communications,04-Jul-2012,2466044-7401941903,"5,940.00",DELL COMPUTER CORPORATION LTD.
Corporate Resources,ICT Services incl. Design and Print,Stock,926900,Stock in hand-Inventory system,04-Jul-2012,2466045-7401942007,755.45,DELL COMPUTER CORPORATION LTD.
Corporate Resources,ICT Services incl. Design and Print,Supplies and Services,332029,"Printing, Stationery and Gen Off Exps",04-Jul-2012,2466067-80132,"1,265.63",ENCORE ENVELOPES LTD.
Corporate Resources,ICT Services incl. Design and Print,Supplies and Services,332029,"Printing, Stationery and Gen Off Exps",04-Jul-2012,2466067-80133,843.50,ENCORE ENVELOPES LTD.
Corporate Resources,ICT Services incl. Design and Print,Supplies and Services,332029,"Printing, Stationery and Gen Off Exps",04-Jul-2012,2466067-80164,"1,233.75",ENCORE ENVELOPES LTD.
Corporate Resources,ICT Services incl. Design and Print,Supplies and Services,342033,Computers and Communications,04-Jul-2012,2466105-11760132,"3,100.00",INSIGHT DIRECT (UK) LTD.
Corporate Resources,ICT Services incl. Design and Print,Supplies and Services,332029,"Printing, Stationery and Gen Off Exps",04-Jul-2012,2466210-581091,868.00,POTTS PRINTERS LTD.
Corporate Resources,ICT Services incl. Design and Print,Supplies and Services,332029,"Printing, Stationery and Gen Off Exps",04-Jul-2012,2466210-581108,"1,206.00",POTTS PRINTERS LTD.
Corporate Resources,ICT Services incl. Design and Print,Supplies and Services,332029,"Printing, Stationery and Gen Off Exps",04-Jul-2012,2466210-581109,"1,685.00",POTTS PRINTERS LTD.
Corporate Resources,ICT Services incl. Design and Print,Supplies and Services,332029,"Printing, Stationery and Gen Off Exps",04-Jul-2012,2466246-24435,598.00,SPD 2000 LTD.
Corporate Resources,ICT Services incl. Design and Print,Supplies and Services,344033,Telephones,04-Jul-2012,2466258-04302377,527.95,TALKTALK BUSINESS.
Corporate Resources,Legal & Democratic Services,Supplies and Services,384965,Miscellaneous Expenses,04-Jul-2012,2466154-05/27,525.00,MR DANIEL JOHNSON.
Corporate Resources,Legal & Democratic Services,Supplies and Services,332047,"Printing, Stationery and Gen Off Exps",04-Jul-2012,2466254-5066547,645.00,SUPPLIES TEAM LTD.
Corporate Resources,Management,Supplies and Services,384197,Miscellaneous Expenses,04-Jul-2012,208807-0004863,"1,179.64",BOX IT NORTH.
Neighbourhood Services,Direct Services,Transport,210057,Repair and Maintenance of Vehicles,04-Jul-2012,209019-925708,620.58,PETERLEE GLASS CO LTD.
Neighbourhood Services,Direct Services,Supplies and Services,304221,Equipment and Materials,04-Jul-2012,209024-139371,602.00,QUILL INTERNATIONAL GROUP.
Neighbourhood Services,Direct Services,Stock,926004,Stock,04-Jul-2012,209025-17172,"1,833.32",REFLEX DESIGN INTERNATIONAL LTD.
Neighbourhood Services,Direct Services,Summary reporting level,720003,Fees and Charges,04-Jul-2012,209066-,"3,662.29",WELLFIELD COMMUNITY SCHOOL.
Neighbourhood Services,Direct Services,Stock,926900,Stock in hand-Inventory system,04-Jul-2012,2465992-SIN169267,"1,173.00",ATF SUPPLIES LTD.
Neighbourhood Services,Direct Services,Stock,926900,Stock in hand-Inventory system,04-Jul-2012,2465992-SIN169476,782.00,ATF SUPPLIES LTD.
Neighbourhood Services,Direct Services,Supplies and Services,304221,Equipment and Materials,04-Jul-2012,2465997-27365,553.00,AYCLIFFE FABRICATIONS LTD.
Neighbourhood Services,Direct Services,Transport,230005,Contract Hire,04-Jul-2012,2466004-279483,900.00,BICKFORD TRUCK HIRE LTD.
Neighbourhood Services,Direct Services,Supplies and Services,324117,Provisions,04-Jul-2012,2466008-22664481,950.69,BRAKE BROS FOODSERVICE LTD.
Neighbourhood Services,Direct Services,Supplies and Services,304221,Equipment and Materials,04-Jul-2012,2466065-059-098771,868.50,EDMUNDSON ELECTRICAL LTD.
Neighbourhood Services,Direct Services,Stock,926900,Stock in hand-Inventory system,04-Jul-2012,2466065-059-099362,942.40,EDMUNDSON ELECTRICAL LTD.
Neighbourhood Services,Direct Services,Stock,926900,Stock in hand-Inventory system,04-Jul-2012,2466065-059-099582,741.70,EDMUNDSON ELECTRICAL LTD.
Neighbourhood Services,Direct Services,Stock,926900,Stock in hand-Inventory system,04-Jul-2012,2466065-059-099642,"1,375.00",EDMUNDSON ELECTRICAL LTD.
Neighbourhood Services,Direct Services,Stock,926900,Stock in hand-Inventory system,04-Jul-2012,2466065-059-099922,741.60,EDMUNDSON ELECTRICAL LTD.
Neighbourhood Services,Direct Services,Stock,926900,Stock in hand-Inventory system,04-Jul-2012,2466065-059-100703,"2,595.65",EDMUNDSON ELECTRICAL LTD.
Neighbourhood Services,Direct Services,Stock,926900,Stock in hand-Inventory system,04-Jul-2012,2466065-059/099402,"2,224.80",EDMUNDSON ELECTRICAL LTD.
Neighbourhood Services,Direct Services,Stock,926900,Stock in hand-Inventory system,04-Jul-2012,2466072-OP/I259927,"1,040.00",FLEMING & CO (MACHINERY) LTD.
Neighbourhood Services,Direct Services,Stock,926900,Stock in hand-Inventory system,04-Jul-2012,2466088-90988511,682.58,HAFELE UK LTD.
Neighbourhood Services,Direct Services,Supplies and Services,304221,Equipment and Materials,04-Jul-2012,2466089-SIN237719,924.15,HANDICARE ACCESSIBILITY LTD.
Neighbourhood Services,Direct Services,Third Party Payments,430101,Rendered by Private Contractors,04-Jul-2012,2466095-INV08895324,609.30,HI Q TYRESERVICES.
Neighbourhood Services,Direct Services,Third Party Payments,430101,Rendered by Private Contractors,04-Jul-2012,2466095-INV08898143,762.12,HI Q TYRESERVICES.
Neighbourhood Services,Direct Services,Third Party Payments,430101,Rendered by Private Contractors,04-Jul-2012,2466095-INV08902037,765.80,HI Q TYRESERVICES.
Neighbourhood Services,Direct Services,Stock,926900,Stock in hand-Inventory system,04-Jul-2012,2466096-1442470804,735.00,HILTI (GB) LTD.
Neighbourhood Services,Direct Services,Debtors,930046,Debtor-leasing,04-Jul-2012,2466133-1300461976,"10,650.00",LINDE CASTLE LTD.
Neighbourhood Services,Direct Services,Construction Work,908105,Construction work,04-Jul-2012,2466136-12241,"1,050.00",LUCION ENVIRONMENTAL LLP LTD.
Neighbourhood Services,Direct Services,Third Party Payments,430100,Rendered by Private Contractors,04-Jul-2012,2466146-SIN070252,"9,777.88",MHS BOILERS LTD.
Neighbourhood Services,Direct Services,Supplies and Services,304221,Equipment and Materials,04-Jul-2012,2466146-SIN070253,"2,490.30",MHS BOILERS LTD.
Neighbourhood Services,Direct Services,"Vehicles, Equipment, Furniture and Fittings",912541,Purchase-vehicles,04-Jul-2012,2466195-,"29,614.00",OUGHTRED & HARRISON (FACILITIES) LTD.
Neighbourhood Services,Direct Services,Stock,926900,Stock in hand-Inventory system,04-Jul-2012,2466198-XL060345,"1,690.66",PARK ELECTRICAL DISTRIBUTORS LTD.
Neighbourhood Services,Direct Services,Stock,926900,Stock in hand-Inventory system,04-Jul-2012,2466198-XL060347,"3,467.00",PARK ELECTRICAL DISTRIBUTORS LTD.
Neighbourhood Services,Direct Services,Supplies and Services,304259,Equipment and Materials,04-Jul-2012,2466211-2671,"4,164.00",POWER BRUSH CO LTD.
Neighbourhood Services,Direct Services,Supplies and Services,304221,Equipment and Materials,04-Jul-2012,2466216-6012,750.00,PROTECTOR SECURITY GROUP LTD.
Neighbourhood Services,Direct Services,Stock,926900,Stock in hand-Inventory system,04-Jul-2012,2466242-4100298249,"2,301.12",SNAPFAST.
Neighbourhood Services,Direct Services,Debtors,930046,Debtor-leasing,04-Jul-2012,2466249-11119271,"12,923.30",SPRINGFIELD MOTOR GROUP.
Neighbourhood Services,Direct Services,Debtors,930046,Debtor-leasing,04-Jul-2012,2466249-11119272,"12,923.30",SPRINGFIELD MOTOR GROUP.
Neighbourhood Services,Direct Services,Stock,926900,Stock in hand-Inventory system,04-Jul-2012,2466259-9028269016,584.74,TARMAC LTD.
Neighbourhood Services,Direct Services,Supplies and Services,304357,Equipment and Materials,04-Jul-2012,2466283-44844,664.29,WERNICK HIRE LTD.
Neighbourhood Services,"Environment,Health & Consumer Protection",Supplies and Services,304040,Equipment and Materials,04-Jul-2012,209065-247,"10,750.00",WEIGHBRIDGE TESTING SERVICES.
Neighbourhood Services,"Environment,Health & Consumer Protection",Employees,040149,"Recruitment, Instruction and Training",04-Jul-2012,2465985-2012055,892.44,AQUA LEISURE SAFETY & TRAINING SERVICES.
Neighbourhood Services,"Environment,Health & Consumer Protection",Employees,040149,"Recruitment, Instruction and Training",04-Jul-2012,2466155-LTC/12/010,866.00,MR G MORGAN.
Neighbourhood Services,"Environment,Health & Consumer Protection",Employees,040149,"Recruitment, Instruction and Training",04-Jul-2012,2466169-0000001086,"1,950.00",NAREC.
Neighbourhood Services,Projects and Business services,Supplies and Services,338027,Services,04-Jul-2012,2466048-4119186,"5,547.50",DICKINSON DEES LLP.
Neighbourhood Services,Projects and Business services,Supplies and Services,338027,Services,04-Jul-2012,2466111-,"7,150.26",JACOBS UK LTD.
Neighbourhood Services,Sport & Leisure,Supplies and Services,336005,Advertising,04-Jul-2012,2465998-45915,538.00,AZTEC COLOUR PRINT NORTH EAST LTD.
Neighbourhood Services,Sport & Leisure,Supplies and Services,324117,Provisions,04-Jul-2012,2466008-22627770,569.92,BRAKE BROS FOODSERVICE LTD.
Neighbourhood Services,Sport & Leisure,Supplies and Services,324001,Provisions,04-Jul-2012,2466017-EW52891094,"1,758.68",CARLSBERG UK LTD.
Neighbourhood Services,Sport & Leisure,Third Party Payments,430100,Rendered by Private Contractors,04-Jul-2012,2466034-PS22173,"4,664.94",COMPETITION LINE UK LTD.
Neighbourhood Services,Sport & Leisure,Summary reporting level,715460,Sales,04-Jul-2012,2466060-,620.00,DURHAM WILDCATS BASKETBALL LTD.
Neighbourhood Services,Sport & Leisure,Supplies and Services,384199,Miscellaneous Expenses,04-Jul-2012,2466113-S4103,"1,180.00",JEFF DOBSON MARQUEE HIRE.
Neighbourhood Services,Sport & Leisure,Third Party Payments,430100,Rendered by Private Contractors,04-Jul-2012,2466271-012012/13,"5,250.00",TRANSFORMING CULTURE.
Neighbourhood Services,Sport & Leisure,Supplies and Services,384700,Miscellaneous Expenses,04-Jul-2012,2466280-9100048086,"55,987.13",UNIVERSITY OF NEWCASTLE UPON TYNE.
Neighbourhood Services,Technical Services,Third Party Payments,430100,Rendered by Private Contractors,04-Jul-2012,209009-DI20144305,"2,092.42",NORTHERN POWERGRID (NORTHEAST) LTD..
Neighbourhood Services,Technical Services,Construction Work,908105,Construction work,04-Jul-2012,2465970-60216682-56,"3,864.00",AECOM LTD.
Neighbourhood Services,Technical Services,Supplies and Services,304221,Equipment and Materials,04-Jul-2012,2465973-16502316,"1,209.67",AGGREGATE INDUSTRIES UK LTD.
Neighbourhood Services,Technical Services,Supplies and Services,304221,Equipment and Materials,04-Jul-2012,2465973-16540072,551.28,AGGREGATE INDUSTRIES UK LTD.
Neighbourhood Services,Technical Services,Supplies and Services,304221,Equipment and Materials,04-Jul-2012,2465973-16545009,547.99,AGGREGATE INDUSTRIES UK LTD.
Neighbourhood Services,Technical Services,Supplies and Services,304221,Equipment and Materials,04-Jul-2012,2465973-16545010,"1,625.66",AGGREGATE INDUSTRIES UK LTD.
Neighbourhood Services,Technical Services,Supplies and Services,304221,Equipment and Materials,04-Jul-2012,2465973-16554106,"1,113.42",AGGREGATE INDUSTRIES UK LTD.
Neighbourhood Services,Technical Services,Supplies and Services,304221,Equipment and Materials,04-Jul-2012,2465973-16554107,"1,079.35",AGGREGATE INDUSTRIES UK LTD.
Neighbourhood Services,Technical Services,Supplies and Services,304221,Equipment and Materials,04-Jul-2012,2465973-16554110,542.52,AGGREGATE INDUSTRIES UK LTD.
Neighbourhood Services,Technical Services,Supplies and Services,304221,Equipment and Materials,04-Jul-2012,2465973-16573580,"1,095.98",AGGREGATE INDUSTRIES UK LTD.
Neighbourhood Services,Technical Services,Supplies and Services,304221,Equipment and Materials,04-Jul-2012,2465973-16593401,735.00,AGGREGATE INDUSTRIES UK LTD.
Neighbourhood Services,Technical Services,Supplies and Services,304221,Equipment and Materials,04-Jul-2012,2465973-16593402,531.99,AGGREGATE INDUSTRIES UK LTD.
Neighbourhood Services,Technical Services,Supplies and Services,304221,Equipment and Materials,04-Jul-2012,2465973-16593404,607.97,AGGREGATE INDUSTRIES UK LTD.
Neighbourhood Services,Technical Services,Supplies and Services,304221,Equipment and Materials,04-Jul-2012,2465973-16593405,"2,042.90",AGGREGATE INDUSTRIES UK LTD.
Neighbourhood Services,Technical Services,Supplies and Services,304221,Equipment and Materials,04-Jul-2012,2465973-16598574,736.56,AGGREGATE INDUSTRIES UK LTD.
Neighbourhood Services,Technical Services,Supplies and Services,304221,Equipment and Materials,04-Jul-2012,2465973-16599282,"1,559.26",AGGREGATE INDUSTRIES UK LTD.
Neighbourhood Services,Technical Services,Supplies and Services,304221,Equipment and Materials,04-Jul-2012,2465973-16599283,"1,336.87",AGGREGATE INDUSTRIES UK LTD.
Neighbourhood Services,Technical Services,Supplies and Services,304221,Equipment and Materials,04-Jul-2012,2465973-16599284,858.90,AGGREGATE INDUSTRIES UK LTD.
Neighbourhood Services,Technical Services,Supplies and Services,304999,Equipment and Materials,04-Jul-2012,2465979-0000009963,"1,164.00",AMBEROL LTD.
Neighbourhood Services,Technical Services,Third Party Payments,460350,Contract Payments,04-Jul-2012,2465996-148,"1,135.00",AWSM FARMS.
Neighbourhood Services,Technical Services,Third Party Payments,460251,Contract Payments,04-Jul-2012,2466015-4122,"9,000.00",BUILDING SOFTWARE LTD.
Neighbourhood Services,Technical Services,Stock,926004,Stock,04-Jul-2012,2466028-90120296,"10,752.69",CLEVELAND POTASH LTD.
Neighbourhood Services,Technical Services,Supplies and Services,304260,Equipment and Materials,04-Jul-2012,2466081-7792372,680.60,GB OILS T/A BRETT FUELS.
Neighbourhood Services,Technical Services,Supplies and Services,304260,Equipment and Materials,04-Jul-2012,2466081-7828988,674.40,GB OILS T/A BRETT FUELS.
Neighbourhood Services,Technical Services,Supplies and Services,304260,Equipment and Materials,04-Jul-2012,2466081-7879277,647.35,GB OILS T/A BRETT FUELS.
Neighbourhood Services,Technical Services,Third Party Payments,430100,Rendered by Private Contractors,04-Jul-2012,2466213-,589.60,PREMIER TRAFFIC MANAGEMENT LTD.
Neighbourhood Services,Technical Services,Supplies and Services,304221,Equipment and Materials,04-Jul-2012,2466259-9028353276,619.56,TARMAC LTD.
RED HRA,Housing Revenue Account,Supplies and Services,308011,Furniture,04-Jul-2012,2466083-031455,594.00,GODFREY SYRETT LTD.
RED HRA,Housing Revenue Account,Construction Work,908105,Construction work,04-Jul-2012,2466170-6700,970.00,NELSONS OF DURHAM.
RED HRA,HRA Capital,Construction Work,908105,Construction work,04-Jul-2012,208882-SIN047334,"3,074.00",HODGSON & ALLON LTD.
RED HRA,HRA Capital,Construction Work,908105,Construction work,04-Jul-2012,2466149-CON53327,711.00,MIS ENVIRONMENTAL LTD.
RED HRA,HRA Capital,Construction Work,908105,Construction work,04-Jul-2012,2466149-CON53719,595.00,MIS ENVIRONMENTAL LTD.
RED HRA,HRA Capital,Construction Work,908105,Construction work,04-Jul-2012,2466149-CON53752,767.00,MIS ENVIRONMENTAL LTD.
Regeneration & Economic Development,Economic Development and Housing,Other Expenses,914001,Other capital expenses,04-Jul-2012,209015-,"4,207.12",REDACTED - PAYMENT TO INDIVIDUAL
Regeneration & Economic Development,Economic Development and Housing,Supplies and Services,384999,Miscellaneous Expenses,04-Jul-2012,209048-,"10,000.00",REDACTED - PAYMENT TO INDIVIDUAL
Regeneration & Economic Development,Economic Development and Housing,Supplies and Services,384437,Miscellaneous Expenses,04-Jul-2012,2466024-396441,"1,041.29",CHRISTINE NUGENT BUSINESS TRAVEL LTD.
Regeneration & Economic Development,Economic Development and Housing,Supplies and Services,384437,Miscellaneous Expenses,04-Jul-2012,2466054-15736,590.00,DURHAM CITY COACHES.
Regeneration & Economic Development,Economic Development and Housing,Supplies and Services,384437,Miscellaneous Expenses,04-Jul-2012,2466054-15737,"1,440.00",DURHAM CITY COACHES.
Regeneration & Economic Development,Economic Development and Housing,Supplies and Services,384437,Miscellaneous Expenses,04-Jul-2012,2466054-15743,"1,625.00",DURHAM CITY COACHES.
Regeneration & Economic Development,Economic Development and Housing,Supplies and Services,384437,Miscellaneous Expenses,04-Jul-2012,2466054-15754,"2,450.00",DURHAM CITY COACHES.
Regeneration & Economic Development,Economic Development and Housing,Supplies and Services,384437,Miscellaneous Expenses,04-Jul-2012,2466054-15781,"2,450.00",DURHAM CITY COACHES.
Regeneration & Economic Development,Economic Development and Housing,Supplies and Services,384437,Miscellaneous Expenses,04-Jul-2012,2466084-0992,"1,530.00",GREEN MOUNTAIN TRAVEL LTD.
Regeneration & Economic Development,Economic Development and Housing,Supplies and Services,384437,Miscellaneous Expenses,04-Jul-2012,2466097-008332,"2,195.00",HODGSONS COACH OPERATORS LTD.
Regeneration & Economic Development,Economic Development and Housing,Supplies and Services,384437,Miscellaneous Expenses,04-Jul-2012,2466097-008333,"2,833.46",HODGSONS COACH OPERATORS LTD.
Regeneration & Economic Development,Economic Development and Housing,Supplies and Services,384437,Miscellaneous Expenses,04-Jul-2012,2466097-008334,"2,833.46",HODGSONS COACH OPERATORS LTD.
Regeneration & Economic Development,Economic Development and Housing,Supplies and Services,384437,Miscellaneous Expenses,04-Jul-2012,2466097-008358,"2,195.00",HODGSONS COACH OPERATORS LTD.
Regeneration & Economic Development,Economic Development and Housing,Supplies and Services,384437,Miscellaneous Expenses,04-Jul-2012,2466097-008359,"2,895.00",HODGSONS COACH OPERATORS LTD.
Regeneration & Economic Development,Economic Development and Housing,Supplies and Services,384437,Miscellaneous Expenses,04-Jul-2012,2466097-008360,"2,988.46",HODGSONS COACH OPERATORS LTD.
Regeneration & Economic Development,Economic Development and Housing,Supplies and Services,384199,Miscellaneous Expenses,04-Jul-2012,2466104-4752,967.85,INGRAMS REMOVERS & STORERS.
Regeneration & Economic Development,Economic Development and Housing,Other Expenses,914001,Other capital expenses,04-Jul-2012,2466119-,"1,000.00",REDACTED - PAYMENT TO INDIVIDUAL
Regeneration & Economic Development,Economic Development and Housing,Other Expenses,914001,Other capital expenses,04-Jul-2012,2466170-6760,551.25,NELSONS OF DURHAM.
Regeneration & Economic Development,Economic Development and Housing,Premises,120009,Energy Costs,04-Jul-2012,2466182-NNO7BCN7,"1,242.44",NPOWER.
Regeneration & Economic Development,Economic Development and Housing,Premises,120009,Energy Costs,04-Jul-2012,2466182-NNO7BCN8,"1,289.27",NPOWER.
Regeneration & Economic Development,Economic Development and Housing,Premises,120009,Energy Costs,04-Jul-2012,2466182-NNO7BCPB,"1,438.82",NPOWER.
Regeneration & Economic Development,Economic Development and Housing,Premises,120009,Energy Costs,04-Jul-2012,2466182-NNO7BCX8,782.62,NPOWER.
Regeneration & Economic Development,Economic Development and Housing,Supplies and Services,364320,Grants to Voluntary Organisations,04-Jul-2012,2466185-354,846.00,OLD MANSE GUEST HOUSE.
Regeneration & Economic Development,Economic Development and Housing,Supplies and Services,364320,Grants to Voluntary Organisations,04-Jul-2012,2466185-355,940.00,OLD MANSE GUEST HOUSE.
Regeneration & Economic Development,Economic Development and Housing,Supplies and Services,364320,Grants to Voluntary Organisations,04-Jul-2012,2466185-356,799.00,OLD MANSE GUEST HOUSE.
Regeneration & Economic Development,Economic Development and Housing,Supplies and Services,384437,Miscellaneous Expenses,04-Jul-2012,2466196-F74412069/2,581.00,P & O FERRIES HOLDINGS LTD.
Regeneration & Economic Development,Economic Development and Housing,Supplies and Services,384437,Miscellaneous Expenses,04-Jul-2012,2466196-F74412180/2,581.00,P & O FERRIES HOLDINGS LTD.
Regeneration & Economic Development,Economic Development and Housing,Payments In Advance,932001,Payments in advance,04-Jul-2012,2466272-,"2,445.39",TRAVELEX PAYMENTS LTD.
Regeneration & Economic Development,Housing General Fund,Cap Exp on Grants & Other Financial Assistance (REFCUS),918401,Capital grants,04-Jul-2012,208793-,"3,503.00",REDACTED - PAYMENT TO INDIVIDUAL
Regeneration & Economic Development,RED Departmental Support Costs,Employees,080025,Agency Staff,04-Jul-2012,2466033-515856,"183,787.57",COMENSURA LTD.
Regeneration & Economic Development,"Spatial Policy, Planning, Assets & Environment",Supplies and Services,384199,Miscellaneous Expenses,04-Jul-2012,209037-10981,"1,000.00",SH TV.
Regeneration & Economic Development,"Spatial Policy, Planning, Assets & Environment",Supplies and Services,384199,Miscellaneous Expenses,04-Jul-2012,2466059-241273,"2,685.00",DURHAM UNIVERSITY.
Regeneration & Economic Development,Transport,Other Expenses,914001,Other capital expenses,04-Jul-2012,208799-EXR/125,"3,853.20",AUTOLINK CONCESSIONAIRES (A19) LTD.
Regeneration & Economic Development,Transport,Supplies and Services,338045,Services,04-Jul-2012,208957-87864-08/06/2012,"10,994.68",MR EDWIN SIMPSON.
Regeneration & Economic Development,Transport,Third Party Payments,430100,Rendered by Private Contractors,04-Jul-2012,2466036-437,675.00,COUNTY DURHAM EMS.
Adults Wellbeing and Health,Commissioning inc Supporting People,Supplies and Services,324001,Provisions,05-Jul-2012,2466398-9100360925,631.24,COCA COLA ENTERPRISES LTD.
Adults Wellbeing and Health,Commissioning inc Supporting People,Supplies and Services,384540,Miscellaneous Expenses,05-Jul-2012,2466860-2457,"3,400.00",SUMO DESIGN LTD.
Adults Wellbeing and Health,Commissioning inc Supporting People,Supplies and Services,336005,Advertising,05-Jul-2012,2466732-7279,"1,193.50",PA PROMOTIONS LTD.
Adults Wellbeing and Health,Head of Adults,Supplies and Services,324117,Provisions,05-Jul-2012,2466352-22673312,523.58,BRAKE BROS FOODSERVICE LTD.
Adults Wellbeing and Health,Head of Adults,Supplies and Services,384619,Miscellaneous Expenses,05-Jul-2012,2466397-3136845,"143,269.80",CO DURHAM & DARLINGTON NHS FOUNDATION TRUST.
Adults Wellbeing and Health,Head of Adults,Supplies and Services,384619,Miscellaneous Expenses,05-Jul-2012,2466397-3136847,"111,227.32",CO DURHAM & DARLINGTON NHS FOUNDATION TRUST.
Adults Wellbeing and Health,Head of Adults,Third Party Payments,472101,Purchase of Care,05-Jul-2012,2466727-,955.58,ORCHARD HOME CARE SERVICES LTD.
Adults Wellbeing and Health,Head of Adults,Cap Exp on Grants & Other Financial Assistance (REFCUS),918401,Capital grants,05-Jul-2012,2466779-CLG1567,"1,415.83",RENDLES HOUSE FURNISHER.
Adults Wellbeing and Health,Social Inclusion,Supplies and Services,312013,"Newspapers, Books and Periodicals",05-Jul-2012,2466324-3512827,630.00,ASKEWS & HOLTS LIBRARY SERVICES LTD.
Adults Wellbeing and Health,Social Inclusion,Supplies and Services,312009,"Newspapers, Books and Periodicals",05-Jul-2012,2466742-1451601,659.37,PETERS LTD.
Adults Wellbeing and Health,Social Inclusion,Supplies and Services,384199,Miscellaneous Expenses,05-Jul-2012,2466796-4209,"3,528.14",S & D TRAINING.
Adults Wellbeing and Health,Social Inclusion,Supplies and Services,312013,"Newspapers, Books and Periodicals",05-Jul-2012,2466948-63054,702.00,WF HOWES LTD.
Adults Wellbeing and Health,Social Inclusion,Supplies and Services,384199,Miscellaneous Expenses,05-Jul-2012,2466419-,"1,180.80",COUNTY DURHAM FURNITURE HELP SCHEME.
Adults Wellbeing and Health,Social Inclusion,Supplies and Services,384199,Miscellaneous Expenses,05-Jul-2012,2466419-,"1,484.80",COUNTY DURHAM FURNITURE HELP SCHEME.
Adults Wellbeing and Health,Social Inclusion,Supplies and Services,384199,Miscellaneous Expenses,05-Jul-2012,2466419-,"1,819.20",COUNTY DURHAM FURNITURE HELP SCHEME.
Adults Wellbeing and Health,Social Inclusion,Supplies and Services,384199,Miscellaneous Expenses,05-Jul-2012,2466419-,"1,393.60",COUNTY DURHAM FURNITURE HELP SCHEME.
Assistant Chief Executive,Partnerships & Community Engagement Div.,Transfer Payments,525030,Other,05-Jul-2012,2466340,"3,500.00",BELMONT COMMUNITY ASSOCIATION.
Assistant Chief Executive,Partnerships & Community Engagement Div.,Transfer Payments,525030,Other,05-Jul-2012,2466511-,600.00,FRIENDS OF HEALTHWORKS.
Assistant Chief Executive,Partnerships & Community Engagement Div.,Transfer Payments,525030,Other,05-Jul-2012,2466515-,"2,000.00",GAINFORD (MONTALBO) VILLAGE HALL ASSOCATION.
Assistant Chief Executive,Partnerships & Community Engagement Div.,Transfer Payments,525030,Other,05-Jul-2012,2466685-,500.00,NEWFIELD & PELTON LANE ENDS RESIDENTS ASSOCIATION.
Assistant Chief Executive,Partnerships & Community Engagement Div.,Cap Exp on Grants & Other Financial Assistance (REFCUS),918004,Contributions to other bodies,05-Jul-2012,2466951-,"2,000.00",WILLINGTON CRICKET CLUB.
Children and Young Peoples Services,CYPS - Local Authority,Transport,230007,Contract Hire,05-Jul-2012,2466293-AA491,"1,112.00",AA MINIBUS HIRE.
Children and Young Peoples Services,CYPS - Local Authority,Transport,230007,Contract Hire,05-Jul-2012,2466293-AA492,"1,040.00",AA MINIBUS HIRE.
Children and Young Peoples Services,CYPS - Local Authority,Transport,230007,Contract Hire,05-Jul-2012,2466295-A39/S,"1,288.00",AABAT TAXIS.
Children and Young Peoples Services,CYPS - Local Authority,Transport,230007,Contract Hire,05-Jul-2012,2466295-A43/S,"1,144.63",AABAT TAXIS.
Children and Young Peoples Services,CYPS - Local Authority,Transport,230007,Contract Hire,05-Jul-2012,2466295-A44/S,"1,272.32",AABAT TAXIS.
Children and Young Peoples Services,CYPS - Local Authority,Transport,230007,Contract Hire,05-Jul-2012,2466295-B1/S,"1,360.00",AABAT TAXIS.
Children and Young Peoples Services,CYPS - Local Authority,Transport,230007,Contract Hire,05-Jul-2012,2466295-B2/S,"1,216.00",AABAT TAXIS.
Children and Young Peoples Services,CYPS - Local Authority,Transport,230007,Contract Hire,05-Jul-2012,2466295-B3/S,"1,352.48",AABAT TAXIS.
Children and Young Peoples Services,CYPS - Local Authority,Transport,230007,Contract Hire,05-Jul-2012,2466295-B4/S,"1,408.48",AABAT TAXIS.
Children and Young Peoples Services,CYPS - Local Authority,Transport,230007,Contract Hire,05-Jul-2012,2466295-B8/S,840.00,AABAT TAXIS.
Children and Young Peoples Services,CYPS - Local Authority,Transport,230007,Contract Hire,05-Jul-2012,2466297-43,960.00,ABLE NOVAK TAXIS.
Children and Young Peoples Services,CYPS - Local Authority,Transport,230007,Contract Hire,05-Jul-2012,2466297-,"1,200.00",ABLE NOVAK TAXIS.
Children and Young Peoples Services,CYPS - Local Authority,Transfer Payments,510026,School Children,05-Jul-2012,2466353-,"5,000.00",BRANDON HAPPYTIMES DAYCARE.
Children and Young Peoples Services,CYPS - Local Authority,Supplies and Services,338028,Services,05-Jul-2012,2466374-,977.38,CARES (UK) LTD.
Children and Young Peoples Services,CYPS - Local Authority,Transport,230007,Contract Hire,05-Jul-2012,2466399-182,800.00,COLIN HOLMES.
Children and Young Peoples Services,CYPS - Local Authority,Transport,230007,Contract Hire,05-Jul-2012,2466399-183,880.00,COLIN HOLMES.
Children and Young Peoples Services,CYPS - Local Authority,Transport,230005,Contract Hire,05-Jul-2012,2466521-579,"1,386.00",GEM TRAVEL.
Children and Young Peoples Services,CYPS - Local Authority,Premises,125009,Rents,05-Jul-2012,2466537-GH3029,"1,010.59",GROUNDWORK NORTH EAST.
Children and Young Peoples Services,CYPS - Local Authority,Transport,230007,Contract Hire,05-Jul-2012,2466587-053,529.55,J YOUNG T/A VIP TAXIS.
Children and Young Peoples Services,CYPS - Local Authority,Transport,230007,Contract Hire,05-Jul-2012,2466587-054,"1,536.00",J YOUNG T/A VIP TAXIS.
Children and Young Peoples Services,CYPS - Local Authority,Transport,230007,Contract Hire,05-Jul-2012,2466587-055,"3,215.52",J YOUNG T/A VIP TAXIS.
Children and Young Peoples Services,CYPS - Local Authority,Transport,230007,Contract Hire,05-Jul-2012,2466587-056,819.00,J YOUNG T/A VIP TAXIS.
Children and Young Peoples Services,CYPS - Local Authority,Transport,230007,Contract Hire,05-Jul-2012,2466587-058,"1,875.00",J YOUNG T/A VIP TAXIS.
Children and Young Peoples Services,CYPS - Local Authority,Transport,230007,Contract Hire,05-Jul-2012,2466662-31,608.00,MR PETER YOUNG.
Children and Young Peoples Services,CYPS - Local Authority,Transport,230007,Contract Hire,05-Jul-2012,2466663-11B,608.00,MR RAYMOND RENWICK.
Children and Young Peoples Services,CYPS - Local Authority,Transport,230007,Contract Hire,05-Jul-2012,2466664-,876.00,MR STEVEN WILSON.
Children and Young Peoples Services,CYPS - Local Authority,Supplies and Services,338089,Services,05-Jul-2012,2466665-,"1,408.90",MRS ADELE GLADMAN.
Children and Young Peoples Services,CYPS - Local Authority,Transport,230007,Contract Hire,05-Jul-2012,2466728-4806,"2,901.14",OVERLANDER LTD.
Children and Young Peoples Services,CYPS - Local Authority,Transport,230007,Contract Hire,05-Jul-2012,2466741-216,608.00,PETERLEE EXECUTIVE CARS.
Children and Young Peoples Services,CYPS - Local Authority,Transport,230007,Contract Hire,05-Jul-2012,2466741-218,875.00,PETERLEE EXECUTIVE CARS.
Children and Young Peoples Services,CYPS - Local Authority,Supplies and Services,338089,Services,05-Jul-2012,2466754-,720.00,PREMIER ELITE SOCIAL CARE LTD.
Children and Young Peoples Services,CYPS - Local Authority,Transport,230007,Contract Hire,05-Jul-2012,2466774-15,"1,993.60",RAYNERS COACHES.
Children and Young Peoples Services,CYPS - Local Authority,Construction Work,908105,Construction work,05-Jul-2012,2466780-87183,"9,037.00",RHODAR LTD.
Children and Young Peoples Services,CYPS - Local Authority,Transport,230007,Contract Hire,05-Jul-2012,2466786-6227,"10,267.20",ROBERTS OF WINGATE.
Children and Young Peoples Services,CYPS - Local Authority,Transport,230007,Contract Hire,05-Jul-2012,2466786-6228,"2,642.56",ROBERTS OF WINGATE.
Children and Young Peoples Services,CYPS - Local Authority,Transport,230007,Contract Hire,05-Jul-2012,2466786-6229,"2,616.64",ROBERTS OF WINGATE.
Children and Young Peoples Services,CYPS - Local Authority,Supplies and Services,338035,Services,05-Jul-2012,2466788-5115,"2,838.00",ROCKSCHOOL LTD.
Children and Young Peoples Services,CYPS - Local Authority,Transport,230007,Contract Hire,05-Jul-2012,2466797-SO10/49,"1,409.12",S & S TRAVEL LTD.
Children and Young Peoples Services,CYPS - Local Authority,Transport,230007,Contract Hire,05-Jul-2012,2466797-W026/49,"1,425.12",S & S TRAVEL LTD.
Children and Young Peoples Services,CYPS - Local Authority,Transport,230007,Contract Hire,05-Jul-2012,2466797-W042/49,"1,377.12",S & S TRAVEL LTD.
Children and Young Peoples Services,CYPS - Local Authority,Transport,230007,Contract Hire,05-Jul-2012,2466827-,"2,215.48",SIMON ELLIFF.
Children and Young Peoples Services,CYPS - Local Authority,Construction Work,908105,Construction work,05-Jul-2012,2466829-,"68,779.19",SIR ROBERT MCALPINE LTD.
Children and Young Peoples Services,CYPS - Local Authority,Construction Work,908105,Construction work,05-Jul-2012,2466829-,"44,588.72",SIR ROBERT MCALPINE LTD.
Children and Young Peoples Services,CYPS - Local Authority,Transport,230007,Contract Hire,05-Jul-2012,2466835-1630,"2,144.00",SNOWDON COACHES.
Children and Young Peoples Services,CYPS - Local Authority,Transport,230007,Contract Hire,05-Jul-2012,2466835-1631,"5,248.00",SNOWDON COACHES.
Children and Young Peoples Services,CYPS - Local Authority,Transport,230007,Contract Hire,05-Jul-2012,2466835-1632,"1,984.00",SNOWDON COACHES.
Children and Young Peoples Services,CYPS - Local Authority,Transport,230007,Contract Hire,05-Jul-2012,2466835-1633,"8,280.00",SNOWDON COACHES.
Children and Young Peoples Services,CYPS - Local Authority,Transport,230007,Contract Hire,05-Jul-2012,2466835-1636,910.00,SNOWDON COACHES.
Children and Young Peoples Services,CYPS - Local Authority,Transport,230007,Contract Hire,05-Jul-2012,2466848-,532.00,SPENNYMOOR TAXIS.
Children and Young Peoples Services,CYPS - Local Authority,Supplies and Services,384199,Miscellaneous Expenses,05-Jul-2012,2466849-6035,937.50,SPRINGBOARD SUNDERLAND.
Children and Young Peoples Services,CYPS - Local Authority,Transport,230007,Contract Hire,05-Jul-2012,2466870-51506A,"1,328.00",T MOORE & SON.
Children and Young Peoples Services,CYPS - Local Authority,Transport,230007,Contract Hire,05-Jul-2012,2466870-51606B,"1,073.76",T MOORE & SON.
Children and Young Peoples Services,CYPS - Local Authority,Transport,230007,Contract Hire,05-Jul-2012,2466870-51706C,556.48,T MOORE & SON.
Children and Young Peoples Services,CYPS - Local Authority,Transport,230007,Contract Hire,05-Jul-2012,2466870-51906E,"1,113.12",T MOORE & SON.
Children and Young Peoples Services,CYPS - Local Authority,Transport,230007,Contract Hire,05-Jul-2012,2466870-52006F,624.00,T MOORE & SON.
Children and Young Peoples Services,CYPS - Local Authority,Transport,230007,Contract Hire,05-Jul-2012,2466870-52106G,512.00,T MOORE & SON.
Children and Young Peoples Services,CYPS - Local Authority,Transport,230007,Contract Hire,05-Jul-2012,2466871-1744,826.00,TALBOTS TAXIS.
Children and Young Peoples Services,CYPS - Local Authority,Transport,230007,Contract Hire,05-Jul-2012,2466871-1748,"1,212.00",TALBOTS TAXIS.
Children and Young Peoples Services,CYPS - Local Authority,Transport,230007,Contract Hire,05-Jul-2012,2466875-,"1,230.00",TAYLOR`S TAXIS.
Children and Young Peoples Services,CYPS - Local Authority,Supplies and Services,384199,Miscellaneous Expenses,05-Jul-2012,2466876-0000001160,"32,900.00",TDR LTD.
Children and Young Peoples Services,CYPS - Local Authority,Transport,230007,Contract Hire,05-Jul-2012,2466893-19,744.00,THE TAXI CO.
Children and Young Peoples Services,CYPS - Local Authority,Transport,230007,Contract Hire,05-Jul-2012,2466893-20,645.00,THE TAXI CO.
Children and Young Peoples Services,CYPS - Local Authority,Transport,230007,Contract Hire,05-Jul-2012,2466893-24,"2,080.00",THE TAXI CO.
Children and Young Peoples Services,CYPS - Local Authority,Transport,230007,Contract Hire,05-Jul-2012,2466920-0651,"3,472.32",TYNESIDE TRAVEL LTD.
Children and Young Peoples Services,CYPS - Local Authority,Transport,230007,Contract Hire,05-Jul-2012,2466937-38-29/6/12,992.00,WALTONS TAXIS.
Children and Young Peoples Services,CYPS - Local Authority,Transport,230007,Contract Hire,05-Jul-2012,2466940-000483,"1,495.20",WATSON OF SPENNYMOOR.
Children and Young Peoples Services,CYPS - Local Authority,Transport,230007,Contract Hire,05-Jul-2012,2466941-631,784.00,WAYNE`S TAXIS.
Children and Young Peoples Services,CYPS - Local Authority,Transport,230007,Contract Hire,05-Jul-2012,2466941-632,"1,360.00",WAYNE`S TAXIS.
Children and Young Peoples Services,CYPS - Local Authority,Transport,230007,Contract Hire,05-Jul-2012,2466941-633,"1,530.24",WAYNE`S TAXIS.
Children and Young Peoples Services,CYPS - Local Authority,Transport,230007,Contract Hire,05-Jul-2012,2466943-4097,615.52,WEARDALE PRIVATE HIRE.
Children and Young Peoples Services,CYPS - Local Authority,Transport,230007,Contract Hire,05-Jul-2012,2466943-4098,"1,474.40",WEARDALE PRIVATE HIRE.
Children and Young Peoples Services,CYPS - Local Authority,Transport,230007,Contract Hire,05-Jul-2012,2466943-4099,"2,496.00",WEARDALE PRIVATE HIRE.
Children and Young Peoples Services,CYPS - Local Authority,Transport,230007,Contract Hire,05-Jul-2012,2466943-4102,"1,088.00",WEARDALE PRIVATE HIRE.
Children and Young Peoples Services,CYPS - Local Authority,Transport,230007,Contract Hire,05-Jul-2012,2466945-201206,832.00,WENDYS` TAXIS.
Children and Young Peoples Services,CYPS - Local Authority,Transport,230007,Contract Hire,05-Jul-2012,2466955-02/02/12-6,887.00,WOLSINGHAM TAXIS.
Children and Young Peoples Services,CYPS - Local Authority,Transport,230007,Contract Hire,05-Jul-2012,2466956-14,"1,155.84",WPM TAXIS.
Children and Young Peoples Services,Dedicated Schools Grant,Transport,230007,Contract Hire,05-Jul-2012,2466662-30,"1,440.00",MR PETER YOUNG.
Corporate Resources,Financing- Resources,Supplies and Services,372009,Subscriptions,05-Jul-2012,2466337-9000136917,"1,000.00",BARNSLEY METROPOLITAN BOROUGH COUNCIL.
Corporate Resources,Financing- Resources,Supplies and Services,384180,Miscellaneous Expenses,05-Jul-2012,2466627-0595898,"3,951.79",LOOMIS UK LTD.
Corporate Resources,Financing- Resources,Supplies and Services,384180,Miscellaneous Expenses,05-Jul-2012,2466627-0602230,"4,069.77",LOOMIS UK LTD.
Corporate Resources,Financing- Resources,Employees,080025,Agency Staff,05-Jul-2012,2466818-90678748,"5,735.00",SERCO LTD.
Corporate Resources,Human Resources Total,Supplies and Services,338210,Services,05-Jul-2012,2466500-172664,"1,485.00",FIRSTASSIST SERVICES LTD.
Corporate Resources,Human Resources Total,Supplies and Services,338210,Services,05-Jul-2012,2466500-172665,"1,485.00",FIRSTASSIST SERVICES LTD.
Corporate Resources,ICT Services incl. Design and Print,Supplies and Services,384199,Miscellaneous Expenses,05-Jul-2012,2466302-3884/12192,735.00,AE ROBB & ASSOCIATES.
Corporate Resources,ICT Services incl. Design and Print,Stock,926900,Stock in hand-Inventory system,05-Jul-2012,2466539-INV0144360,"1,099.54",GV MULTI MEDIA LTD.
Corporate Resources,ICT Services incl. Design and Print,Supplies and Services,304639,Equipment and Materials,05-Jul-2012,2466572-88297,557.49,INCLUSIVE TECHNOLOGY LTD.
Corporate Resources,ICT Services incl. Design and Print,Stock,926900,Stock in hand-Inventory system,05-Jul-2012,2466578-11765959,"1,999.82",INSIGHT DIRECT (UK) LTD.
Corporate Resources,ICT Services incl. Design and Print,Employees,040149,"Recruitment, Instruction and Training",05-Jul-2012,2466927-4035568,595.00,UNIVERSITY OF SUNDERLAND ENTERPRISES LTD.
Corporate Resources,ICT Services incl. Design and Print,Supplies and Services,304245,Equipment and Materials,05-Jul-2012,2466961-968190770,565.97,XEROX OFFICE SUPPLIES.
Neighbourhood Services,Direct Services,Stock,926900,Stock in hand-Inventory system,05-Jul-2012,2466292-LLI254150,"1,541.50",A THOMPSON & SONS LTD.
Neighbourhood Services,Direct Services,Third Party Payments,430100,Rendered by Private Contractors,05-Jul-2012,2466333-45512,850.73,BAILEYS BLINDS CO LTD.
Neighbourhood Services,Direct Services,Third Party Payments,430100,Rendered by Private Contractors,05-Jul-2012,2466333-45516,590.00,BAILEYS BLINDS CO LTD.
Neighbourhood Services,Direct Services,Third Party Payments,430100,Rendered by Private Contractors,05-Jul-2012,2466379-12529,"3,414.97",CATHEDRAL LOCK & SAFE SERVICES LTD.
Neighbourhood Services,Direct Services,Third Party Payments,430100,Rendered by Private Contractors,05-Jul-2012,2466379-12550,"1,241.89",CATHEDRAL LOCK & SAFE SERVICES LTD.
Neighbourhood Services,Direct Services,Transport,230005,Contract Hire,05-Jul-2012,2466400-24619,550.00,COLLETT TRANSPORT SERVICES LTD.
Neighbourhood Services,Direct Services,Transport,230005,Contract Hire,05-Jul-2012,2466400-24622,550.00,COLLETT TRANSPORT SERVICES LTD.
Neighbourhood Services,Direct Services,Third Party Payments,430100,Rendered by Private Contractors,05-Jul-2012,2466444-287034,"1,556.80",DESIGNPLAN LIGHTING LTD.
Neighbourhood Services,Direct Services,Stock,926900,Stock in hand-Inventory system,05-Jul-2012,2466467-059-100219,530.00,EDMUNDSON ELECTRICAL LTD.
Neighbourhood Services,Direct Services,Stock,926900,Stock in hand-Inventory system,05-Jul-2012,2466467-059-100286,789.00,EDMUNDSON ELECTRICAL LTD.
Neighbourhood Services,Direct Services,Supplies and Services,304221,Equipment and Materials,05-Jul-2012,2466467-059-100293,542.50,EDMUNDSON ELECTRICAL LTD.
Neighbourhood Services,Direct Services,Premises,145009,Cleaning and Domestic Supplies,05-Jul-2012,2466492-16995,620.16,EXTRACLEAN.
Neighbourhood Services,Direct Services,Supplies and Services,304221,Equipment and Materials,05-Jul-2012,2466508-6/265389,528.11,FRED WILLIAMSON & SONS LTD.
Neighbourhood Services,Direct Services,Supplies and Services,304221,Equipment and Materials,05-Jul-2012,2466518-7889373,"1,936.03",GB OILS T/A BRETT FUELS.
Neighbourhood Services,Direct Services,Supplies and Services,304221,Equipment and Materials,05-Jul-2012,2466552-4379073,"1,799.80",HEADLAM (FLOORCOVERING DISTRIBUTORS) LTD.
Neighbourhood Services,Direct Services,Supplies and Services,304221,Equipment and Materials,05-Jul-2012,2466552-4379419,"1,778.25",HEADLAM (FLOORCOVERING DISTRIBUTORS) LTD.
Neighbourhood Services,Direct Services,Supplies and Services,304221,Equipment and Materials,05-Jul-2012,2466564-B33/0042369,804.75,HOWDEN JOINERY LTD.
Neighbourhood Services,Direct Services,Supplies and Services,304221,Equipment and Materials,05-Jul-2012,2466564-B33/0042378,741.42,HOWDEN JOINERY LTD.
Neighbourhood Services,Direct Services,Third Party Payments,430100,Rendered by Private Contractors,05-Jul-2012,2466646-SIN070800,844.12,MHS BOILERS LTD.
Neighbourhood Services,Direct Services,Third Party Payments,430100,Rendered by Private Contractors,05-Jul-2012,2466653-7135/90453204,"1,639.00",MITIE PROPERTY SERVICES (UK) LTD.
Neighbourhood Services,Direct Services,Supplies and Services,304221,Equipment and Materials,05-Jul-2012,2466749-4120/134572,585.83,PLUMBING TRADE SUPPLIES LTD.
Neighbourhood Services,Direct Services,Debtors,930046,Debtor-leasing,05-Jul-2012,2466798-10009761,"25,112.00",S JENNINGS LTD.
Neighbourhood Services,Direct Services,Debtors,930046,Debtor-leasing,05-Jul-2012,2466798-10009762,"25,112.00",S JENNINGS LTD.
Neighbourhood Services,Direct Services,Debtors,930046,Debtor-leasing,05-Jul-2012,2466798-10009763,"25,112.00",S JENNINGS LTD.
Neighbourhood Services,Direct Services,Third Party Payments,430100,Rendered by Private Contractors,05-Jul-2012,2466800-474/06/12,840.00,SAFE STRIP UK LTD.
Neighbourhood Services,Direct Services,Stock,926900,Stock in hand-Inventory system,05-Jul-2012,2466826-57845,599.80,SIMMONSIGNS LTD.
Neighbourhood Services,Direct Services,Third Party Payments,430100,Rendered by Private Contractors,05-Jul-2012,2466846-1941,"1,838.00",SPECIALIST VENTILATION SERVICES LTD.
Neighbourhood Services,Direct Services,Stock,926900,Stock in hand-Inventory system,05-Jul-2012,2466862-5071436,"1,038.02",SUPPLIES TEAM LTD.
Neighbourhood Services,Direct Services,Stock,926900,Stock in hand-Inventory system,05-Jul-2012,2466872-9028376459,591.84,TARMAC LTD.
Neighbourhood Services,Direct Services,Third Party Payments,430103,Rendered by Private Contractors,05-Jul-2012,2466881-,"5,687.00",TEESDALE CONSERVATION VOLUNTEERS.
Neighbourhood Services,Direct Services,Third Party Payments,430103,Rendered by Private Contractors,05-Jul-2012,2466881-,"3,733.68",TEESDALE CONSERVATION VOLUNTEERS.
Neighbourhood Services,Direct Services,Supplies and Services,304221,Equipment and Materials,05-Jul-2012,2466892-86644,"1,108.45",THE SEKURA GROUP.
Neighbourhood Services,Direct Services,Supplies and Services,304221,Equipment and Materials,05-Jul-2012,2466906-92179,646.67,TOMMY WARDLE.
Neighbourhood Services,Direct Services,Third Party Payments,430100,Rendered by Private Contractors,05-Jul-2012,2466910-107213,"9,790.50",TRADESLINK ASBESTOS SERVICES LTD.
Neighbourhood Services,Direct Services,Third Party Payments,430100,Rendered by Private Contractors,05-Jul-2012,2466910-107231,"8,643.00",TRADESLINK ASBESTOS SERVICES LTD.
Neighbourhood Services,Direct Services,Third Party Payments,430100,Rendered by Private Contractors,05-Jul-2012,2466910-107271,"6,051.75",TRADESLINK ASBESTOS SERVICES LTD.
Neighbourhood Services,Direct Services,Supplies and Services,304357,Equipment and Materials,05-Jul-2012,2466935-33718,690.00,W MARLEY AGRICULTURAL CONTRACTORS LTD.
Neighbourhood Services,Direct Services,Supplies and Services,304357,Equipment and Materials,05-Jul-2012,2466935-33719,736.00,W MARLEY AGRICULTURAL CONTRACTORS LTD.
Neighbourhood Services,"Environment,Health & Consumer Protection",Employees,040149,"Recruitment, Instruction and Training",05-Jul-2012,2466462-0000027245,"1,280.00",EAST DURHAM COLLEGE.
Neighbourhood Services,"Environment,Health & Consumer Protection",Employees,040149,"Recruitment, Instruction and Training",05-Jul-2012,2466680-41140,875.00,NETA TRAINING GRP.
Neighbourhood Services,"Environment,Health & Consumer Protection",Employees,040149,"Recruitment, Instruction and Training",05-Jul-2012,2466680-41913,561.00,NETA TRAINING GRP.
Neighbourhood Services,Projects and Business services,Third Party Payments,430103,Rendered by Private Contractors,05-Jul-2012,2466336,677.37,BARNARDOS.
Neighbourhood Services,Projects and Business services,Third Party Payments,430103,Rendered by Private Contractors,05-Jul-2012,2466881,"6,273.85",TEESDALE CONSERVATION VOLUNTEERS.
Neighbourhood Services,Projects and Business services,Third Party Payments,430103,Rendered by Private Contractors,05-Jul-2012,2466881-,"4,195.70",TEESDALE CONSERVATION VOLUNTEERS.
Neighbourhood Services,Projects and Business services,Third Party Payments,430103,Rendered by Private Contractors,05-Jul-2012,2466881-,"4,118.96",TEESDALE CONSERVATION VOLUNTEERS.
Neighbourhood Services,Sport & Leisure,Supplies and Services,384199,Miscellaneous Expenses,05-Jul-2012,2466450-3038,"1,628.00",DUNELM GEOTECHNICAL & ENVIRONMENTAL LTD.
Neighbourhood Services,Sport & Leisure,Supplies and Services,304221,Equipment and Materials,05-Jul-2012,2466488-INV56046,764.00,EVAC & CHAIR INTERNATIONAL LTD.
Neighbourhood Services,Sport & Leisure,Supplies and Services,304221,Equipment and Materials,05-Jul-2012,2466488-INV56277,585.00,EVAC & CHAIR INTERNATIONAL LTD.
Neighbourhood Services,Sport & Leisure,Supplies and Services,304221,Equipment and Materials,05-Jul-2012,2466790-7416,"1,428.22",ROST CYCLES LTD T/A CESTRIA CYCLES.
Neighbourhood Services,Sport & Leisure,Premises,115125,Repairs to Grounds,05-Jul-2012,2466790-7417,"1,002.90",ROST CYCLES LTD T/A CESTRIA CYCLES.
Neighbourhood Services,Sport & Leisure,Premises,115125,Repairs to Grounds,05-Jul-2012,2466830-256893,748.50,SIS CHEMICALS.
Neighbourhood Services,Sport & Leisure,Supplies and Services,336005,Advertising,05-Jul-2012,2466854-1156,"1,430.00",STARK HARTLEY ATKINSON LTD.
Neighbourhood Services,Sport & Leisure,Supplies and Services,328041,"Clothing, Uniforms and Laundry",05-Jul-2012,2466916-90651,764.68,TROJAN@WORK LTD.
Neighbourhood Services,Sport & Leisure,Supplies and Services,338066,Services,05-Jul-2012,2466958-CDS001,"2,246.10",WYNYARD SOLUTIONS LTD.
Neighbourhood Services,Sport & Leisure,Supplies and Services,384956,Miscellaneous Expenses,05-Jul-2012,2466963-0000004757,"1,505.88",XN LEISURE SYSTEMS LTD.
Neighbourhood Services,Sport & Leisure,Supplies and Services,384956,Miscellaneous Expenses,05-Jul-2012,2466963-0000004857,"1,512.86",XN LEISURE SYSTEMS LTD.
Neighbourhood Services,Technical Services,Supplies and Services,304221,Equipment and Materials,05-Jul-2012,2466303-16605826,"1,225.12",AGGREGATE INDUSTRIES UK LTD.
Neighbourhood Services,Technical Services,Supplies and Services,304221,Equipment and Materials,05-Jul-2012,2466303-16606512,"1,097.60",AGGREGATE INDUSTRIES UK LTD.
Neighbourhood Services,Technical Services,Supplies and Services,304221,Equipment and Materials,05-Jul-2012,2466303-16606513,968.47,AGGREGATE INDUSTRIES UK LTD.
Neighbourhood Services,Technical Services,Supplies and Services,304221,Equipment and Materials,05-Jul-2012,2466303-16606514,858.05,AGGREGATE INDUSTRIES UK LTD.
Neighbourhood Services,Technical Services,Supplies and Services,304221,Equipment and Materials,05-Jul-2012,2466303-16606515,634.73,AGGREGATE INDUSTRIES UK LTD.
Neighbourhood Services,Technical Services,Supplies and Services,304221,Equipment and Materials,05-Jul-2012,2466303-16612977,592.87,AGGREGATE INDUSTRIES UK LTD.
Neighbourhood Services,Technical Services,Stock,926004,Stock,05-Jul-2012,2466391-90120326,734.79,CLEVELAND POTASH LTD.
Neighbourhood Services,Technical Services,Construction Work,908105,Construction work,05-Jul-2012,2466420-14680A,"1,688.02",COUPE LINE LTD.
Neighbourhood Services,Technical Services,Construction Work,908105,Construction work,05-Jul-2012,2466420-14691A,"1,240.65",COUPE LINE LTD.
Neighbourhood Services,Technical Services,Supplies and Services,304221,Equipment and Materials,05-Jul-2012,2466558-IN01390,"2,830.00",HILL & SMITH LTD.
Neighbourhood Services,Technical Services,Supplies and Services,304221,Equipment and Materials,05-Jul-2012,2466644-25384,660.05,MAY GURNEY LTD.
Neighbourhood Services,Technical Services,Supplies and Services,304221,Equipment and Materials,05-Jul-2012,2466751-6606/259,502.70,POST & COLUMN CO LTD.
Neighbourhood Services,Technical Services,Supplies and Services,304221,Equipment and Materials,05-Jul-2012,2466751-6620/259,537.50,POST & COLUMN CO LTD.
Neighbourhood Services,Technical Services,Construction Work,908114,Capital - Bridge Strengthening,05-Jul-2012,2466813-SIL/Z1457/2173,"10,595.90",SEALANE INSHORE LTD.
Neighbourhood Services,Technical Services,Supplies and Services,304221,Equipment and Materials,05-Jul-2012,2466872-9028363841,545.76,TARMAC LTD.
Neighbourhood Services,Technical Services,Supplies and Services,304358,Equipment and Materials,05-Jul-2012,2466935-33756,"1,443.25",W MARLEY AGRICULTURAL CONTRACTORS LTD.
Neighbourhood Services,Technical Services,Supplies and Services,304358,Equipment and Materials,05-Jul-2012,2466935-33757,"1,094.50",W MARLEY AGRICULTURAL CONTRACTORS LTD.
Neighbourhood Services,Technical Services,Third Party Payments,430100,Rendered by Private Contractors,05-Jul-2012,2466938-14137,"3,131.38",WATERSEAL (WATERBAR & SEALANTS) LTD.
RED HRA,HRA Capital,Construction Work,908105,Construction work,05-Jul-2012,2466300-10214,"1,100.00",ADVANTAGE UTILITIES SERVICES LTD.
RED HRA,HRA Capital,Construction Work,908105,Construction work,05-Jul-2012,2466609-1040,"1,121.00",KJS ACCESS SOLUTIONS.
RED HRA,HRA Capital,Construction Work,908105,Construction work,05-Jul-2012,2466649-CON53788,"1,178.00",MIS ENVIRONMENTAL LTD.
RED HRA,HRA Capital,Construction Work,908105,Construction work,05-Jul-2012,2466649-CON53790,518.50,MIS ENVIRONMENTAL LTD.
RED HRA,HRA Capital,Construction Work,908105,Construction work,05-Jul-2012,2466649-CON53852,857.00,MIS ENVIRONMENTAL LTD.
RED HRA,HRA Capital,Other Expenses,914006,Tenants Allowances,05-Jul-2012,2466950-6/266196,"3,556.71",WILLIAMSONS PAINT & WALL COVERINGS.
Regeneration & Economic Development,Economic Development and Housing,Fees,901002,Professional fees,05-Jul-2012,2466445-4118587,950.00,DICKINSON DEES LLP.
Regeneration & Economic Development,Economic Development and Housing,Third Party Payments,479111,Purchase of Care,05-Jul-2012,2466452-208,"1,805.40",DURHAM ACTION ON SINGLE HOUSING.
Regeneration & Economic Development,Economic Development and Housing,Third Party Payments,479111,Purchase of Care,05-Jul-2012,2466452-210,"1,865.58",DURHAM ACTION ON SINGLE HOUSING.
Regeneration & Economic Development,Economic Development and Housing,Supplies and Services,368008,Incentives to Industrialists,05-Jul-2012,2466456-1545,"3,000.00",DURHAM CITY FORUM LTD.
Regeneration & Economic Development,Economic Development and Housing,Third Party Payments,440999,Other Third Party Payments,05-Jul-2012,2466648-6235063,"21,000.00",MIDDLESBROUGH BOROUGH COUNCIL.
Regeneration & Economic Development,Economic Development and Housing,Premises,135005,Water Services,05-Jul-2012,2466708-313379600016041,562.86,NORTHUMBRIAN WATER LTD.
Regeneration & Economic Development,Housing General Fund,Cap Exp on Grants & Other Financial Assistance (REFCUS),918401,Capital grants,05-Jul-2012,2466602-1272,"8,619.12",K HARRISON (BUILDER) NE LTD.
Regeneration & Economic Development,Housing General Fund,Fees,901001,Internal fees,05-Jul-2012,2466898-SITRH/0004401,"1,592.72",THREE RIVERS HOUSING ASSOCIATION LTD.
Regeneration & Economic Development,Housing General Fund,Fees,901001,Internal fees,05-Jul-2012,2466898-SITRH/0004402,889.00,THREE RIVERS HOUSING ASSOCIATION LTD.
Regeneration & Economic Development,Housing General Fund,Cap Exp on Grants & Other Financial Assistance (REFCUS),918401,Capital grants,05-Jul-2012,2466899-DFG47/12,"1,495.00",THYSSENKRUPP ENCASA LTD.
Regeneration & Economic Development,"Spatial Policy, Planning, Assets & Environment",Employees,040149,"Recruitment, Instruction and Training",05-Jul-2012,2466588-264,"1,856.05",JAMES CARTER LTD.
Regeneration & Economic Development,"Spatial Policy, Planning, Assets & Environment",Supplies and Services,338099,Services,05-Jul-2012,2466699-HOTDCC180612,"4,525.00",NORTH OF ENGLAND CIVIC TRUST.
Regeneration & Economic Development,"Spatial Policy, Planning, Assets & Environment",Supplies and Services,384540,Miscellaneous Expenses,05-Jul-2012,2466882-94545,"1,554.00",TEESDALE MERCURY LTD.
Regeneration & Economic Development,Transport,Third Party Payments,430106,Rendered by Private Contractors,05-Jul-2012,2466295-A8/NTB,"2,040.08",AABAT TAXIS.
Regeneration & Economic Development,Transport,Third Party Payments,430106,Rendered by Private Contractors,05-Jul-2012,2466295-A9/HTB,586.60,AABAT TAXIS.
Regeneration & Economic Development,Transport,Third Party Payments,430106,Rendered by Private Contractors,05-Jul-2012,2466309-TX1364,"1,689.00",ALSTON ROAD GARAGE.
Regeneration & Economic Development,Transport,Third Party Payments,430106,Rendered by Private Contractors,05-Jul-2012,2466530-83V,"7,224.12",GRAHAMS MOTOR SERVICES.
Regeneration & Economic Development,Transport,Third Party Payments,430106,Rendered by Private Contractors,05-Jul-2012,2466530-84V,"6,798.72",GRAHAMS MOTOR SERVICES.
Regeneration & Economic Development,Transport,Premises,145015,Cleaning and Domestic Supplies,05-Jul-2012,2466553-4357,"15,480.29",HEALTHMATIC LTD.
Regeneration & Economic Development,Transport,Third Party Payments,430106,Rendered by Private Contractors,05-Jul-2012,2466597-DCC5-6/12,"10,526.29",JOHN JAMES BRUNSKILL.
Regeneration & Economic Development,Transport,Supplies and Services,328041,"Clothing, Uniforms and Laundry",05-Jul-2012,2466622-DURHAM21,909.18,LINKHILL MARKETING LTD T/A JOHN MARKS.
Regeneration & Economic Development,Transport,Third Party Payments,430106,Rendered by Private Contractors,05-Jul-2012,2466767-269,"8,415.16",R COOPER T/A DC TAXIS.
Regeneration & Economic Development,Transport,Supplies and Services,342053,Computers and Communications,05-Jul-2012,2466801-2012-1412,"1,705.00",SAVOY COMPUTING SERVICES LTD.
Adults Wellbeing and Health,Commissioning inc Supporting People,Third Party Payments,473111,Purchase of Care,06-Jul-2012,2467010-1644,"9,970.00",DAYBREAK.
Adults Wellbeing and Health,Commissioning inc Supporting People,Transport,240045,Car Allowances,06-Jul-2012,2467079-2312,"17,064.12",SOCIAL RESOURCE CENTRE LTD.
Adults Wellbeing and Health,Commissioning inc Supporting People,Transport,240045,Car Allowances,06-Jul-2012,2467079-2322,"22,356.63",SOCIAL RESOURCE CENTRE LTD.
Adults Wellbeing and Health,Social Inclusion,Supplies and Services,304083,Equipment and Materials,06-Jul-2012,2467077-6328,"6,774.75",SIGMA CATERING EQUIPMENT LTD.
Adults Wellbeing and Health,Social Inclusion,Supplies and Services,338078,Services,06-Jul-2012,2467071-53432,615.53,PROTECTOR SECURITY GROUP LTD.
Adults Wellbeing and Health,Social Inclusion,Supplies and Services,338078,Services,06-Jul-2012,2467071-53606,766.83,PROTECTOR SECURITY GROUP LTD.
Children and Young Peoples Services,CYPS - Local Authority,Employees,080025,Agency Staff,06-Jul-2012,2466970-248,"5,267.10",2D LTD.
Children and Young Peoples Services,CYPS - Local Authority,Transport,230007,Contract Hire,06-Jul-2012,2466984-A06606,"1,120.00",C & R TAXIS.
Children and Young Peoples Services,CYPS - Local Authority,Transport,230007,Contract Hire,06-Jul-2012,2466985-240,630.00,CARE FREE PRIVATE HIRE.
Children and Young Peoples Services,CYPS - Local Authority,Transport,230007,Contract Hire,06-Jul-2012,2466986-54,"2,167.84",CASTLE CARS.
Children and Young Peoples Services,CYPS - Local Authority,Transport,230007,Contract Hire,06-Jul-2012,2466991-124,864.00,CENTRAL TAXIS (PETERLEE) LTD.
Children and Young Peoples Services,CYPS - Local Authority,Transport,230007,Contract Hire,06-Jul-2012,2466991-125,"1,080.00",CENTRAL TAXIS (PETERLEE) LTD.
Children and Young Peoples Services,CYPS - Local Authority,Transport,230007,Contract Hire,06-Jul-2012,2466991-126,560.00,CENTRAL TAXIS (PETERLEE) LTD.
Children and Young Peoples Services,CYPS - Local Authority,Transport,230007,Contract Hire,06-Jul-2012,2466991-127,800.00,CENTRAL TAXIS (PETERLEE) LTD.
Children and Young Peoples Services,CYPS - Local Authority,Transport,230007,Contract Hire,06-Jul-2012,2466993-1027,"1,579.04",CHESTER ROAD TAXIS.
Children and Young Peoples Services,CYPS - Local Authority,Transport,230007,Contract Hire,06-Jul-2012,2466994-CB014,"2,038.70",CHIPPERS TAXIS.
Children and Young Peoples Services,CYPS - Local Authority,Transport,230007,Contract Hire,06-Jul-2012,2466994-MD004,"1,307.00",CHIPPERS TAXIS.
Children and Young Peoples Services,CYPS - Local Authority,Transport,230007,Contract Hire,06-Jul-2012,2466995-005,"2,160.20",CJS TAXIS.
Children and Young Peoples Services,CYPS - Local Authority,Transport,230007,Contract Hire,06-Jul-2012,2466996-2,"1,680.00",CLARKS MINIBUSES & TAXIS.
Children and Young Peoples Services,CYPS - Local Authority,Transport,230007,Contract Hire,06-Jul-2012,2466996-,"1,658.88",CLARKS MINIBUSES & TAXIS.
Children and Young Peoples Services,CYPS - Local Authority,Supplies and Services,384199,Miscellaneous Expenses,06-Jul-2012,2466997-510429,856.13,CO DURHAM PCT .
Children and Young Peoples Services,CYPS - Local Authority,Supplies and Services,384199,Miscellaneous Expenses,06-Jul-2012,2466997-510430,"1,925.76",CO DURHAM PCT .
Children and Young Peoples Services,CYPS - Local Authority,Supplies and Services,384199,Miscellaneous Expenses,06-Jul-2012,2466997-510559,"1,909.35",CO DURHAM PCT .
Children and Young Peoples Services,CYPS - Local Authority,Transport,230007,Contract Hire,06-Jul-2012,2466998-C/7017,"4,049.55",COCHRANES T/A KELVIN TRAVEL.
Children and Young Peoples Services,CYPS - Local Authority,Transport,230007,Contract Hire,06-Jul-2012,2466998-C/7018,"1,800.00",COCHRANES T/A KELVIN TRAVEL.
Children and Young Peoples Services,CYPS - Local Authority,Transport,230007,Contract Hire,06-Jul-2012,2466999-,"1,125.00",COLIN E GLEAVE.
Children and Young Peoples Services,CYPS - Local Authority,Transport,230007,Contract Hire,06-Jul-2012,2467000-041,"1,461.92",CONNORS MINI BUSES.
Children and Young Peoples Services,CYPS - Local Authority,Transport,230007,Contract Hire,06-Jul-2012,2467000-042,"1,329.76",CONNORS MINI BUSES.
Children and Young Peoples Services,CYPS - Local Authority,Transport,230007,Contract Hire,06-Jul-2012,2467000-043,"1,152.00",CONNORS MINI BUSES.
Children and Young Peoples Services,CYPS - Local Authority,Transport,230007,Contract Hire,06-Jul-2012,2467000-044,"1,521.12",CONNORS MINI BUSES.
Children and Young Peoples Services,CYPS - Local Authority,Transport,230007,Contract Hire,06-Jul-2012,2467000-045,"1,178.88",CONNORS MINI BUSES.
Children and Young Peoples Services,CYPS - Local Authority,Transport,230007,Contract Hire,06-Jul-2012,2467002-4003/06/12,"2,957.28",COUNTY COACHES.
Children and Young Peoples Services,CYPS - Local Authority,Transport,230007,Contract Hire,06-Jul-2012,2467002-4021/06/12,"1,827.52",COUNTY COACHES.
Children and Young Peoples Services,CYPS - Local Authority,Transport,230007,Contract Hire,06-Jul-2012,2467002-4026/06/12,"1,495.20",COUNTY COACHES.
Children and Young Peoples Services,CYPS - Local Authority,Transport,230007,Contract Hire,06-Jul-2012,2467005-006,858.00,D & Z TAXIS.
Children and Young Peoples Services,CYPS - Local Authority,Transport,230007,Contract Hire,06-Jul-2012,2467006-DI201206,544.00,D&I TAXIS.
Children and Young Peoples Services,CYPS - Local Authority,Transport,230007,Contract Hire,06-Jul-2012,2467007-1190,880.00,DA TAXIS.
Children and Young Peoples Services,CYPS - Local Authority,Transport,230007,Contract Hire,06-Jul-2012,2467007-1191,"1,320.00",DA TAXIS.
Children and Young Peoples Services,CYPS - Local Authority,Transport,230007,Contract Hire,06-Jul-2012,2467007-1192,"2,229.84",DA TAXIS.
Children and Young Peoples Services,CYPS - Local Authority,Transport,230007,Contract Hire,06-Jul-2012,2467007-1193,"1,200.00",DA TAXIS.
Children and Young Peoples Services,CYPS - Local Authority,Transport,230007,Contract Hire,06-Jul-2012,2467007-1194,"1,120.00",DA TAXIS.
Children and Young Peoples Services,CYPS - Local Authority,Transport,230007,Contract Hire,06-Jul-2012,2467007-1195,"1,080.00",DA TAXIS.
Children and Young Peoples Services,CYPS - Local Authority,Transport,230007,Contract Hire,06-Jul-2012,2467007-1196,"1,440.00",DA TAXIS.
Children and Young Peoples Services,CYPS - Local Authority,Transport,230007,Contract Hire,06-Jul-2012,2467007-1197,800.00,DA TAXIS.
Children and Young Peoples Services,CYPS - Local Authority,Transport,230007,Contract Hire,06-Jul-2012,2467008-1536,"1,478.56",DAVES MINIBUSES.
Children and Young Peoples Services,CYPS - Local Authority,Transport,230007,Contract Hire,06-Jul-2012,2467008-1537,"1,344.00",DAVES MINIBUSES.
Children and Young Peoples Services,CYPS - Local Authority,Transport,230007,Contract Hire,06-Jul-2012,2467008-1538,"1,519.36",DAVES MINIBUSES.
Children and Young Peoples Services,CYPS - Local Authority,Transport,230007,Contract Hire,06-Jul-2012,2467008-1539,"1,079.84",DAVES MINIBUSES.
Children and Young Peoples Services,CYPS - Local Authority,Transport,230007,Contract Hire,06-Jul-2012,2467008-1540,"1,192.64",DAVES MINIBUSES.
Children and Young Peoples Services,CYPS - Local Authority,Transport,230007,Contract Hire,06-Jul-2012,2467008-1541,"1,196.16",DAVES MINIBUSES.
Children and Young Peoples Services,CYPS - Local Authority,Transport,230007,Contract Hire,06-Jul-2012,2467012-,"2,179.52",DMG PRIVATE HIRE.
Children and Young Peoples Services,CYPS - Local Authority,Transport,230007,Contract Hire,06-Jul-2012,2467012,"2,405.92",DMG PRIVATE HIRE.
Children and Young Peoples Services,CYPS - Local Authority,Transport,230007,Contract Hire,06-Jul-2012,2467013-,"1,131.00",DOOR 2 DOOR TAXIS.
Children and Young Peoples Services,CYPS - Local Authority,Transport,230007,Contract Hire,06-Jul-2012,2467015-15825,"2,159.84",DURHAM CITY COACHES.
Children and Young Peoples Services,CYPS - Local Authority,Transport,230007,Contract Hire,06-Jul-2012,2467015-15826,"6,526.08",DURHAM CITY COACHES.
Children and Young Peoples Services,CYPS - Local Authority,Transport,230007,Contract Hire,06-Jul-2012,2467015-15827,"2,159.84",DURHAM CITY COACHES.
Children and Young Peoples Services,CYPS - Local Authority,Transport,230007,Contract Hire,06-Jul-2012,2467015-15828,"2,479.84",DURHAM CITY COACHES.
Children and Young Peoples Services,CYPS - Local Authority,Supplies and Services,340001,Postages,06-Jul-2012,2467022-54370-5/7/12,"1,000.00",FP TELESET.
Children and Young Peoples Services,CYPS - Local Authority,Supplies and Services,340001,Postages,06-Jul-2012,2467022-54452-5/7/12,"1,000.00",FP TELESET.
Children and Young Peoples Services,CYPS - Local Authority,Third Party Payments,486023,Service Level Agreements,06-Jul-2012,2467043-56,"10,434.00",INTEGRATING CHILDREN.
Children and Young Peoples Services,CYPS - Local Authority,Transport,230007,Contract Hire,06-Jul-2012,2467044-0139,"2,610.03",JA SHORT.
Children and Young Peoples Services,CYPS - Local Authority,Construction Work,908105,Construction work,06-Jul-2012,2467055-11909,"12,000.00",LUCION ENVIRONMENTAL LLP LTD.
Children and Young Peoples Services,CYPS - Local Authority,Supplies and Services,338045,Services,06-Jul-2012,2467058-281450,"4,890.00",MISS GILLIAN IRVING QC.
Children and Young Peoples Services,CYPS - Local Authority,Transport,230007,Contract Hire,06-Jul-2012,2467060-16,744.00,MR CHRISTOPHER BRECHIN.
Children and Young Peoples Services,CYPS - Local Authority,Transport,230007,Contract Hire,06-Jul-2012,2467062-15L,827.68,MR GS ANDERSON.
Children and Young Peoples Services,CYPS - Local Authority,Transport,230007,Contract Hire,06-Jul-2012,2467063-,"1,475.92",MR PHILIP YOUNG.
Children and Young Peoples Services,CYPS - Local Authority,Supplies and Services,338027,Services,06-Jul-2012,2467089-320331,"2,500.00",VEGA ENVIRONMENTAL CONSULTANTS LTD.
Children and Young Peoples Services,Dedicated Schools Grant,Transport,230007,Contract Hire,06-Jul-2012,2466991-128,640.00,CENTRAL TAXIS (PETERLEE) LTD.
Children and Young Peoples Services,Dedicated Schools Grant,Transport,230007,Contract Hire,06-Jul-2012,2466993-1028,"1,440.00",CHESTER ROAD TAXIS.
Children and Young Peoples Services,Dedicated Schools Grant,Transport,230007,Contract Hire,06-Jul-2012,2467061-,"2,496.00",MR CT WALKER T/A COLIN`S TAXIS.
Corporate Resources,ICT Services incl. Design and Print,"Vehicles, Equipment, Furniture and Fittings",912701,Computer equipment,06-Jul-2012,2467042-11730988,"1,210.00",INSIGHT DIRECT (UK) LTD.
Corporate Resources,ICT Services incl. Design and Print,Stock,926900,Stock in hand-Inventory system,06-Jul-2012,2467042-11745771,"2,345.00",INSIGHT DIRECT (UK) LTD.
Neighbourhood Services,Direct Services,Supplies and Services,304221,Equipment and Materials,06-Jul-2012,2467019-059-097176,"2,264.10",EDMUNDSON ELECTRICAL LTD.
Neighbourhood Services,Direct Services,Supplies and Services,304221,Equipment and Materials,06-Jul-2012,2467048-258646,637.80,JOINERY & TIMBER CREATIONS (65) LTD.
Neighbourhood Services,Direct Services,Supplies and Services,304221,Equipment and Materials,06-Jul-2012,2467053-NE113215,"1,785.48",LLOYD WORRALL (NEWCASTLE UPON TYNE) LTD.
Neighbourhood Services,Direct Services,Supplies and Services,304221,Equipment and Materials,06-Jul-2012,2467069-4120/133939,907.69,PLUMBING TRADE SUPPLIES LTD.
Neighbourhood Services,Direct Services,Supplies and Services,304221,Equipment and Materials,06-Jul-2012,2467069-4120/133941,713.32,PLUMBING TRADE SUPPLIES LTD.
Neighbourhood Services,Direct Services,Supplies and Services,304221,Equipment and Materials,06-Jul-2012,2467069-4120/133995,743.89,PLUMBING TRADE SUPPLIES LTD.
Neighbourhood Services,Direct Services,Supplies and Services,304221,Equipment and Materials,06-Jul-2012,2467069-4120/134046,729.22,PLUMBING TRADE SUPPLIES LTD.
Neighbourhood Services,Direct Services,Supplies and Services,304221,Equipment and Materials,06-Jul-2012,2467070-4120/133872,907.69,PLUMBING TRADE SUPPLIES LTD.
Neighbourhood Services,Direct Services,Debtors,930046,Debtor-leasing,06-Jul-2012,2467080-11119269,"13,329.00",SPRINGFIELD CARS LTD.
Neighbourhood Services,Direct Services,Debtors,930046,Debtor-leasing,06-Jul-2012,2467080-11119270,"13,329.00",SPRINGFIELD CARS LTD.
Neighbourhood Services,Direct Services,Third Party Payments,430100,Rendered by Private Contractors,06-Jul-2012,2467087-107191,"6,418.50",TRADESLINK ASBESTOS SERVICES LTD.
Neighbourhood Services,Direct Services,Stock,926900,Stock in hand-Inventory system,06-Jul-2012,2467096-73315703,948.54,WOLSELEY UK LTD.
Neighbourhood Services,Direct Services,Stock,926900,Stock in hand-Inventory system,06-Jul-2012,2467096-73315713,"1,423.70",WOLSELEY UK LTD.
Neighbourhood Services,Neighbourhood central costs,Debtors,930017,Debtor-gas contract holding account,06-Jul-2012,2467001-,"285,314.54",CORONA ENERGY RETAIL 2 LTD.
Neighbourhood Services,Projects and Business services,Supplies and Services,338027,Services,06-Jul-2012,2467092-2188140,"3,280.10",WALKER MORRIS.
Neighbourhood Services,Projects and Business services,Supplies and Services,338027,Services,06-Jul-2012,2467092-2190468,"2,188.00",WALKER MORRIS.
Neighbourhood Services,Sport & Leisure,Premises,145023,Cleaning and Domestic Supplies,06-Jul-2012,2467033-30580,"3,159.00",GT CLEANING MACHINES LTD.
Neighbourhood Services,Sport & Leisure,Supplies and Services,384540,Miscellaneous Expenses,06-Jul-2012,2467072-1339,675.00,PUBLIC UK LTD.
Neighbourhood Services,Technical Services,Supplies and Services,304221,Equipment and Materials,06-Jul-2012,2466976-16355819,525.99,AGGREGATE INDUSTRIES UK LTD.
Neighbourhood Services,Technical Services,Supplies and Services,304221,Equipment and Materials,06-Jul-2012,2466976-16473522,"1,362.52",AGGREGATE INDUSTRIES UK LTD.
Neighbourhood Services,Technical Services,Supplies and Services,304221,Equipment and Materials,06-Jul-2012,2466976-16480343,"1,076.30",AGGREGATE INDUSTRIES UK LTD.
Neighbourhood Services,Technical Services,Supplies and Services,304221,Equipment and Materials,06-Jul-2012,2466976-16486154,"1,087.23",AGGREGATE INDUSTRIES UK LTD.
Neighbourhood Services,Technical Services,Supplies and Services,304221,Equipment and Materials,06-Jul-2012,2466976-16495389,"1,164.13",AGGREGATE INDUSTRIES UK LTD.
Neighbourhood Services,Technical Services,Supplies and Services,304221,Equipment and Materials,06-Jul-2012,2466976-16502318,547.99,AGGREGATE INDUSTRIES UK LTD.
Neighbourhood Services,Technical Services,Supplies and Services,304221,Equipment and Materials,06-Jul-2012,2466976-16530626,"1,124.08",AGGREGATE INDUSTRIES UK LTD.
Neighbourhood Services,Technical Services,Supplies and Services,304221,Equipment and Materials,06-Jul-2012,2466976-16545008,599.82,AGGREGATE INDUSTRIES UK LTD.
Neighbourhood Services,Technical Services,Supplies and Services,304221,Equipment and Materials,06-Jul-2012,2466976-16612976,529.79,AGGREGATE INDUSTRIES UK LTD.
Neighbourhood Services,Technical Services,Third Party Payments,460157,Contract Payments,06-Jul-2012,2466978-81531,520.10,AQUEOUS 1ST KWIK FLOW.
Neighbourhood Services,Technical Services,Supplies and Services,304221,Equipment and Materials,06-Jul-2012,2467021-16501578,"1,298.80",EXPRESS ASPHALT.
Neighbourhood Services,Technical Services,Supplies and Services,304221,Equipment and Materials,06-Jul-2012,2467021-16612224,644.80,EXPRESS ASPHALT.
Neighbourhood Services,Technical Services,Supplies and Services,384199,Miscellaneous Expenses,06-Jul-2012,2467024-GHU37,"1,575.00",GAVIN HUTCHINSON.
Neighbourhood Services,Technical Services,Supplies and Services,384199,Miscellaneous Expenses,06-Jul-2012,2467052-LGL37,630.00,LINDA GLENDINNING.
Neighbourhood Services,Technical Services,Supplies and Services,384199,Miscellaneous Expenses,06-Jul-2012,2467064-RBR37,607.05,MR R BROWN.
Neighbourhood Services,Technical Services,Supplies and Services,384199,Miscellaneous Expenses,06-Jul-2012,2467074-RHU37,630.00,REX HUDSON.
Neighbourhood Services,Technical Services,Supplies and Services,304221,Equipment and Materials,06-Jul-2012,2467084-9028171966,625.22,TARMAC LTD.
RED HRA,HRA Capital,Construction Work,908105,Construction work,06-Jul-2012,2467018-8282,"2,567.09",EASIBATHE LTD.
RED HRA,HRA Capital,Construction Work,908105,Construction work,06-Jul-2012,2467098-24324,"1,203.50",YWC GROUP LTD.
RED HRA,HRA Capital,Construction Work,908105,Construction work,06-Jul-2012,2467098-24374,"48,564.95",YWC GROUP LTD.
Regeneration & Economic Development,Economic Development and Housing,Other Expenses,914001,Other capital expenses,06-Jul-2012,2466989-,"4,300.28",CDC ENTERPRISE AGENCY.
Regeneration & Economic Development,Economic Development and Housing,Supplies and Services,384199,Miscellaneous Expenses,06-Jul-2012,2467017-51613,650.00,E PEARSON.
Regeneration & Economic Development,Economic Development and Housing,Supplies and Services,384700,Miscellaneous Expenses,06-Jul-2012,2467045-,"1,409.98",JAK PUBLICATIONS.
Regeneration & Economic Development,Economic Development and Housing,Supplies and Services,384700,Miscellaneous Expenses,06-Jul-2012,2467045-,"1,409.98",JAK PUBLICATIONS.
Regeneration & Economic Development,Economic Development and Housing,Supplies and Services,384700,Miscellaneous Expenses,06-Jul-2012,2467049-,"1,365.86",KC ENGINEERING LTD.
Regeneration & Economic Development,Strategy Programmes and Performance,Supplies and Services,384899,Miscellaneous Expenses,06-Jul-2012,,"5,461.99",LANCHESTER PARISH COUNCIL.
Regeneration & Economic Development,Transport,Third Party Payments,430106,Rendered by Private Contractors,06-Jul-2012,2466974-A12/HTB,646.70,AABAT TAXIS.
Regeneration & Economic Development,Transport,Third Party Payments,430106,Rendered by Private Contractors,06-Jul-2012,2466974-NTB/A13,"2,226.84",AABAT TAXIS.
Regeneration & Economic Development,Transport,Third Party Payments,430106,Rendered by Private Contractors,06-Jul-2012,2466980-103245,"110,922.22",ARRIVA NORTH EAST LTD.
Regeneration & Economic Development,Transport,Third Party Payments,430106,Rendered by Private Contractors,06-Jul-2012,2466990-71ETM-F,"4,411.51",CENTRAL COACHES.
Regeneration & Economic Development,Transport,Third Party Payments,430106,Rendered by Private Contractors,06-Jul-2012,2467029-29118,"78,154.53",GO GATESHEAD LTD.
Regeneration & Economic Development,Transport,Third Party Payments,430106,Rendered by Private Contractors,06-Jul-2012,2467039-008356,"2,873.10",HODGSONS COACH OPERATORS LTD.
Regeneration & Economic Development,Transport,Third Party Payments,430106,Rendered by Private Contractors,06-Jul-2012,2467047-2012/18,"1,855.50",JM HUMBLE COACH HIRE.
Regeneration & Economic Development,Transport,Third Party Payments,430100,Rendered by Private Contractors,06-Jul-2012,2467079-2324,"3,781.16",SOCIAL RESOURCE CENTRE LTD.
Regeneration & Economic Development,Transport,Third Party Payments,440999,Other Third Party Payments,06-Jul-2012,2467093-471768,"4,680.50",WARD HADAWAY.
Regeneration & Economic Development,Transport,Third Party Payments,430106,Rendered by Private Contractors,06-Jul-2012,2467094-0940,"24,974.25",WEARDALE MOTOR SERVICES LTD.
Adults Wellbeing and Health,Commissioning inc Supporting People,Supplies and Services,304999,Equipment and Materials,09-Jul-2012,2467549-,600.00,TARRAS.
Adults Wellbeing and Health,Commissioning inc Supporting People,Third Party Payments,479101,Purchase of Care,09-Jul-2012,2467609-10055973,"3,000.00",WIRRAL PCT NHS.
Adults Wellbeing and Health,Commissioning inc Supporting People,Supplies and Services,304259,Equipment and Materials,09-Jul-2012,2467385-INV011530,597.00,MARMAX PRODUCTS LTD.
Adults Wellbeing and Health,Head of Adults,Supplies and Services,304259,Equipment and Materials,09-Jul-2012,2467593-1764,"1,091.90",UPNORTH FOODSERVICE EQUIPMENT LTD.
Adults Wellbeing and Health,Head of Adults,Summary reporting level,720044,Fees and Charges,09-Jul-2012,2467222-,624.67,REDACTED - PAYMENT TO INDIVIDUAL
Adults Wellbeing and Health,Head of Adults,Third Party Payments,472101,Purchase of Care,09-Jul-2012,2467195-511220,"7,703.28",CO DURHAM PCT .
Adults Wellbeing and Health,Head of Adults,Third Party Payments,472101,Purchase of Care,09-Jul-2012,2467195-511221,"5,181.16",CO DURHAM PCT .
Adults Wellbeing and Health,Social Inclusion,Supplies and Services,384199,Miscellaneous Expenses,09-Jul-2012,2467591-0900,"25,000.00",UNITE LTD.
Assistant Chief Executive,Partnerships & Community Engagement Div.,Supplies and Services,384085,Miscellaneous Expenses,09-Jul-2012,2467387-,"1,000.00",MARWOOD SOCIAL CENTRE.
Assistant Chief Executive,Partnerships & Community Engagement Div.,Supplies and Services,384085,Miscellaneous Expenses,09-Jul-2012,2467594-,500.00,URPETH RESIDENTS ASSOCIATION.
Assistant Chief Executive,Partnerships & Community Engagement Div.,Supplies and Services,384085,Miscellaneous Expenses,09-Jul-2012,2467600-,500.00,VISUAL IMPAIRMENT PROBLEM SOLVING.
Children and Young Peoples Services,CYPS - Local Authority,Transport,230007,Contract Hire,09-Jul-2012,2467100-061201,570.00,24/7 TAXI SERVICES LTD.
Children and Young Peoples Services,CYPS - Local Authority,Transport,230007,Contract Hire,09-Jul-2012,2467100-061202,640.00,24/7 TAXI SERVICES LTD.
Children and Young Peoples Services,CYPS - Local Authority,Transport,230007,Contract Hire,09-Jul-2012,2467100-061203,"1,680.00",24/7 TAXI SERVICES LTD.
Children and Young Peoples Services,CYPS - Local Authority,Transport,230007,Contract Hire,09-Jul-2012,2467100-061204,"1,104.00",24/7 TAXI SERVICES LTD.
Children and Young Peoples Services,CYPS - Local Authority,Transport,230007,Contract Hire,09-Jul-2012,2467100-061205,560.00,24/7 TAXI SERVICES LTD.
Children and Young Peoples Services,CYPS - Local Authority,Transport,230007,Contract Hire,09-Jul-2012,2467100-061206,"1,172.00",24/7 TAXI SERVICES LTD.
Children and Young Peoples Services,CYPS - Local Authority,Transport,230007,Contract Hire,09-Jul-2012,2467100-061207,"2,080.00",24/7 TAXI SERVICES LTD.
Children and Young Peoples Services,CYPS - Local Authority,Transport,230007,Contract Hire,09-Jul-2012,2467103-A220729,794.40,A MURRAY TRAVEL.
Children and Young Peoples Services,CYPS - Local Authority,Transport,230007,Contract Hire,09-Jul-2012,2467103-A220730,"1,779.68",A MURRAY TRAVEL.
Children and Young Peoples Services,CYPS - Local Authority,Transport,230007,Contract Hire,09-Jul-2012,2467110-0035,"2,080.00",ABC TAXIS.
Children and Young Peoples Services,CYPS - Local Authority,Transport,230007,Contract Hire,09-Jul-2012,2467110-0040,688.00,ABC TAXIS.
Children and Young Peoples Services,CYPS - Local Authority,Transport,230007,Contract Hire,09-Jul-2012,2467110-0042,720.00,ABC TAXIS.
Children and Young Peoples Services,CYPS - Local Authority,Transport,230007,Contract Hire,09-Jul-2012,2467111-44,736.00,ABLE NOVAK TAXIS.
Children and Young Peoples Services,CYPS - Local Authority,Transport,230007,Contract Hire,09-Jul-2012,2467124-0237,"1,295.00",AJS PRIVATE HIRE.
Children and Young Peoples Services,CYPS - Local Authority,Transport,230007,Contract Hire,09-Jul-2012,2467125-197504,"1,200.00",ALANS CABS.
Children and Young Peoples Services,CYPS - Local Authority,Premises,145023,Cleaning and Domestic Supplies,09-Jul-2012,2467129-003521A,"1,945.25",ALLISONS MACHINERY LTD.
Children and Young Peoples Services,CYPS - Local Authority,Premises,106099,Centrally Controlled Rep and Maint,09-Jul-2012,2467167-001720,868.20,C & A PUMPS LTD.
Children and Young Peoples Services,CYPS - Local Authority,Transport,230007,Contract Hire,09-Jul-2012,2467168-,996.80,CA MUSGROVE.
Children and Young Peoples Services,CYPS - Local Authority,Transport,230007,Contract Hire,09-Jul-2012,2467168-,998.68,CA MUSGROVE.
Children and Young Peoples Services,CYPS - Local Authority,Premises,108301,Service Repairs and Maintenance,09-Jul-2012,2467179-112223,580.00,CDS SECURITY LTD.
Children and Young Peoples Services,CYPS - Local Authority,Transport,230007,Contract Hire,09-Jul-2012,2467181-019,972.00,CENTRAL COACHES.
Children and Young Peoples Services,CYPS - Local Authority,Transport,230007,Contract Hire,09-Jul-2012,2467188-43289,"4,999.65",CJ GRIERSON.
Children and Young Peoples Services,CYPS - Local Authority,Transport,230007,Contract Hire,09-Jul-2012,2467188-43290,"5,840.70",CJ GRIERSON.
Children and Young Peoples Services,CYPS - Local Authority,Transport,230007,Contract Hire,09-Jul-2012,2467188-43291,"1,557.60",CJ GRIERSON.
Children and Young Peoples Services,CYPS - Local Authority,Transport,230007,Contract Hire,09-Jul-2012,2467188-43292,"3,040.00",CJ GRIERSON.
Children and Young Peoples Services,CYPS - Local Authority,Transport,230007,Contract Hire,09-Jul-2012,2467188-43293,"1,993.60",CJ GRIERSON.
Children and Young Peoples Services,CYPS - Local Authority,Supplies and Services,384199,Miscellaneous Expenses,09-Jul-2012,2467195-510587,"1,000.11",CO DURHAM PCT .
Children and Young Peoples Services,CYPS - Local Authority,Transport,230007,Contract Hire,09-Jul-2012,2467213-,"1,129.26",D IRVING T/A BJ TAXIS.
Children and Young Peoples Services,CYPS - Local Authority,Transport,230007,Contract Hire,09-Jul-2012,2467213-,"1,280.00",D IRVING T/A BJ TAXIS.
Children and Young Peoples Services,CYPS - Local Authority,Transport,230007,Contract Hire,09-Jul-2012,2467216-230667,"2,240.00",DALELINK PRIVATE HIRE.
Children and Young Peoples Services,CYPS - Local Authority,Transport,230007,Contract Hire,09-Jul-2012,2467216-230668,"1,040.00",DALELINK PRIVATE HIRE.
Children and Young Peoples Services,CYPS - Local Authority,Transport,230007,Contract Hire,09-Jul-2012,2467216-230670,"2,080.00",DALELINK PRIVATE HIRE.
Children and Young Peoples Services,CYPS - Local Authority,Transport,230007,Contract Hire,09-Jul-2012,2467249-4107/0612,"1,034.24",ELLIOTTS OF TRIMDON.
Children and Young Peoples Services,CYPS - Local Authority,Transport,230007,Contract Hire,09-Jul-2012,2467249-5075/0612,622.50,ELLIOTTS OF TRIMDON.
Children and Young Peoples Services,CYPS - Local Authority,Transport,230007,Contract Hire,09-Jul-2012,2467249-E009/0612,"1,255.04",ELLIOTTS OF TRIMDON.
Children and Young Peoples Services,CYPS - Local Authority,Transport,230007,Contract Hire,09-Jul-2012,2467249-E014/0612,"1,486.88",ELLIOTTS OF TRIMDON.
Children and Young Peoples Services,CYPS - Local Authority,Transport,230007,Contract Hire,09-Jul-2012,2467252-,"1,005.00",EMMA`S CABS.
Children and Young Peoples Services,CYPS - Local Authority,Transport,230007,Contract Hire,09-Jul-2012,2467254-0493,"2,227.52",EN ROUTE TRAVEL.
Children and Young Peoples Services,CYPS - Local Authority,Transport,230007,Contract Hire,09-Jul-2012,2467254-0494,"1,360.00",EN ROUTE TRAVEL.
Children and Young Peoples Services,CYPS - Local Authority,Third Party Payments,425040,Rendered by Voluntary Organisations,09-Jul-2012,2467265-0000041872,"3,100.00",FIVE RIVERS CHILD CARE LTD.
Children and Young Peoples Services,CYPS - Local Authority,Third Party Payments,425040,Rendered by Voluntary Organisations,09-Jul-2012,2467265-0000041873,"9,300.00",FIVE RIVERS CHILD CARE LTD.
Children and Young Peoples Services,CYPS - Local Authority,Third Party Payments,425040,Rendered by Voluntary Organisations,09-Jul-2012,2467265-0000041918,"1,042.90",FIVE RIVERS CHILD CARE LTD.
Children and Young Peoples Services,CYPS - Local Authority,Transport,230007,Contract Hire,09-Jul-2012,2467278-600,913.76,GEM TRAVEL.
Children and Young Peoples Services,CYPS - Local Authority,Transport,230007,Contract Hire,09-Jul-2012,2467285-,884.00,GMC TAXIS NORTH EAST.
Children and Young Peoples Services,CYPS - Local Authority,Transport,230007,Contract Hire,09-Jul-2012,2467285-029,960.00,GMC TAXIS NORTH EAST.
Children and Young Peoples Services,CYPS - Local Authority,Transport,230007,Contract Hire,09-Jul-2012,2467288-80V,"1,744.16",GRAHAMS MOTOR SERVICES.
Children and Young Peoples Services,CYPS - Local Authority,Transport,230007,Contract Hire,09-Jul-2012,2467288-85V,"1,268.48",GRAHAMS MOTOR SERVICES.
Children and Young Peoples Services,CYPS - Local Authority,Transport,230007,Contract Hire,09-Jul-2012,2467290-7925,"1,137.76",GREENCROFT MINI COACHES.
Children and Young Peoples Services,CYPS - Local Authority,Transport,230007,Contract Hire,09-Jul-2012,2467290-7926,"1,256.64",GREENCROFT MINI COACHES.
Children and Young Peoples Services,CYPS - Local Authority,Supplies and Services,304221,Equipment and Materials,09-Jul-2012,2467313-43090,935.00,HOWARTH LTD T/A NEWTON PRESS.
Children and Young Peoples Services,CYPS - Local Authority,Transport,230007,Contract Hire,09-Jul-2012,2467319-017,"1,280.00",I CLYDESDALE T/A BURNOPFIELD TAXIS.
Children and Young Peoples Services,CYPS - Local Authority,Transport,230007,Contract Hire,09-Jul-2012,2467319-018,"1,461.92",I CLYDESDALE T/A BURNOPFIELD TAXIS.
Children and Young Peoples Services,CYPS - Local Authority,Transport,230007,Contract Hire,09-Jul-2012,2467354-110261010,880.00,KEITH STONELY.
Children and Young Peoples Services,CYPS - Local Authority,Transport,230007,Contract Hire,09-Jul-2012,2467354-11026109,880.00,KEITH STONELY.
Children and Young Peoples Services,CYPS - Local Authority,Transport,230007,Contract Hire,09-Jul-2012,2467359-10612,675.00,KEVIN EDMUNDSON.
Children and Young Peoples Services,CYPS - Local Authority,Transport,230007,Contract Hire,09-Jul-2012,2467402-M-06-12,"1,730.20",MR CT WALKER T/A COLIN`S TAXIS.
Children and Young Peoples Services,CYPS - Local Authority,Transport,230007,Contract Hire,09-Jul-2012,2467402-W-06-12,"3,510.76",MR CT WALKER T/A COLIN`S TAXIS.
Children and Young Peoples Services,CYPS - Local Authority,Transport,230007,Contract Hire,09-Jul-2012,2467403-61,"1,832.64",MR GN ROBBINS.
Children and Young Peoples Services,CYPS - Local Authority,Transport,230007,Contract Hire,09-Jul-2012,2467403-62,"1,194.40",MR GN ROBBINS.
Children and Young Peoples Services,CYPS - Local Authority,Transport,230007,Contract Hire,09-Jul-2012,2467404-13J,"1,557.60",MR GS ANDERSON.
Children and Young Peoples Services,CYPS - Local Authority,Transport,230007,Contract Hire,09-Jul-2012,2467404-14K,640.00,MR GS ANDERSON.
Children and Young Peoples Services,CYPS - Local Authority,Transport,230007,Contract Hire,09-Jul-2012,2467405-1190612,752.00,MR JOHN CHISHOLM.
Children and Young Peoples Services,CYPS - Local Authority,Transport,230007,Contract Hire,09-Jul-2012,2467405-51590612,688.00,MR JOHN CHISHOLM.
Children and Young Peoples Services,CYPS - Local Authority,Transport,230007,Contract Hire,09-Jul-2012,2467405-E0540612,944.00,MR JOHN CHISHOLM.
Children and Young Peoples Services,CYPS - Local Authority,Transport,230007,Contract Hire,09-Jul-2012,2467406-00128,"1,008.00",MR P GARBUTT.
Children and Young Peoples Services,CYPS - Local Authority,Transport,230007,Contract Hire,09-Jul-2012,2467412-20,840.00,N FORBES.
Children and Young Peoples Services,CYPS - Local Authority,Transport,230007,Contract Hire,09-Jul-2012,2467412-21,960.00,N FORBES.
Children and Young Peoples Services,CYPS - Local Authority,Transport,230007,Contract Hire,09-Jul-2012,2467412-23,"1,171.68",N FORBES.
Children and Young Peoples Services,CYPS - Local Authority,Supplies and Services,384638,Miscellaneous Expenses,09-Jul-2012,2467428-0000010282,823.00,NORTH EAST AUTISM SOCIETY.
Children and Young Peoples Services,CYPS - Local Authority,Supplies and Services,384638,Miscellaneous Expenses,09-Jul-2012,2467428-0000010287,572.00,NORTH EAST AUTISM SOCIETY.
Children and Young Peoples Services,CYPS - Local Authority,Supplies and Services,384638,Miscellaneous Expenses,09-Jul-2012,2467428-0000010290,645.00,NORTH EAST AUTISM SOCIETY.
Children and Young Peoples Services,CYPS - Local Authority,Supplies and Services,384638,Miscellaneous Expenses,09-Jul-2012,2467428-0000010292,661.00,NORTH EAST AUTISM SOCIETY.
Children and Young Peoples Services,CYPS - Local Authority,Supplies and Services,384638,Miscellaneous Expenses,09-Jul-2012,2467428-0000010317,"2,985.00",NORTH EAST AUTISM SOCIETY.
Children and Young Peoples Services,CYPS - Local Authority,Supplies and Services,384638,Miscellaneous Expenses,09-Jul-2012,2467428-0000010319,788.00,NORTH EAST AUTISM SOCIETY.
Children and Young Peoples Services,CYPS - Local Authority,Supplies and Services,384638,Miscellaneous Expenses,09-Jul-2012,2467428-0000010320,934.00,NORTH EAST AUTISM SOCIETY.
Children and Young Peoples Services,CYPS - Local Authority,Supplies and Services,384638,Miscellaneous Expenses,09-Jul-2012,2467428-0000010323,"1,401.00",NORTH EAST AUTISM SOCIETY.
Children and Young Peoples Services,CYPS - Local Authority,Supplies and Services,384638,Miscellaneous Expenses,09-Jul-2012,2467428-0000010324,969.00,NORTH EAST AUTISM SOCIETY.
Children and Young Peoples Services,CYPS - Local Authority,Supplies and Services,384638,Miscellaneous Expenses,09-Jul-2012,2467428-0000010325,934.00,NORTH EAST AUTISM SOCIETY.
Children and Young Peoples Services,CYPS - Local Authority,Supplies and Services,384638,Miscellaneous Expenses,09-Jul-2012,2467428-0000010327,502.00,NORTH EAST AUTISM SOCIETY.
Children and Young Peoples Services,CYPS - Local Authority,Supplies and Services,384638,Miscellaneous Expenses,09-Jul-2012,2467428-0000010329,"1,004.00",NORTH EAST AUTISM SOCIETY.
Children and Young Peoples Services,CYPS - Local Authority,Supplies and Services,384638,Miscellaneous Expenses,09-Jul-2012,2467428-0000010331,502.00,NORTH EAST AUTISM SOCIETY.
Children and Young Peoples Services,CYPS - Local Authority,Supplies and Services,384638,Miscellaneous Expenses,09-Jul-2012,2467428-0000010332,753.00,NORTH EAST AUTISM SOCIETY.
Children and Young Peoples Services,CYPS - Local Authority,Supplies and Services,384638,Miscellaneous Expenses,09-Jul-2012,2467428-0000010337,"1,541.00",NORTH EAST AUTISM SOCIETY.
Children and Young Peoples Services,CYPS - Local Authority,Supplies and Services,384638,Miscellaneous Expenses,09-Jul-2012,2467428-0000010342,"1,651.00",NORTH EAST AUTISM SOCIETY.
Children and Young Peoples Services,CYPS - Local Authority,Supplies and Services,384638,Miscellaneous Expenses,09-Jul-2012,2467428-0000010344,648.00,NORTH EAST AUTISM SOCIETY.
Children and Young Peoples Services,CYPS - Local Authority,Supplies and Services,384638,Miscellaneous Expenses,09-Jul-2012,2467428-0000010345,"1,200.00",NORTH EAST AUTISM SOCIETY.
Children and Young Peoples Services,CYPS - Local Authority,Supplies and Services,384638,Miscellaneous Expenses,09-Jul-2012,2467428-0000010346,"1,325.00",NORTH EAST AUTISM SOCIETY.
Children and Young Peoples Services,CYPS - Local Authority,Supplies and Services,384638,Miscellaneous Expenses,09-Jul-2012,2467428-0000010347,"1,111.00",NORTH EAST AUTISM SOCIETY.
Children and Young Peoples Services,CYPS - Local Authority,Supplies and Services,384638,Miscellaneous Expenses,09-Jul-2012,2467428-0000010348,645.00,NORTH EAST AUTISM SOCIETY.
Children and Young Peoples Services,CYPS - Local Authority,Supplies and Services,384638,Miscellaneous Expenses,09-Jul-2012,2467428-0000010349,754.00,NORTH EAST AUTISM SOCIETY.
Children and Young Peoples Services,CYPS - Local Authority,Supplies and Services,384638,Miscellaneous Expenses,09-Jul-2012,2467428-0000010351,786.00,NORTH EAST AUTISM SOCIETY.
Children and Young Peoples Services,CYPS - Local Authority,Supplies and Services,384638,Miscellaneous Expenses,09-Jul-2012,2467428-0000010352,"1,290.00",NORTH EAST AUTISM SOCIETY.
Children and Young Peoples Services,CYPS - Local Authority,Supplies and Services,384638,Miscellaneous Expenses,09-Jul-2012,2467428-0000010353,"1,903.00",NORTH EAST AUTISM SOCIETY.
Children and Young Peoples Services,CYPS - Local Authority,Supplies and Services,384638,Miscellaneous Expenses,09-Jul-2012,2467428-0000010354,896.00,NORTH EAST AUTISM SOCIETY.
Children and Young Peoples Services,CYPS - Local Authority,Supplies and Services,384638,Miscellaneous Expenses,09-Jul-2012,2467428-0000010355,520.00,NORTH EAST AUTISM SOCIETY.
Children and Young Peoples Services,CYPS - Local Authority,Supplies and Services,384638,Miscellaneous Expenses,09-Jul-2012,2467428-0000010356,823.00,NORTH EAST AUTISM SOCIETY.
Children and Young Peoples Services,CYPS - Local Authority,Supplies and Services,384638,Miscellaneous Expenses,09-Jul-2012,2467428-0000010360,"2,134.00",NORTH EAST AUTISM SOCIETY.
Children and Young Peoples Services,CYPS - Local Authority,Supplies and Services,384638,Miscellaneous Expenses,09-Jul-2012,2467428-0000010365,"1,350.50",NORTH EAST AUTISM SOCIETY.
Children and Young Peoples Services,CYPS - Local Authority,Supplies and Services,384638,Miscellaneous Expenses,09-Jul-2012,2467428-0000010367,860.00,NORTH EAST AUTISM SOCIETY.
Children and Young Peoples Services,CYPS - Local Authority,Supplies and Services,384638,Miscellaneous Expenses,09-Jul-2012,2467428-0000010368,"1,004.00",NORTH EAST AUTISM SOCIETY.
Children and Young Peoples Services,CYPS - Local Authority,Supplies and Services,384638,Miscellaneous Expenses,09-Jul-2012,2467428-0000010372,825.00,NORTH EAST AUTISM SOCIETY.
Children and Young Peoples Services,CYPS - Local Authority,Supplies and Services,384638,Miscellaneous Expenses,09-Jul-2012,2467428-0000010398,693.00,NORTH EAST AUTISM SOCIETY.
Children and Young Peoples Services,CYPS - Local Authority,Transport,230007,Contract Hire,09-Jul-2012,2467455-00002,504.40,PHILLIPS TAXIS LTD.
Children and Young Peoples Services,CYPS - Local Authority,Supplies and Services,342013,Computers and Communications,09-Jul-2012,2467544-5078997,599.71,SUPPLIES TEAM LTD.
Children and Young Peoples Services,CYPS - Local Authority,Transport,230007,Contract Hire,09-Jul-2012,2467548-06/2012/052,"1,242.88",TARN`S TAXIS.
Children and Young Peoples Services,CYPS - Local Authority,Transport,230007,Contract Hire,09-Jul-2012,2467548-06/2012/053,"1,947.00",TARN`S TAXIS.
Children and Young Peoples Services,CYPS - Local Authority,Transport,230007,Contract Hire,09-Jul-2012,2467548-06/2012/055,992.00,TARN`S TAXIS.
Children and Young Peoples Services,CYPS - Local Authority,Transport,230007,Contract Hire,09-Jul-2012,2467578-8,640.00,TRAVEL 6.
Children and Young Peoples Services,CYPS - Local Authority,Supplies and Services,304649,Equipment and Materials,09-Jul-2012,2467616-495375935,637.00,YORKSHIRE PURCHASING ORGANISATION.
Children and Young Peoples Services,Dedicated Schools Grant,Transport,230007,Contract Hire,09-Jul-2012,2467113-13,768.00,ACE TAXIS..
Children and Young Peoples Services,Dedicated Schools Grant,Transport,230005,Contract Hire,09-Jul-2012,2467146-336,"1,295.00",BEELINE MINI BUSES.
Children and Young Peoples Services,Dedicated Schools Grant,Transport,230005,Contract Hire,09-Jul-2012,2467346-,"1,424.00",JOVIAL PRIVATE HIRE.
Children and Young Peoples Services,Dedicated Schools Grant,Transport,230007,Contract Hire,09-Jul-2012,2467355-914,"1,125.00",KEN CHAMBERS.
Children and Young Peoples Services,Dedicated Schools Grant,Transport,230007,Contract Hire,09-Jul-2012,2467357-00205,"1,760.00",KENNAS KABS.
Children and Young Peoples Services,Dedicated Schools Grant,Transport,230005,Contract Hire,09-Jul-2012,2467377-61,615.00,LORRAINES TAXIS.
Children and Young Peoples Services,Dedicated Schools Grant,Transport,230007,Contract Hire,09-Jul-2012,2467405-0060612,"1,249.00",MR JOHN CHISHOLM.
Children and Young Peoples Services,Dedicated Schools Grant,Transport,230007,Contract Hire,09-Jul-2012,2467405-0880612,"1,504.00",MR JOHN CHISHOLM.
Children and Young Peoples Services,Dedicated Schools Grant,Transport,230005,Contract Hire,09-Jul-2012,2467455-00020,"1,944.00",PHILLIPS TAXIS LTD.
Corporate Resources,Asset Management,Supplies and Services,384199,Miscellaneous Expenses,09-Jul-2012,2467378-12082,"1,331.95",LUCION ENVIRONMENTAL LLP LTD.
Corporate Resources,Asset Management,Premises,106099,Centrally Controlled Rep and Maint,09-Jul-2012,2467427-10019984,636.00,NORSTEAD.
Corporate Resources,Asset Management,Premises,106099,Centrally Controlled Rep and Maint,09-Jul-2012,2467427-10019985,636.00,NORSTEAD.
Corporate Resources,Asset Management,Premises,106099,Centrally Controlled Rep and Maint,09-Jul-2012,2467427-10020013,"2,791.33",NORSTEAD.
Corporate Resources,Financing- Resources,Supplies and Services,304040,Equipment and Materials,09-Jul-2012,2467275-HR203041577,"43,000.00",GATESHEAD COUNCIL.
Corporate Resources,Financing- Resources,Employees,080025,Agency Staff,09-Jul-2012,2467401-90104813,"15,320.01",MOUCHEL BUSINESS SERVICES LTD.
Corporate Resources,ICT Services incl. Design and Print,Supplies and Services,384199,Miscellaneous Expenses,09-Jul-2012,2467117-3884/12212,565.00,AE ROBB & ASSOCIATES.
Corporate Resources,ICT Services incl. Design and Print,Supplies and Services,338027,Services,09-Jul-2012,2467293-INV186,"3,100.00",GREYSKY CONSULTING LTD.
Corporate Resources,Legal & Democratic Services,Supplies and Services,384199,Miscellaneous Expenses,09-Jul-2012,2467378-12483,"1,050.00",LUCION ENVIRONMENTAL LLP LTD.
Neighbourhood Services,Direct Services,Stock,926900,Stock in hand-Inventory system,09-Jul-2012,2467105-LLI254318,"1,117.10",A THOMPSON & SONS LTD.
Neighbourhood Services,Direct Services,Third Party Payments,430100,Rendered by Private Contractors,09-Jul-2012,2467116-121538110-61,652.00,ADT FIRE & SECURITY PLC.
Neighbourhood Services,Direct Services,Premises,106099,Centrally Controlled Rep and Maint,09-Jul-2012,2467116-21337289-61,756.64,ADT FIRE & SECURITY PLC.
Neighbourhood Services,Direct Services,Third Party Payments,430100,Rendered by Private Contractors,09-Jul-2012,2467116-21538336-61,"1,095.00",ADT FIRE & SECURITY PLC.
Neighbourhood Services,Direct Services,Supplies and Services,304221,Equipment and Materials,09-Jul-2012,2467173-430300,995.82,CARRS BILLINGTON AGRICULTURE.
Neighbourhood Services,Direct Services,Debtors,930046,Debtor-leasing,09-Jul-2012,2467174-432708,"15,708.00",CARRS BILLINGTON AGRICULTURE.
Neighbourhood Services,Direct Services,Debtors,930046,Debtor-leasing,09-Jul-2012,2467174-432709,"21,681.00",CARRS BILLINGTON AGRICULTURE.
Neighbourhood Services,Direct Services,Third Party Payments,430100,Rendered by Private Contractors,09-Jul-2012,2467177-12537,671.82,CATHEDRAL LOCK & SAFE SERVICES LTD.
Neighbourhood Services,Direct Services,Third Party Payments,430100,Rendered by Private Contractors,09-Jul-2012,2467194-13,"10,576.32",CN WHITAKER.
Neighbourhood Services,Direct Services,Transport,210057,Repair and Maintenance of Vehicles,09-Jul-2012,2467226-DE10639390,777.51,DENNIS EAGLE LTD.
Neighbourhood Services,Direct Services,"Vehicles, Equipment, Furniture and Fittings",912529,Purchase-equipment,09-Jul-2012,2467256-6688667,"11,934.00",ESE LTD (ENVIRONMENTAL SYSTEMS EXPERTISE)..
Neighbourhood Services,Direct Services,Stock,926004,Stock,09-Jul-2012,2467270-216090833,"2,969.90",FUCHS LUBRICANTS (UK) PLC.
Neighbourhood Services,Direct Services,Stock,926004,Stock,09-Jul-2012,2467270-216091876,"2,620.50",FUCHS LUBRICANTS (UK) PLC.
Neighbourhood Services,Direct Services,Supplies and Services,304357,Equipment and Materials,09-Jul-2012,2467273-239125,"1,063.44",G O`BRIEN & SONS LTD.
Neighbourhood Services,Direct Services,Stock,926004,Stock,09-Jul-2012,2467276-7995795,"38,658.95",GB OILS T/A BRETT FUELS.
Neighbourhood Services,Direct Services,Stock,926004,Stock,09-Jul-2012,2467276-7995805,"1,365.34",GB OILS T/A BRETT FUELS.
Neighbourhood Services,Direct Services,Stock,926004,Stock,09-Jul-2012,2467276-8006469,"24,110.20",GB OILS T/A BRETT FUELS.
Neighbourhood Services,Direct Services,Stock,926004,Stock,09-Jul-2012,2467276-8006473,"3,004.00",GB OILS T/A BRETT FUELS.
Neighbourhood Services,Direct Services,Third Party Payments,430100,Rendered by Private Contractors,09-Jul-2012,2467287-029824,"1,509.27",GODFREY SYRETT LTD.
Neighbourhood Services,Direct Services,Third Party Payments,430100,Rendered by Private Contractors,09-Jul-2012,2467294-020/98055,671.40,GROENEVELD UK LTD.
Neighbourhood Services,Direct Services,Third Party Payments,430100,Rendered by Private Contractors,09-Jul-2012,2467294-020/98056,671.40,GROENEVELD UK LTD.
Neighbourhood Services,Direct Services,Supplies and Services,304221,Equipment and Materials,09-Jul-2012,2467303-SI-582,514.84,HARELAW SAWMILL LTD.
Neighbourhood Services,Direct Services,Supplies and Services,304221,Equipment and Materials,09-Jul-2012,2467303-SI-593,590.00,HARELAW SAWMILL LTD.
Neighbourhood Services,Direct Services,Supplies and Services,304221,Equipment and Materials,09-Jul-2012,2467303-SI-595,583.46,HARELAW SAWMILL LTD.
Neighbourhood Services,Direct Services,Third Party Payments,430100,Rendered by Private Contractors,09-Jul-2012,2467312-44334,535.00,HOGARTH COACHWORKS LTD.
Neighbourhood Services,Direct Services,Third Party Payments,430100,Rendered by Private Contractors,09-Jul-2012,2467312-44409,"1,182.10",HOGARTH COACHWORKS LTD.
Neighbourhood Services,Direct Services,Third Party Payments,430100,Rendered by Private Contractors,09-Jul-2012,2467312-44410,"1,113.83",HOGARTH COACHWORKS LTD.
Neighbourhood Services,Direct Services,Transport,210057,Repair and Maintenance of Vehicles,09-Jul-2012,2467338-189725,"1,119.41",JG PAXTON & SONS LTD.
Neighbourhood Services,Direct Services,Third Party Payments,430100,Rendered by Private Contractors,09-Jul-2012,2467338-189886,528.47,JG PAXTON & SONS LTD.
Neighbourhood Services,Direct Services,Stock,926900,Stock in hand-Inventory system,09-Jul-2012,2467351-STI362889,503.88,JT DOVE LTD.
Neighbourhood Services,Direct Services,Premises,145009,Cleaning and Domestic Supplies,09-Jul-2012,2467356-1100,562.00,KEN THOMAS (SITE CLEARANCE LTD).
Neighbourhood Services,Direct Services,Third Party Payments,430105,Rendered by Private Contractors,09-Jul-2012,2467356-117748,565.00,KEN THOMAS (SITE CLEARANCE LTD).
Neighbourhood Services,Direct Services,Supplies and Services,384199,Miscellaneous Expenses,09-Jul-2012,2467378-12242,"1,800.00",LUCION ENVIRONMENTAL LLP LTD.
Neighbourhood Services,Direct Services,Premises,106099,Centrally Controlled Rep and Maint,09-Jul-2012,2467378-12246,760.00,LUCION ENVIRONMENTAL LLP LTD.
Neighbourhood Services,Direct Services,Third Party Payments,430100,Rendered by Private Contractors,09-Jul-2012,2467413-1723,507.72,N1 JETTING SYSTEMS LTD.
Neighbourhood Services,Direct Services,Premises,106099,Centrally Controlled Rep and Maint,09-Jul-2012,2467427-10019972,670.21,NORSTEAD.
Neighbourhood Services,Direct Services,Premises,106099,Centrally Controlled Rep and Maint,09-Jul-2012,2467427-10019981,"1,103.30",NORSTEAD.
Neighbourhood Services,Direct Services,Premises,106099,Centrally Controlled Rep and Maint,09-Jul-2012,2467427-10019983,612.17,NORSTEAD.
Neighbourhood Services,Direct Services,Supplies and Services,304221,Equipment and Materials,09-Jul-2012,2467460-4120/134675,930.02,PLUMBING TRADE SUPPLIES LTD.
Neighbourhood Services,Direct Services,Supplies and Services,384194,Miscellaneous Expenses,09-Jul-2012,2467464-377738,"17,490.62",PREMIER WASTE RECYCLING LTD.
Neighbourhood Services,Direct Services,Transport,210057,Repair and Maintenance of Vehicles,09-Jul-2012,2467487-757337,855.24,RICKERBY LTD.
Neighbourhood Services,Direct Services,Transport,210057,Repair and Maintenance of Vehicles,09-Jul-2012,2467500-00592399,526.65,S JENNINGS LTD.
Neighbourhood Services,Direct Services,Supplies and Services,304221,Equipment and Materials,09-Jul-2012,2467510-2520,544.00,SECURITY DIRECT PRODUCTS LTD.
Neighbourhood Services,Direct Services,Transport,230710,Contract Hire,09-Jul-2012,2467524-,"1,400.00",SOCIETE GENERALE EQUIPMENT FINANCE LTD.
Neighbourhood Services,Direct Services,Supplies and Services,342013,Computers and Communications,09-Jul-2012,2467544-5005706,"1,217.67",SUPPLIES TEAM LTD.
Neighbourhood Services,Direct Services,Supplies and Services,342013,Computers and Communications,09-Jul-2012,2467544-5005706,"1,217.67",SUPPLIES TEAM LTD.
Neighbourhood Services,Direct Services,Transport,210057,Repair and Maintenance of Vehicles,09-Jul-2012,2467559-96267829,603.66,TERBERG MATEC (UK) LTD.
Neighbourhood Services,Direct Services,Stock,926900,Stock in hand-Inventory system,09-Jul-2012,2467573-91440,822.00,TOFCO LTD.
Neighbourhood Services,Direct Services,Third Party Payments,430100,Rendered by Private Contractors,09-Jul-2012,2467606-K74287,585.00,WHALE TANKERS LTD.
Neighbourhood Services,Direct Services,Supplies and Services,304221,Equipment and Materials,09-Jul-2012,2467614-032692-001,"1,525.68",XTRALITE (ROOFLIGHTS) LTD.
Neighbourhood Services,"Environment,Health & Consumer Protection",Supplies and Services,384199,Miscellaneous Expenses,09-Jul-2012,2467480-I7579,670.00,RAINBOW INTERNATIONAL.
Neighbourhood Services,Sport & Leisure,Summary reporting level,720810,Fees and Charges,09-Jul-2012,2467198-PS22182,"4,925.17",COMPETITION LINE UK LTD.
Neighbourhood Services,Sport & Leisure,Premises,106099,Centrally Controlled Rep and Maint,09-Jul-2012,2467297-89006,"2,018.75",H20 CHEMICALS.
Neighbourhood Services,Sport & Leisure,Premises,106099,Centrally Controlled Rep and Maint,09-Jul-2012,2467427-10020001,"14,457.60",NORSTEAD.
Neighbourhood Services,Sport & Leisure,Supplies and Services,304221,Equipment and Materials,09-Jul-2012,2467554-6943,945.58,TEAM COLOURS LTD.
Neighbourhood Services,Sport & Leisure,Supplies and Services,328041,"Clothing, Uniforms and Laundry",09-Jul-2012,2467580-90726,595.78,TROJAN@WORK LTD.
Neighbourhood Services,Technical Services,Construction Work,908114,Capital - Bridge Strengthening,09-Jul-2012,2467119-60216682-54,"3,510.98",AECOM LTD.
Neighbourhood Services,Technical Services,Supplies and Services,304221,Equipment and Materials,09-Jul-2012,2467122-16621954,539.24,AGGREGATE INDUSTRIES UK LTD.
Neighbourhood Services,Technical Services,Supplies and Services,304221,Equipment and Materials,09-Jul-2012,2467122-16621955,"1,077.39",AGGREGATE INDUSTRIES UK LTD.
Neighbourhood Services,Technical Services,Construction Work,908108,Capital - Surface Dressing,09-Jul-2012,2467204-14724,"1,459.04",COUPE LINE LTD.
Neighbourhood Services,Technical Services,Supplies and Services,304357,Equipment and Materials,09-Jul-2012,2467274-DCC010712,"7,067.12",GAP GROUP LTD.
Neighbourhood Services,Technical Services,Supplies and Services,304358,Equipment and Materials,09-Jul-2012,2467342-11955,751.91,JOHN R BUTTERFIELD LTD.
Neighbourhood Services,Technical Services,Supplies and Services,304358,Equipment and Materials,09-Jul-2012,2467342-11992,945.95,JOHN R BUTTERFIELD LTD.
Neighbourhood Services,Technical Services,Supplies and Services,304358,Equipment and Materials,09-Jul-2012,2467342-12020,945.95,JOHN R BUTTERFIELD LTD.
Neighbourhood Services,Technical Services,Supplies and Services,304357,Equipment and Materials,09-Jul-2012,2467605-45401,664.29,WERNICK HIRE LTD.
RED HRA,HRA Capital,Other Expenses,914001,Other capital expenses,09-Jul-2012,2467322-D04847,610.35,ICI DULUX DECORATOR CENTRES.
RED HRA,HRA Capital,Construction Work,908105,Construction work,09-Jul-2012,2467542-LTS/511/188,"1,595.00",SUNTER LTD.
RED HRA,HRA Capital,Construction Work,908105,Construction work,09-Jul-2012,2467570-SIP-116975,"1,793.00",THYSSENKRUPP ENCASA LTD.
RED HRA,HRA Capital,Construction Work,908105,Construction work,09-Jul-2012,2467570-SIP-119106,"12,478.75",THYSSENKRUPP ENCASA LTD.
Regeneration & Economic Development,Economic Development and Housing,Premises,106099,Centrally Controlled Rep and Maint,09-Jul-2012,2467167-12060160,"1,122.54",C & A PUMPS LTD.
Regeneration & Economic Development,Economic Development and Housing,Cap Exp on Grants & Other Financial Assistance (REFCUS),918401,Capital grants,09-Jul-2012,2467171-,"5,749.98",CAPTAINS COD LTD.
Regeneration & Economic Development,Economic Development and Housing,Cap Exp on Grants & Other Financial Assistance (REFCUS),918401,Capital grants,09-Jul-2012,2467261-,631.90,FA WHITE T/A MOVE IT.
Regeneration & Economic Development,Economic Development and Housing,Cap Exp on Grants & Other Financial Assistance (REFCUS),918401,Capital grants,09-Jul-2012,2467358-,"5,000.00",KEPIS PROPERTIES.
Regeneration & Economic Development,Economic Development and Housing,Premises,106099,Centrally Controlled Rep and Maint,09-Jul-2012,2467427-10019990,894.86,NORSTEAD.
Regeneration & Economic Development,Economic Development and Housing,Premises,106099,Centrally Controlled Rep and Maint,09-Jul-2012,2467427-10019994,"1,130.00",NORSTEAD.
Regeneration & Economic Development,Economic Development and Housing,Supplies and Services,384437,Miscellaneous Expenses,09-Jul-2012,2467445-F74410842/1,591.00,P & O FERRIES HOLDINGS LTD.
Regeneration & Economic Development,Economic Development and Housing,Supplies and Services,384437,Miscellaneous Expenses,09-Jul-2012,2467445-F74412486/1,678.00,P & O FERRIES HOLDINGS LTD.
Regeneration & Economic Development,Housing General Fund,Cap Exp on Grants & Other Financial Assistance (REFCUS),918401,Capital grants,09-Jul-2012,2467104-0263,"8,901.75",A OGILVIE BUILDING CONTRACTORS LTD.
Regeneration & Economic Development,Housing General Fund,Cap Exp on Grants & Other Financial Assistance (REFCUS),918401,Capital grants,09-Jul-2012,2467379-2012/488,"2,664.80",M & R DEVELOPMENTS & CONTRACTORS LTD..
Regeneration & Economic Development,Housing General Fund,Cap Exp on Grants & Other Financial Assistance (REFCUS),918401,Capital grants,09-Jul-2012,2467379-2012/489,"5,236.20",M & R DEVELOPMENTS & CONTRACTORS LTD..
Regeneration & Economic Development,Housing General Fund,Fees,901001,Internal fees,09-Jul-2012,2467569-SITRH/0004410,517.60,THREE RIVERS HOUSING ASSOCIATION LTD.
Regeneration & Economic Development,Housing General Fund,Fees,901001,Internal fees,09-Jul-2012,2467569-SITRH/0004411,632.56,THREE RIVERS HOUSING ASSOCIATION LTD.
Regeneration & Economic Development,Housing General Fund,Fees,901001,Internal fees,09-Jul-2012,2467569-SITRH/0004412,"2,638.52",THREE RIVERS HOUSING ASSOCIATION LTD.
Regeneration & Economic Development,"Spatial Policy, Planning, Assets & Environment",Supplies and Services,384700,Miscellaneous Expenses,09-Jul-2012,2467151-7241,"25,510.00",BIFFAWARD.
Regeneration & Economic Development,"Spatial Policy, Planning, Assets & Environment",Premises,155001,Insurance of Premises,09-Jul-2012,2467397-1839,"2,629.12",MINTON OLDBURY LTD.
Regeneration & Economic Development,Transport,Third Party Payments,430106,Rendered by Private Contractors,09-Jul-2012,2467137-103073,"107,956.20",ARRIVA NORTH EAST LTD.
Regeneration & Economic Development,Transport,Third Party Payments,430106,Rendered by Private Contractors,09-Jul-2012,2467234-0327,"7,179.80",DUNN MOTOR TRACTION LTD T/A YOUR BUS.
Regeneration & Economic Development,Transport,Supplies and Services,342051,Computers and Communications,09-Jul-2012,2467345-00700,"5,388.00",JOURNEY PLAN LTD.
Regeneration & Economic Development,Transport,Supplies and Services,384540,Miscellaneous Expenses,09-Jul-2012,2467345-00702,"5,400.00",JOURNEY PLAN LTD.
Regeneration & Economic Development,Transport,Third Party Payments,430106,Rendered by Private Contractors,09-Jul-2012,2467346-,"2,760.40",JOVIAL PRIVATE HIRE.
Adults Wellbeing and Health,Commissioning inc Supporting People,Supplies and Services,384199,Miscellaneous Expenses,10-Jul-2012,2468324-,"2,280.00",JANE NATTRASS.
Adults Wellbeing and Health,Commissioning inc Supporting People,Third Party Payments,479101,Purchase of Care,10-Jul-2012,2468236-650021097,"3,712.00",BRITISH RED CROSS SOCIETY.
Adults Wellbeing and Health,Commissioning inc Supporting People,Supplies and Services,336005,Advertising,10-Jul-2012,2468247-5409092,"4,850.00",CBS OUTDOOR LTD.
Adults Wellbeing and Health,Commissioning inc Supporting People,Third Party Payments,473111,Purchase of Care,10-Jul-2012,2468272-651,"23,813.40",DURHAM ALLIANCE FOR COMMUNITY CARE.
Adults Wellbeing and Health,Commissioning inc Supporting People,Third Party Payments,473111,Purchase of Care,10-Jul-2012,2468272-652,"11,906.70",DURHAM ALLIANCE FOR COMMUNITY CARE.
Adults Wellbeing and Health,Commissioning inc Supporting People,Third Party Payments,473111,Purchase of Care,10-Jul-2012,2468272-653,"5,953.35",DURHAM ALLIANCE FOR COMMUNITY CARE.
Adults Wellbeing and Health,Commissioning inc Supporting People,Third Party Payments,473111,Purchase of Care,10-Jul-2012,2468272-654,"11,906.70",DURHAM ALLIANCE FOR COMMUNITY CARE.
Adults Wellbeing and Health,Commissioning inc Supporting People,Third Party Payments,473111,Purchase of Care,10-Jul-2012,2468272-655,"31,751.20",DURHAM ALLIANCE FOR COMMUNITY CARE.
Adults Wellbeing and Health,Commissioning inc Supporting People,Third Party Payments,473111,Purchase of Care,10-Jul-2012,2468272-656,"29,766.75",DURHAM ALLIANCE FOR COMMUNITY CARE.
Adults Wellbeing and Health,Commissioning inc Supporting People,Third Party Payments,473111,Purchase of Care,10-Jul-2012,2468475-2172,"40,347.36",ST MARGARETS CENTRE.
Adults Wellbeing and Health,Commissioning inc Supporting People,Supplies and Services,364999,Grants to Voluntary Organisations,10-Jul-2012,2468308-502,"7,030.50",HIGHLIGHTS PRODUCTIONS LTD.
Adults Wellbeing and Health,Commissioning inc Supporting People,Third Party Payments,470111,Purchase of Care,10-Jul-2012,2468348-,"4,047.23",LEONARD CHESHIRE DISABILITY.
Adults Wellbeing and Health,Head of Adults,Supplies and Services,338366,Services,10-Jul-2012,2468244-551,827.66,CARE ABILITY.
Adults Wellbeing and Health,Head of Adults,Third Party Payments,479102,Purchase of Care,10-Jul-2012,2468254-3136851,"5,838.00",CO DURHAM & DARLINGTON NHS FOUNDATION TRUST.
Adults Wellbeing and Health,Head of Adults,Third Party Payments,479102,Purchase of Care,10-Jul-2012,2468254-3136852,"8,752.75",CO DURHAM & DARLINGTON NHS FOUNDATION TRUST.
Adults Wellbeing and Health,Head of Adults,Supplies and Services,338370,Services,10-Jul-2012,2468254-3136855,"45,716.67",CO DURHAM & DARLINGTON NHS FOUNDATION TRUST.
Adults Wellbeing and Health,Head of Adults,Transport,230005,Contract Hire,10-Jul-2012,2468255-11-30/6/12,"1,010.00",COLIN E GLEAVE.
Adults Wellbeing and Health,Head of Adults,Transport,230005,Contract Hire,10-Jul-2012,2468325-71,"1,016.00",JDS PRIVATE HIRE.
Adults Wellbeing and Health,Head of Adults,Transport,230005,Contract Hire,10-Jul-2012,2468325-73,"1,020.00",JDS PRIVATE HIRE.
Adults Wellbeing and Health,Head of Adults,Transport,230005,Contract Hire,10-Jul-2012,2468325-79,"1,358.00",JDS PRIVATE HIRE.
Adults Wellbeing and Health,Head of Adults,Third Party Payments,470101,Purchase of Care,10-Jul-2012,2468344-1427,581.20,KINDSTREAM CARE LTD.
Adults Wellbeing and Health,Head of Adults,Third Party Payments,470101,Purchase of Care,10-Jul-2012,2468344-1428,628.80,KINDSTREAM CARE LTD.
Adults Wellbeing and Health,Head of Adults,Transport,230005,Contract Hire,10-Jul-2012,2468386-,760.00,MR J AGAR T/A PARK TAXIS.
Adults Wellbeing and Health,Head of Adults,Third Party Payments,478111,Purchase of Care,10-Jul-2012,2468443-A203-04000020,"1,189.48",REAL LIFE OPTIONS.
Adults Wellbeing and Health,Head of Adults,Third Party Payments,478111,Purchase of Care,10-Jul-2012,2468443-A203-04000025,"1,189.48",REAL LIFE OPTIONS.
Adults Wellbeing and Health,Head of Adults,Transport,230005,Contract Hire,10-Jul-2012,2468483-52206H,"2,375.00",T MOORE & SON.
Adults Wellbeing and Health,Head of Adults,Transport,230005,Contract Hire,10-Jul-2012,2468510-4106,"1,310.00",WEARDALE PRIVATE HIRE.
Adults Wellbeing and Health,Head of Adults,Transport,230005,Contract Hire,10-Jul-2012,2468510-4107,"2,054.18",WEARDALE PRIVATE HIRE.
Adults Wellbeing and Health,Head of Adults,Transport,230005,Contract Hire,10-Jul-2012,2468257-049,595.00,CONNORS MINI BUSES.
Adults Wellbeing and Health,Head of Adults,Transport,230005,Contract Hire,10-Jul-2012,2468278-56,775.50,ELITE TAXIS.
Adults Wellbeing and Health,Planning and Performance,Supplies and Services,352001,Conference Expenses,10-Jul-2012,2468248-83,"1,000.00",CELIA HARBOTTLE.
Adults Wellbeing and Health,Planning and Performance,Supplies and Services,332048,"Printing, Stationery and Gen Off Exps",10-Jul-2012,2468415-91215766,"4,014.25",NORTHGATE INFORMATION SOLUTIONS UK LTD.
Adults Wellbeing and Health,Social Inclusion,Supplies and Services,312013,"Newspapers, Books and Periodicals",10-Jul-2012,2468214-3516269,680.55,ASKEWS & HOLTS LIBRARY SERVICES LTD.
Adults Wellbeing and Health,Social Inclusion,Supplies and Services,312013,"Newspapers, Books and Periodicals",10-Jul-2012,2468214-3516396,615.75,ASKEWS & HOLTS LIBRARY SERVICES LTD.
Adults Wellbeing and Health,Social Inclusion,Supplies and Services,312013,"Newspapers, Books and Periodicals",10-Jul-2012,2468214-3516401,549.40,ASKEWS & HOLTS LIBRARY SERVICES LTD.
Adults Wellbeing and Health,Social Inclusion,Supplies and Services,312013,"Newspapers, Books and Periodicals",10-Jul-2012,2468214-3516626,528.36,ASKEWS & HOLTS LIBRARY SERVICES LTD.
Adults Wellbeing and Health,Social Inclusion,Supplies and Services,312013,"Newspapers, Books and Periodicals",10-Jul-2012,2468214-3516627,525.71,ASKEWS & HOLTS LIBRARY SERVICES LTD.
Adults Wellbeing and Health,Social Inclusion,Supplies and Services,312013,"Newspapers, Books and Periodicals",10-Jul-2012,2468214-3518642,504.89,ASKEWS & HOLTS LIBRARY SERVICES LTD.
Adults Wellbeing and Health,Social Inclusion,Supplies and Services,312013,"Newspapers, Books and Periodicals",10-Jul-2012,2468214-3518862,530.04,ASKEWS & HOLTS LIBRARY SERVICES LTD.
Adults Wellbeing and Health,Social Inclusion,Supplies and Services,312013,"Newspapers, Books and Periodicals",10-Jul-2012,2468214-3520260,592.00,ASKEWS & HOLTS LIBRARY SERVICES LTD.
Adults Wellbeing and Health,Social Inclusion,Supplies and Services,312017,"Newspapers, Books and Periodicals",10-Jul-2012,2468214-3522187,600.00,ASKEWS & HOLTS LIBRARY SERVICES LTD.
Adults Wellbeing and Health,Social Inclusion,Transport,235057,Public Transport,10-Jul-2012,2468250-397991,835.47,CHRISTINE NUGENT BUSINESS TRAVEL LTD.
Adults Wellbeing and Health,Social Inclusion,Supplies and Services,384199,Miscellaneous Expenses,10-Jul-2012,2468276-01310,"10,530.47",EAST DURHAM PARTNERSHIP.
Adults Wellbeing and Health,Social Inclusion,Supplies and Services,304259,Equipment and Materials,10-Jul-2012,2468421-15898,"2,700.00",OCN NORTH EAST REGION.
Adults Wellbeing and Health,Social Inclusion,Supplies and Services,304259,Equipment and Materials,10-Jul-2012,2468281-INV56370,"1,561.05",EVAC & CHAIR INTERNATIONAL LTD.
Assistant Chief Executive,Partnerships & Community Engagement Div.,Supplies and Services,384086,Miscellaneous Expenses,10-Jul-2012,2468279-,"2,500.00",ELMFIELD ACTION GROUP.
Assistant Chief Executive,Partnerships & Community Engagement Div.,Supplies and Services,384086,Miscellaneous Expenses,10-Jul-2012,2468285-,"5,261.00",FISHBURN TEA TIME FUN CLUB.
Assistant Chief Executive,Partnerships & Community Engagement Div.,Supplies and Services,384086,Miscellaneous Expenses,10-Jul-2012,2468290-,"3,000.00",FRAMWELLGATE COMMUNITY ASSOCIATION.
Assistant Chief Executive,Partnerships & Community Engagement Div.,Transfer Payments,525030,Other,10-Jul-2012,2468461-,"2,000.00",SHILDON PEOPLE`S CENTRE.
Assistant Chief Executive,Partnerships & Community Engagement Div.,Supplies and Services,384700,Miscellaneous Expenses,10-Jul-2012,2468476-,"12,000.00",STANLEY INDOOR BOWLS CENTRE.
Assistant Chief Executive,Partnerships & Community Engagement Div.,Supplies and Services,384700,Miscellaneous Expenses,10-Jul-2012,2468485-,"5,700.00",TANTOBIE ASSOC FOR SPORT & THE COMMUNITY.
Assistant Chief Executive,Partnerships & Community Engagement Div.,Supplies and Services,384086,Miscellaneous Expenses,10-Jul-2012,2468513-,"20,000.00",WINGATE & STATION TOWN FAMILY CENTRE.
Children and Young Peoples Services,CYPS - Local Authority,Third Party Payments,440027,Other Third Party Payments,10-Jul-2012,2467708-814672,706.23,REDACTED - PAYMENT TO INDIVIDUAL
Children and Young Peoples Services,CYPS - Local Authority,Third Party Payments,440027,Other Third Party Payments,10-Jul-2012,2467726-814869,642.88,REDACTED - PAYMENT TO INDIVIDUAL
Children and Young Peoples Services,CYPS - Local Authority,Transport,230007,Contract Hire,10-Jul-2012,2468195-061208,678.50,24/7 TAXI SERVICES LTD.
Children and Young Peoples Services,CYPS - Local Authority,Transport,230007,Contract Hire,10-Jul-2012,2468199-06/12,"1,209.76",ABA TAXIS.
Children and Young Peoples Services,CYPS - Local Authority,Transport,230007,Contract Hire,10-Jul-2012,2468201-15,"1,231.00",ACE TAXIS..
Children and Young Peoples Services,CYPS - Local Authority,Transport,230007,Contract Hire,10-Jul-2012,2468215-271,"1,867.68",AT TAXIS LTD.
Children and Young Peoples Services,CYPS - Local Authority,Transport,230007,Contract Hire,10-Jul-2012,2468215-272,640.00,AT TAXIS LTD.
Children and Young Peoples Services,CYPS - Local Authority,Transport,230007,Contract Hire,10-Jul-2012,2468217-4,"1,016.80",BARRYS TAXIS.
Children and Young Peoples Services,CYPS - Local Authority,Transport,230007,Contract Hire,10-Jul-2012,2468218-,"1,562.88",BEELINE PRIVATE HIRE.
Children and Young Peoples Services,CYPS - Local Authority,Transport,230007,Contract Hire,10-Jul-2012,2468218-,996.80,BEELINE PRIVATE HIRE.
Children and Young Peoples Services,CYPS - Local Authority,Transport,230007,Contract Hire,10-Jul-2012,2468218-,"1,600.00",BEELINE PRIVATE HIRE.
Children and Young Peoples Services,CYPS - Local Authority,Transport,230007,Contract Hire,10-Jul-2012,2468219-,585.00,BEELINE TAXIS.
Children and Young Peoples Services,CYPS - Local Authority,Transport,230007,Contract Hire,10-Jul-2012,2468220-TGS0612,"5,137.92",BELL BROTHERS TRAVEL.
Children and Young Peoples Services,CYPS - Local Authority,Transport,230007,Contract Hire,10-Jul-2012,2468225-57,996.80,BL TAXIS.
Children and Young Peoples Services,CYPS - Local Authority,Transport,230007,Contract Hire,10-Jul-2012,2468226-6,"1,280.00",BOBS TAXIS.
Children and Young Peoples Services,CYPS - Local Authority,Premises,125009,Rents,10-Jul-2012,2468230-D10346,"2,577.11",BRADLEY HALL CHARTERED SURVEYORS CLIENT ACCOUNT.
Children and Young Peoples Services,CYPS - Local Authority,Transport,230007,Contract Hire,10-Jul-2012,2468233-0612,"1,661.44",BRIAN WAKE.
Children and Young Peoples Services,CYPS - Local Authority,Transport,230007,Contract Hire,10-Jul-2012,2468239-PS0013,764.80,BURNDALE TAXIS.
Children and Young Peoples Services,CYPS - Local Authority,Transfer Payments,510026,School Children,10-Jul-2012,2468242-,"10,000.00",BUTTERFLIES DAY CARE.
Children and Young Peoples Services,CYPS - Local Authority,Transport,230007,Contract Hire,10-Jul-2012,2468253-521,"1,600.00",CLIVE HUBERY.
Children and Young Peoples Services,CYPS - Local Authority,Transport,230007,Contract Hire,10-Jul-2012,2468253-522,"2,187.84",CLIVE HUBERY.
Children and Young Peoples Services,CYPS - Local Authority,Transport,230007,Contract Hire,10-Jul-2012,2468253-523,"1,852.32",CLIVE HUBERY.
Children and Young Peoples Services,CYPS - Local Authority,Employees,080025,Agency Staff,10-Jul-2012,2468256-517950,"190,220.60",COMENSURA LTD.
Children and Young Peoples Services,CYPS - Local Authority,Supplies and Services,338099,Services,10-Jul-2012,2468268-105,"1,270.00",DEPENDABLE PRODUCTIONS.
Children and Young Peoples Services,CYPS - Local Authority,Supplies and Services,338027,Services,10-Jul-2012,2468270-010,743.15,DILWYN HUNT.
Children and Young Peoples Services,CYPS - Local Authority,Supplies and Services,384638,Miscellaneous Expenses,10-Jul-2012,2468274-SO222,"5,100.00",DURHAM COUNTY CARERS SUPPORT.
Children and Young Peoples Services,CYPS - Local Authority,Third Party Payments,486029,Service Level Agreements,10-Jul-2012,2468284-14503,"21,125.83",FAMILY ACTION.
Children and Young Peoples Services,CYPS - Local Authority,Third Party Payments,486029,Service Level Agreements,10-Jul-2012,2468284-14504,"21,125.83",FAMILY ACTION.
Children and Young Peoples Services,CYPS - Local Authority,Third Party Payments,425040,Rendered by Voluntary Organisations,10-Jul-2012,2468288-2091/12,"3,000.00",FOSTER CARE SOLUTIONS LTD.
Children and Young Peoples Services,CYPS - Local Authority,Third Party Payments,425040,Rendered by Voluntary Organisations,10-Jul-2012,2468289-630037855,"3,947.83",FOSTERING PEOPLE LTD.
Children and Young Peoples Services,CYPS - Local Authority,Transport,230007,Contract Hire,10-Jul-2012,2468303-,952.00,HARRY`S TAXI`S.
Children and Young Peoples Services,CYPS - Local Authority,Supplies and Services,338045,Services,10-Jul-2012,2468309-,"2,225.00",HMCTS.
Children and Young Peoples Services,CYPS - Local Authority,Transport,230007,Contract Hire,10-Jul-2012,2468314-IR1207001,"1,200.00",I & R EXECUTIVE TRAVEL.
Children and Young Peoples Services,CYPS - Local Authority,Transport,230007,Contract Hire,10-Jul-2012,2468314-IR1207002,720.00,I & R EXECUTIVE TRAVEL.
Children and Young Peoples Services,CYPS - Local Authority,Transport,230007,Contract Hire,10-Jul-2012,2468314-IR1207004,"1,850.00",I & R EXECUTIVE TRAVEL.
Children and Young Peoples Services,CYPS - Local Authority,"Vehicles, Equipment, Furniture and Fittings",912701,Computer equipment,10-Jul-2012,2468319-,"91,566.16",INSPIREDSPACES DURHAM LTD.
Children and Young Peoples Services,CYPS - Local Authority,Construction Work,908105,Construction work,10-Jul-2012,2468319-,"363,854.40",INSPIREDSPACES DURHAM LTD.
Children and Young Peoples Services,CYPS - Local Authority,Third Party Payments,425040,Rendered by Voluntary Organisations,10-Jul-2012,2468320-,"23,652.00",INTERACT CARE LTD.
Children and Young Peoples Services,CYPS - Local Authority,Transport,230007,Contract Hire,10-Jul-2012,2468322-,"1,465.28",JA SHORT.
Children and Young Peoples Services,CYPS - Local Authority,Transport,230007,Contract Hire,10-Jul-2012,2468325-61,"1,088.00",JDS PRIVATE HIRE.
Children and Young Peoples Services,CYPS - Local Authority,Transport,230007,Contract Hire,10-Jul-2012,2468325-62,"1,184.00",JDS PRIVATE HIRE.
Children and Young Peoples Services,CYPS - Local Authority,Transport,230007,Contract Hire,10-Jul-2012,2468325-63,"1,040.00",JDS PRIVATE HIRE.
Children and Young Peoples Services,CYPS - Local Authority,Transport,230007,Contract Hire,10-Jul-2012,2468325-64,976.00,JDS PRIVATE HIRE.
Children and Young Peoples Services,CYPS - Local Authority,Transport,230007,Contract Hire,10-Jul-2012,2468325-65,"1,295.00",JDS PRIVATE HIRE.
Children and Young Peoples Services,CYPS - Local Authority,Transport,230007,Contract Hire,10-Jul-2012,2468325-66,832.00,JDS PRIVATE HIRE.
Children and Young Peoples Services,CYPS - Local Authority,Transport,230007,Contract Hire,10-Jul-2012,2468325-67,576.00,JDS PRIVATE HIRE.
Children and Young Peoples Services,CYPS - Local Authority,Transport,230007,Contract Hire,10-Jul-2012,2468325-69,"1,216.00",JDS PRIVATE HIRE.
Children and Young Peoples Services,CYPS - Local Authority,Transport,230007,Contract Hire,10-Jul-2012,2468326-2005,"2,957.28",JEFF ANDERSON COACHES LTD.
Children and Young Peoples Services,CYPS - Local Authority,Transport,230007,Contract Hire,10-Jul-2012,2468326-2007,"1,591.84",JEFF ANDERSON COACHES LTD.
Children and Young Peoples Services,CYPS - Local Authority,Transport,230007,Contract Hire,10-Jul-2012,2468328-5-29/6/12,800.00,JK TAXIS.
Children and Young Peoples Services,CYPS - Local Authority,Transport,230007,Contract Hire,10-Jul-2012,2468329-2012/20,"1,173.28",JM HUMBLE COACH HIRE.
Children and Young Peoples Services,CYPS - Local Authority,Transport,230007,Contract Hire,10-Jul-2012,2468330-18,"1,248.00",JOE`S TAXIS.
Children and Young Peoples Services,CYPS - Local Authority,Transport,230007,Contract Hire,10-Jul-2012,2468332-6,624.00,JOHN RIDLEY.
Children and Young Peoples Services,CYPS - Local Authority,Transport,230007,Contract Hire,10-Jul-2012,2468333-17,832.00,JOHNS TAXIS (CHESTER LE STREET).
Children and Young Peoples Services,CYPS - Local Authority,Transport,230007,Contract Hire,10-Jul-2012,2468333-18,"1,200.00",JOHNS TAXIS (CHESTER LE STREET).
Children and Young Peoples Services,CYPS - Local Authority,Transport,230007,Contract Hire,10-Jul-2012,2468333-20,512.00,JOHNS TAXIS (CHESTER LE STREET).
Children and Young Peoples Services,CYPS - Local Authority,Transport,230007,Contract Hire,10-Jul-2012,2468335-,"1,161.12",JOVIAL PRIVATE HIRE.
Children and Young Peoples Services,CYPS - Local Authority,Transport,230007,Contract Hire,10-Jul-2012,2468335-,"1,168.00",JOVIAL PRIVATE HIRE.
Children and Young Peoples Services,CYPS - Local Authority,Transfer Payments,510026,School Children,10-Jul-2012,2468343-,"1,934.40",KIDS 1ST NURSERIES DURHAM.
Children and Young Peoples Services,CYPS - Local Authority,Transport,230007,Contract Hire,10-Jul-2012,2468346-15834,915.00,LEES COACHES.
Children and Young Peoples Services,CYPS - Local Authority,Transport,230007,Contract Hire,10-Jul-2012,2468353-06,996.80,M & S TAXIS.
Children and Young Peoples Services,CYPS - Local Authority,Transport,230007,Contract Hire,10-Jul-2012,2468354-3D-29/6/12,"1,360.00",MA BODDY.
Children and Young Peoples Services,CYPS - Local Authority,Transport,230007,Contract Hire,10-Jul-2012,2468354-3E/A025,996.80,MA BODDY.
Children and Young Peoples Services,CYPS - Local Authority,Supplies and Services,338045,Services,10-Jul-2012,2468370-180475,850.00,MISS HELEN PROOPS.
Children and Young Peoples Services,CYPS - Local Authority,Transport,230007,Contract Hire,10-Jul-2012,2468376-200,"1,440.00",MOLLYS TAXIS.
Children and Young Peoples Services,CYPS - Local Authority,Transport,230007,Contract Hire,10-Jul-2012,2468376-203,"1,615.00",MOLLYS TAXIS.
Children and Young Peoples Services,CYPS - Local Authority,Transport,230007,Contract Hire,10-Jul-2012,2468376-209,"1,600.00",MOLLYS TAXIS.
Children and Young Peoples Services,CYPS - Local Authority,Transport,230007,Contract Hire,10-Jul-2012,2468379-412-30/6/12,"2,640.00",MR AD HOWARD.
Children and Young Peoples Services,CYPS - Local Authority,Supplies and Services,338045,Services,10-Jul-2012,2468380-,850.00,MR CHARLES MCCAIN.
Children and Young Peoples Services,CYPS - Local Authority,Transport,230007,Contract Hire,10-Jul-2012,2468382-15,560.00,MR DAVID CULLEN.
Children and Young Peoples Services,CYPS - Local Authority,Transport,230007,Contract Hire,10-Jul-2012,2468382-16,560.00,MR DAVID CULLEN.
Children and Young Peoples Services,CYPS - Local Authority,Transport,230007,Contract Hire,10-Jul-2012,2468383-,608.00,MR DEREK HENDERSON.
Children and Young Peoples Services,CYPS - Local Authority,Supplies and Services,384199,Miscellaneous Expenses,10-Jul-2012,2468384-2111999,525.00,MR DOMINIC BAYNE.
Children and Young Peoples Services,CYPS - Local Authority,Supplies and Services,338045,Services,10-Jul-2012,2468387-278917,"1,200.00",MR JAMES BROWN.
Children and Young Peoples Services,CYPS - Local Authority,Transport,230007,Contract Hire,10-Jul-2012,2468392-N072/06/12,"1,330.00",MR M ALLISON.
Children and Young Peoples Services,CYPS - Local Authority,Transport,230007,Contract Hire,10-Jul-2012,2468392-N081/06/12,976.00,MR M ALLISON.
Children and Young Peoples Services,CYPS - Local Authority,Transport,230007,Contract Hire,10-Jul-2012,2468392-N187/06/12,640.00,MR M ALLISON.
Children and Young Peoples Services,CYPS - Local Authority,Transport,230007,Contract Hire,10-Jul-2012,2468392-NO84/06/12,752.00,MR M ALLISON.
Children and Young Peoples Services,CYPS - Local Authority,Supplies and Services,338045,Services,10-Jul-2012,2468393-,"4,500.00",MR MARTIN TODD.
Children and Young Peoples Services,CYPS - Local Authority,Supplies and Services,338027,Services,10-Jul-2012,2468394-12035,672.00,REDACTED - PAYMENT TO INDIVIDUAL
Children and Young Peoples Services,CYPS - Local Authority,Supplies and Services,338045,Services,10-Jul-2012,2468396-,"2,450.00",MR STEPHEN AINSLEY.
Children and Young Peoples Services,CYPS - Local Authority,Transport,230007,Contract Hire,10-Jul-2012,2468412-1938,"1,824.00",NIGHTINGALE COACHES.
Children and Young Peoples Services,CYPS - Local Authority,Transport,230007,Contract Hire,10-Jul-2012,2468412-1939,"2,165.44",NIGHTINGALE COACHES.
Children and Young Peoples Services,CYPS - Local Authority,Transport,230007,Contract Hire,10-Jul-2012,2468412-1940,"2,080.00",NIGHTINGALE COACHES.
Children and Young Peoples Services,CYPS - Local Authority,Transport,230007,Contract Hire,10-Jul-2012,2468412-1941,"1,568.00",NIGHTINGALE COACHES.
Children and Young Peoples Services,CYPS - Local Authority,Transport,230007,Contract Hire,10-Jul-2012,2468412-1942,"2,143.20",NIGHTINGALE COACHES.
Children and Young Peoples Services,CYPS - Local Authority,Transport,230007,Contract Hire,10-Jul-2012,2468412-1943,"2,032.00",NIGHTINGALE COACHES.
Children and Young Peoples Services,CYPS - Local Authority,Transport,230007,Contract Hire,10-Jul-2012,2468412-1944,"2,084.64",NIGHTINGALE COACHES.
Children and Young Peoples Services,CYPS - Local Authority,Transport,230007,Contract Hire,10-Jul-2012,2468412-1950,"1,460.16",NIGHTINGALE COACHES.
Children and Young Peoples Services,CYPS - Local Authority,Transport,230007,Contract Hire,10-Jul-2012,2468412-1951,"2,185.12",NIGHTINGALE COACHES.
